Directorate,Department,Expenditure Type,Ref.Doc.1,Vendor Name,Expenditure Amount (exc VAT),Payment Date
COMMERCIAL,ENVIRONMENT,Other Services,1002184602,Conway Aecom Ltd,"38,494.84",07/08/2020
COMMERCIAL,ENVIRONMENT,Other Services,1003232102,Conway Aecom Ltd,"3,518.09",13/08/2020
COMMERCIAL,ENVIRONMENT,Other Services,1003232302,Conway Aecom Ltd,"1,259.46",12/08/2020
COMMERCIAL,ENVIRONMENT,Other Services,1003232501,Conway Aecom Ltd,"1,694.00",07/08/2020
COMMERCIAL,ENVIRONMENT,Other Services,1003232802,Conway Aecom Ltd,"1,358.23",13/08/2020
COMMERCIAL,ENVIRONMENT,Other Services,1003234902,Conway Aecom Ltd,"1,899.13",13/08/2020
COMMERCIAL,ENVIRONMENT,Other Services,1003435402,Conway Aecom Ltd,"30,263.81",20/08/2020
COMMERCIAL,ENVIRONMENT,Professional Services,1003440801,Circling the Square,"12,500.00",17/08/2020
COMMERCIAL,ENVIRONMENT,Grounds maintenance,1003455801,BUSH WHEELER SERVICES LIMITED,"1,400.00",18/08/2020
COMMERCIAL,ENVIRONMENT,Equipment and Materials Purcha,1003439401,Metrosigns 2000(Bedford) Ltd,385.60,17/08/2020
COMMERCIAL,HOUSING REVENUE ACCOUNT,Other Agencies - Third Party P,1003316201,THE BARNETGROUP LIMITED,"10,000.00",11/08/2020
COMMERCIAL,HOUSING REVENUE ACCOUNT,Other Agencies - Third Party P,1003313901,THE BARNETGROUP LIMITED,"39,000.00",11/08/2020
COMMERCIAL,HOUSING REVENUE ACCOUNT,Other Agencies - Third Party P,1003316901,THE BARNETGROUP LIMITED,"220,000.00",11/08/2020
COMMERCIAL,HOUSING REVENUE ACCOUNT,Other Agencies - Third Party P,1003317001,THE BARNETGROUP LIMITED,"1,239,000.00",11/08/2020
COMMERCIAL,HOUSING REVENUE ACCOUNT,Other Agencies - Third Party P,1003313501,THE BARNETGROUP LIMITED,"1,063,000.00",11/08/2020
COMMERCIAL,HOUSING REVENUE ACCOUNT,Other Agencies - Third Party P,1003660201,THE BARNETGROUP LIMITED,"988,000.00",28/08/2020
COMMERCIAL,HOUSING REVENUE ACCOUNT,Other Agencies - Third Party P,1003311901,THE BARNETGROUP LIMITED,"1,000,000.00",11/08/2020
COMMERCIAL,HOUSING REVENUE ACCOUNT,Other Agencies - Third Party P,1003654901,THE BARNETGROUP LIMITED,"358,000.00",28/08/2020
Commercial,HRA,Consultants Fees,1003408702,P P C R ASSOCIATES LTD,171.01,18/08/2020
Commercial,HRA,Consultants Fees,1003410502,P P C R ASSOCIATES LTD,235.09,14/08/2020
Commercial,HRA,Consultants Fees,1003292601,Turley Associates Ltd,"15,000.00",10/08/2020
Commercial,HRA,Consultants Fees,1003369201,PRIORITY ESTATES PROJECT LTD,"2,286.00",13/08/2020
Commercial,HRA,Advertising,1003170802,TMP (UK) LTD,490.00,11/08/2020
Commercial,HRA,Advertising,1003173502,TMP (UK) LTD,490.00,11/08/2020
Commercial,HRA,Advertising,1003198002,TMP (UK) LTD,410.00,10/08/2020
Commercial,HRA,Advertising,1003200801,TMP (UK) LTD,"1,004.00",06/08/2020
Commercial,HRA,Advertising,1003201502,TMP (UK) LTD,410.00,11/08/2020
Commercial,HRA,Building Repairs & Maintenance,1003157201,THE BARNETGROUP LIMITED,"1,735,500.00",04/08/2020
Commercial,HRA,Professional Services,1003310701,THE BARNETGROUP LIMITED,"154,908.00",13/08/2020
Commercial,HRA,Professional Services,1003156301,THE BARNETGROUP LIMITED,"318,248.25",04/08/2020
Commercial,HRA,Other Services,1003158401,THE BARNETGROUP LIMITED,"4,160,442.00",04/08/2020
COMMERCIAL,PARKING AND INFRASTRUCTURE,Other Services,1003175601,BARNET LIGHTING SERVICES LTD,"1,577,983.96",05/08/2020
Commercial,Regional Enterprise,Legal and Court Fees,80037296,Devonshire Metro Ltd,"7,412.50",20/08/2020
Commercial,Regional Enterprise,Other Services,1003227001,Conway Aecom Ltd,"1,421.60",13/08/2020
Commercial,Regional Enterprise,Other Services,1003229202,Conway Aecom Ltd,"28,589.40",13/08/2020
Commercial,Regional Enterprise,Advertising,1001062203,TMP (UK) LTD,108.00,10/08/2020
Commercial,Regional Enterprise,Advertising,1001586802,TMP (UK) LTD,90.00,04/08/2020
Commercial,Regional Enterprise,Advertising,1002942902,TMP (UK) LTD,296.00,04/08/2020
Commercial,Regional Enterprise,Advertising,1003172701,TMP (UK) LTD,117.00,05/08/2020
Commercial,Regional Enterprise,Advertising,1003199701,TMP (UK) LTD,117.00,06/08/2020
Commercial,Regional Enterprise,Advertising,1003341701,TMP (UK) LTD,117.00,12/08/2020
Commercial,Regional Enterprise,Advertising,1003341801,TMP (UK) LTD,117.00,12/08/2020
Commercial,Regional Enterprise,Advertising,1003342702,TMP (UK) LTD,206.00,17/08/2020
Commercial,Regional Enterprise,Advertising,1003342801,TMP (UK) LTD,404.00,12/08/2020
Commercial,Regional Enterprise,Advertising,1003347101,TMP (UK) LTD,99.00,12/08/2020
Commercial,Regional Enterprise,Advertising,1003347902,TMP (UK) LTD,179.00,17/08/2020
Commercial,Regional Enterprise,Advertising,1003348502,TMP (UK) LTD,170.00,17/08/2020
Commercial,Regional Enterprise,Advertising,1003404901,TMP (UK) LTD,197.00,14/08/2020
Commercial,Regional Enterprise,Advertising,1003405201,TMP (UK) LTD,440.00,14/08/2020
Commercial,Regional Enterprise,Advertising,1003432701,TMP (UK) LTD,99.00,17/08/2020
Commercial,Regional Enterprise,Advertising,1003435701,TMP (UK) LTD,347.00,17/08/2020
Commercial,Regional Enterprise,Advertising,1003437201,TMP (UK) LTD,90.00,17/08/2020
Commercial,Regional Enterprise,Advertising,1003438701,TMP (UK) LTD,368.00,17/08/2020
Commercial,Regional Enterprise,Advertising,1003453001,TMP (UK) LTD,179.00,18/08/2020
Commercial,Regional Enterprise,Advertising,1003453201,TMP (UK) LTD,126.00,18/08/2020
Commercial,Regional Enterprise,Advertising,1003453501,TMP (UK) LTD,260.00,18/08/2020
Commercial,Regional Enterprise,Advertising,1003454701,TMP (UK) LTD,99.00,18/08/2020
Commercial,Regional Enterprise,Advertising,1003577401,NEWSQUEST (LONDON) LIMITED,495.00,25/08/2020
Commercial,Regional Enterprise,Advertising,1003577601,NEWSQUEST (LONDON) LIMITED,594.00,25/08/2020
Commercial,Regional Enterprise,Advertising,1003579601,NEWSQUEST (LONDON) LIMITED,"1,296.00",25/08/2020
Commercial,Regional Enterprise,Advertising,1003310602,The Stationery Office Ltd,229.14,11/08/2020
Commercial,Regional Enterprise,Other Services,1003226901,Conway Aecom Ltd,643.19,13/08/2020
Commercial,Regional Enterprise,Advertising,1003200901,TMP (UK) LTD,377.00,06/08/2020
Commercial,Regional Enterprise,Advertising,1003201101,TMP (UK) LTD,575.00,06/08/2020
Commercial,Regional Enterprise,Advertising,1003202501,TMP (UK) LTD,489.00,06/08/2020
Commercial,Regional Enterprise,Other Services,1003317501,TMP (UK) LTD,494.00,11/08/2020
Commercial,Regional Enterprise,Advertising,1003343001,TMP (UK) LTD,503.00,12/08/2020
Commercial,Regional Enterprise,Advertising,1003375801,TMP (UK) LTD,"1,768.00",13/08/2020
Commercial,Regional Enterprise,Advertising,1003376301,TMP (UK) LTD,369.00,13/08/2020
Commercial,Regional Enterprise,Advertising,1003377801,TMP (UK) LTD,377.00,13/08/2020
Commercial,Regional Enterprise,Advertising,1003378101,TMP (UK) LTD,297.00,13/08/2020
Commercial,Regional Enterprise,Advertising,1003380501,TMP (UK) LTD,306.00,13/08/2020
Commercial,Regional Enterprise,Advertising,1003407301,TMP (UK) LTD,480.00,14/08/2020
Commercial,Regional Enterprise,Advertising,1003408001,TMP (UK) LTD,314.00,14/08/2020
Commercial,Regional Enterprise,Advertising,1003408601,TMP (UK) LTD,475.20,14/08/2020
Commercial,Regional Enterprise,Advertising,1003432201,TMP (UK) LTD,624.00,17/08/2020
Commercial,Regional Enterprise,Advertising,1003435201,TMP (UK) LTD,296.00,17/08/2020
Commercial,Regional Enterprise,Advertising,1003437901,TMP (UK) LTD,260.00,17/08/2020
Commercial,Regional Enterprise,Advertising,1003438201,TMP (UK) LTD,444.00,17/08/2020
Commercial,Regional Enterprise,Advertising,1003439701,TMP (UK) LTD,570.00,17/08/2020
Commercial,Regional Enterprise,Other Services,1003483202,Conway Aecom Ltd,49.37,20/08/2020
Commercial,Regional Enterprise,Other Services,1003486302,Conway Aecom Ltd,14.30,27/08/2020
Commercial,Regional Enterprise,Other Services,1003509901,Conway Aecom Ltd,96.41,20/08/2020
Commercial,Regional Enterprise,Other Services,1003555401,Conway Aecom Ltd,"16,401.56",24/08/2020
Commercial,Regional Enterprise,Other Services,1003434501,Conway Aecom Ltd,"18,400.00",17/08/2020
Commercial,Regional Enterprise,Cleaning and domestic material,1001382502,Norse Commercial Services Ltd,583.82,12/08/2020
Commercial,Regional Enterprise,Other Services,1003233001,Conway Aecom Ltd,"1,698.95",07/08/2020
Commercial,Regional Enterprise,Other Services,1003481801,Conway Aecom Ltd,544.42,19/08/2020
Commercial,Regional Enterprise,Equipment and Materials Purcha,1003482001,Conway Aecom Ltd,16.36,19/08/2020
Commercial,Regional Enterprise,Other Services,1003483601,Conway Aecom Ltd,153.66,19/08/2020
Commercial,Regional Enterprise,Other Services,1003483801,Conway Aecom Ltd,23.38,19/08/2020
Commercial,Regional Enterprise,Other Services,1003559702,RE (REGIONAL ENTERPRISE) LIMITED,"4,008.05",24/08/2020
Commercial,Regional Enterprise,Professional Services,1003577901,WATES PROPERTY SERVICES LTD,296.14,25/08/2020
Commercial,Regional Enterprise,Other Services,1002883903,RE (REGIONAL ENTERPRISE) LIMITED,"35,720.00",12/08/2020
Corporate Accounting,Corporate Accounting,Other Local Authorities - Thir,80037307,GLA LEVIES,"4,908,426.29",05/08/2020
Corporate Accounting,Corporate Accounting,Other Local Authorities - Thir,80037490,GLA LEVIES,"1,607,125.00",13/08/2020
Corporate Accounting,Corporate Accounting,Other Local Authorities - Thir,80037492,GLA LEVIES,"104,578.53",11/08/2020
Corporate Accounting,Corporate Accounting,Other Establishments - Third P,50014553,MENORAH HIGH SCHOOL FOR GIRLS,"10,330.48",12/08/2020
Corporate Accounting,Corporate Accounting,Other Agencies - Third Party P,1003148801,THE BARNETGROUP LIMITED,"91,666.67",03/08/2020
Corporate Accounting,Corporate Accounting,Other Transfer Payments to Soc,70117146,REDACTED - PERSONAL DATA,570.91,19/08/2020
Corporate Accounting,Corporate Accounting,Other Transfer Payments to Soc,70117518,REDACTED - PERSONAL DATA,550.00,27/08/2020
Corporate Accounting,Corporate Accounting,Other Transfer Payments to Soc,80037683,Wirecard (FS ongoing 2040881670310,"4,300.00",21/08/2020
Corporate Accounting,Corporate Accounting,Other Transfer Payments to Soc,80037866,Wirecard (FS ongoing 2040881670310,"3,000.00",27/08/2020
Corporate Accounting,Corporate Accounting,Fees and Charges,80037720,Fresh Lime Developments (Totteridge) LTD,"1,000.00",26/08/2020
Corporate Accounting,Corporate Accounting,Fees and Charges,80037508,DPJ Scaffolding LTD,"1,150.00",13/08/2020
Corporate Accounting,Corporate Accounting,Fees and Charges,80037509,Horncastle & Sons (Roofing) Ltd,"2,000.00",13/08/2020
Corporate Accounting,Corporate Accounting,Fees and Charges,80037504,National Lifting Solutions LTD,"1,000.00",13/08/2020
Corporate Accounting,Corporate Accounting,Fees and Charges,80037558,SAM SCAFFOLDING,"1,564.78",26/08/2020
Corporate Accounting,Corporate Accounting,Fees and Charges,80037503,Nationwide Traffic Solutions Ltd,"1,000.00",13/08/2020
Corporate Accounting,Corporate Accounting,Fees and Charges,80037723,Williams Scaffolding Services Ltd,"1,000.00",27/08/2020
Delivery Units,Adults and Health,Ttl IT & Comms,1003435501,HAS Technology Ltd,"35,165.00",17/08/2020
Delivery Units,Adults and Health,Voluntary Associations - Third,50015698,BARNET MENCAP,"11,142.65",18/08/2020
Delivery Units,Adults and Health,Other Services,1002572701,Barnet Homes Assist,484.62,27/08/2020
Delivery Units,Adults and Health,Other Services,1002588301,Barnet Homes Assist,"8,270.49",05/08/2020
Delivery Units,Adults and Health,Equipment and Materials Purcha,1003153601,Millbrook Healthcare Group,"201,019.82",03/08/2020
Delivery Units,Adults and Health,Voluntary Associations - Third,1003226702,MIDDLESEX ASSOCIATION  FOR THE BLIN,"2,268.25",12/08/2020
Delivery Units,Adults and Health,Other Services,1003203102,BARNET MENCAP,"28,583.33",12/08/2020
Delivery Units,Adults and Health,Other Transfer Payments to Soc,1003371302,BARNET CITIZENS ADVICE BUREAU,"119,205.25",14/08/2020
Delivery Units,Adults and Health,Other Transfer Payments to Soc,1002793802,PRT BARNET CARERS CENTRE,"28,080.75",04/08/2020
Delivery Units,Adults and Health,Other Transfer Payments to Soc,1003200202,PRT BARNET CARERS CENTRE,"28,080.75",07/08/2020
Delivery Units,Adults and Health,Voluntary Associations - Third,50015696,AGE CONCERN,"45,833.33",18/08/2020
Delivery Units,Adults and Health,Other Transfer Payments to Soc,1003146602,ALZHEIMER'S SOCIETY (BARNET),"18,166.67",20/08/2020
Delivery Units,Adults and Health,Other Transfer Payments to Soc,1003146702,ALZHEIMER'S SOCIETY (BARNET),"18,166.67",20/08/2020
Delivery Units,Adults and Health,Other Transfer Payments to Soc,1003153702,ALZHEIMER'S SOCIETY (BARNET),"18,166.67",20/08/2020
Delivery Units,Adults and Health,Other Transfer Payments to Soc,1003344102,ALZHEIMER'S SOCIETY (BARNET),"18,166.67",17/08/2020
Delivery Units,Adults and Health,Health authorities - Third Par,1003288801,THE BARNETGROUP LIMITED,"14,166.67",10/08/2020
Delivery Units,Adults and Health,Health authorities - Third Par,1003289501,THE BARNETGROUP LIMITED,"16,666.67",10/08/2020
Delivery Units,Adults and Health,Other Services,1003310802,POhWER,"4,303.00",12/08/2020
Delivery Units,Adults and Health,Other Transfer Payments to Soc,1003201402,Inclusion Barnet,"30,369.69",07/08/2020
Delivery Units,Adults and Health,Professional Services,1003407902,REDACTED - PERSONAL DATA,550.00,18/08/2020
Delivery Units,Adults and Health,Other Services,1001097402,Mott MacDonald Ltd/Cambridge Education,130.00,07/08/2020
Delivery Units,Adults and Health,Other Transfer Payments to Soc,1003409502,Mott MacDonald Ltd/Cambridge Education,195.00,14/08/2020
Delivery Units,Adults and Health,Other Services,1003064301,D.A. Languages Ltd,144.00,19/08/2020
Delivery Units,Adults and Health,Other Services,1003178201,D.A. Languages Ltd,14.56,05/08/2020
Delivery Units,Adults and Health,Other Transfer Payments to Soc,1003345101,AMOTivate Ltd,900.00,12/08/2020
Delivery Units,Adults and Health,Other Transfer Payments to Soc,1003345601,AMOTivate Ltd,"2,910.00",12/08/2020
Delivery Units,Adults and Health,Other Transfer Payments to Soc,1003348701,AMOTivate Ltd,"1,680.00",12/08/2020
Delivery Units,Adults and Health,Other Transfer Payments to Soc,1003554601,AMOTivate Ltd,"3,090.00",24/08/2020
Delivery Units,Adults and Health,Other Transfer Payments to Soc,1003557101,AMOTivate Ltd,720.00,24/08/2020
Delivery Units,Adults and Health,Other Services,1003174102,SGSL LTD,"6,325.00",06/08/2020
Delivery Units,Adults and Health,Other Services,1002281602,Mott MacDonald Ltd/Cambridge Education,22.00,13/08/2020
Delivery Units,Adults and Health,Cleaning and domestic material,1000966603,Norse Commercial Services Ltd,505.99,12/08/2020
Delivery Units,Adults and Health,Training,1003150401,HUNTERSJOY LTD,750.00,03/08/2020
Delivery Units,Adults and Health,Training,1003156401,Edge Training & Consultancy Lt,140.00,04/08/2020
Delivery Units,Adults and Health,Training,1003158701,Edge Training & Consultancy Lt,435.00,04/08/2020
Delivery Units,Adults and Health,Training,1003159701,Edge Training & Consultancy Lt,140.00,04/08/2020
Delivery Units,Adults and Health,Training,1003160301,Edge Training & Consultancy Lt,150.00,04/08/2020
Delivery Units,Adults and Health,Training,1003200001,Me Learning Ltd,"2,708.00",06/08/2020
Delivery Units,Adults and Health,Other Transfer Payments to Soc,1002394402,Mott MacDonald Ltd/Cambridge Education,39.00,13/08/2020
Delivery Units,Adults and Health,Other Services,1003452801,ST JOHN AMBULANCE (SAC),210.83,18/08/2020
Delivery Units,Adults and Health,Other Transfer Payments to Soc,1003404802,Mott MacDonald Ltd/Cambridge Education,47.00,14/08/2020
Delivery Units,Adults and Health,Translation Exp / Interpret,1002481101,D.A. Languages Ltd,55.00,19/08/2020
Delivery Units,Adults and Health,Translation Exp / Interpret,1002571501,D.A. Languages Ltd,98.00,19/08/2020
Delivery Units,Adults and Health,Translation Exp / Interpret,1002593902,D.A. Languages Ltd,98.00,04/08/2020
Delivery Units,Adults and Health,Translation Exp / Interpret,1002993501,D.A. Languages Ltd,98.00,19/08/2020
Delivery Units,Adults and Health,Translation Exp / Interpret,1003064901,D.A. Languages Ltd,204.00,19/08/2020
Delivery Units,Adults and Health,Translation Exp / Interpret,1003155001,D.A. Languages Ltd,122.40,19/08/2020
Delivery Units,Adults and Health,Translation Exp / Interpret,1003155101,D.A. Languages Ltd,98.00,19/08/2020
Delivery Units,Adults and Health,Translation Exp / Interpret,1003156701,D.A. Languages Ltd,98.00,19/08/2020
Delivery Units,Adults and Health,Translation Exp / Interpret,1003175401,D.A. Languages Ltd,54.00,05/08/2020
Delivery Units,Adults and Health,Translation Exp / Interpret,1003228501,D.A. Languages Ltd,115.96,19/08/2020
Delivery Units,Adults and Health,Translation Exp / Interpret,1003231201,D.A. Languages Ltd,30.68,19/08/2020
Delivery Units,Adults and Health,Translation Exp / Interpret,1003314501,D.A. Languages Ltd,98.00,11/08/2020
Delivery Units,Adults and Health,Translation Exp / Interpret,1003316001,D.A. Languages Ltd,98.00,11/08/2020
Delivery Units,Adults and Health,Translation Exp / Interpret,1003316101,D.A. Languages Ltd,98.00,11/08/2020
Delivery Units,Adults and Health,Translation Exp / Interpret,1003316701,D.A. Languages Ltd,98.00,11/08/2020
Delivery Units,Adults and Health,Translation Exp / Interpret,1003318101,D.A. Languages Ltd,98.00,11/08/2020
Delivery Units,Adults and Health,Translation Exp / Interpret,1003318701,D.A. Languages Ltd,98.00,11/08/2020
Delivery Units,Adults and Health,Other Transfer Payments to Soc,1003157402,LONDON BOROUGH OF HARINGEY,"12,806.25",04/08/2020
Delivery Units,Adults and Health,Other Transfer Payments to Soc,1003159202,LONDON BOROUGH OF HARINGEY,"10,833.25",04/08/2020
Delivery Units,Adults and Health,Other Transfer Payments to Soc,1003540301,KORU MEDICAL LTD,"2,805.00",21/08/2020
Delivery Units,Adults and Health,Other Transfer Payments to Soc,1003621002,Aisa Medical Ltd,173.37,28/08/2020
Delivery Units,Adults and Health,Other Transfer Payments to Soc,1003622402,Aisa Medical Ltd,177.82,28/08/2020
Delivery Units,Adults and Health,Other Transfer Payments to Soc,1003622802,Aisa Medical Ltd,173.37,28/08/2020
Delivery Units,Adults and Health,Other Transfer Payments to Soc,1003623402,Aisa Medical Ltd,173.37,28/08/2020
Delivery Units,Adults and Health,Other Transfer Payments to Soc,1003346301,Kevin Scheuring Ltd,"1,800.00",12/08/2020
Delivery Units,Adults and Health,Other Transfer Payments to Soc,1003350101,Kevin Scheuring Ltd,"2,550.00",12/08/2020
Delivery Units,Adults and Health,Translation Exp / Interpret,1003061301,D.A. Languages Ltd,72.00,19/08/2020
Delivery Units,Adults and Health,Translation Exp / Interpret,1003061601,D.A. Languages Ltd,18.00,19/08/2020
Delivery Units,Adults and Health,Other Services,1003149402,Recruitment Team Nine Limited,270.00,06/08/2020
Delivery Units,Adults and Health,Other Services,1003151102,Recruitment Team Nine Limited,270.00,06/08/2020
Delivery Units,Adults and Health,Other Services,1003314302,Recruitment Team Nine Limited,270.00,27/08/2020
Delivery Units,Adults and Health,Other Services,1003315702,Recruitment Team Nine Limited,270.00,21/08/2020
Delivery Units,Adults and Health,Other Services,1003315902,Recruitment Team Nine Limited,270.00,27/08/2020
Delivery Units,Adults and Health,Other Services,1003432102,Recruitment Team Nine Limited,135.00,19/08/2020
Delivery Units,Adults and Health,Other Services,1003432902,Recruitment Team Nine Limited,270.00,19/08/2020
Delivery Units,Adults and Health,Other Services,1003437002,Recruitment Team Nine Limited,135.00,19/08/2020
Delivery Units,Adults and Health,Other Services,1003437102,Recruitment Team Nine Limited,270.00,19/08/2020
Delivery Units,Adults and Health,Other Services,1003554801,Recruitment Team Nine Limited,270.00,24/08/2020
Delivery Units,Adults and Health,Other Services,1003555601,Recruitment Team Nine Limited,270.00,24/08/2020
Delivery Units,Adults and Health,Other Services,1003559301,Recruitment Team Nine Limited,270.00,24/08/2020
Delivery Units,Adults and Health,Other Services,1003559901,Recruitment Team Nine Limited,270.00,24/08/2020
Delivery Units,Adults and Health,Other Services,1003560101,Recruitment Team Nine Limited,270.00,24/08/2020
Delivery Units,Adults and Health,Other Services,1003482701,Care Analytics Ltd,"2,500.00",19/08/2020
Delivery Units,Adults and Health,Other Agencies - Third Party P,90277661,JEWISH CARE,420.87,04/08/2020
Delivery Units,Adults and Health,Other Agencies - Third Party P,90277663,JEWISH CARE,815.90,04/08/2020
Delivery Units,Adults and Health,Other Agencies - Third Party P,90283614,JEWISH CARE,"2,727.16",21/08/2020
Delivery Units,Adults and Health,Other Agencies - Third Party P,90283615,JEWISH CARE,"2,478.24",21/08/2020
Delivery Units,Adults and Health,Other Agencies - Third Party P,90283619,JEWISH CARE,"2,478.24",21/08/2020
Delivery Units,Adults and Health,Other Agencies - Third Party P,90283624,JEWISH CARE,"2,727.16",21/08/2020
Delivery Units,Adults and Health,Other Agencies - Third Party P,90283633,JEWISH CARE,"2,478.24",21/08/2020
Delivery Units,Adults and Health,Other Agencies - Third Party P,90283643,JEWISH CARE,"2,478.24",21/08/2020
Delivery Units,Adults and Health,Other Agencies - Third Party P,90283644,JEWISH CARE,"2,380.92",21/08/2020
Delivery Units,Adults and Health,Other Agencies - Third Party P,90283651,JEWISH CARE,"3,086.24",21/08/2020
Delivery Units,Adults and Health,Other Agencies - Third Party P,90283653,JEWISH CARE,"2,727.16",21/08/2020
Delivery Units,Adults and Health,Other Agencies - Third Party P,90283674,JEWISH CARE,"8,682.28",21/08/2020
Delivery Units,Adults and Health,Other Agencies - Third Party P,90283678,JEWISH CARE,"2,478.24",21/08/2020
Delivery Units,Adults and Health,Other Agencies - Third Party P,90283682,JEWISH CARE,"2,727.16",21/08/2020
Delivery Units,Adults and Health,Other Agencies - Third Party P,90283684,JEWISH CARE,"2,727.16",21/08/2020
Delivery Units,Adults and Health,Other Agencies - Third Party P,90283694,JEWISH CARE,"2,727.16",21/08/2020
Delivery Units,Adults and Health,Other Agencies - Third Party P,90283695,JEWISH CARE,"3,489.64",21/08/2020
Delivery Units,Adults and Health,Other Agencies - Third Party P,90283697,JEWISH CARE,"2,478.24",21/08/2020
Delivery Units,Adults and Health,Other Agencies - Third Party P,90283708,JEWISH CARE,"2,478.24",21/08/2020
Delivery Units,Adults and Health,Other Agencies - Third Party P,90283709,JEWISH CARE,"2,478.24",21/08/2020
Delivery Units,Adults and Health,Other Agencies - Third Party P,90283716,JEWISH CARE,"2,478.24",21/08/2020
Delivery Units,Adults and Health,Other Agencies - Third Party P,90277791,CEDARS NURSING HOME,"4,071.43",05/08/2020
Delivery Units,Adults and Health,Other Agencies - Third Party P,90277796,CEDARS NURSING HOME,"4,207.14",05/08/2020
Delivery Units,Adults and Health,Other Agencies - Third Party P,90277797,CEDARS NURSING HOME,"2,869.29",05/08/2020
Delivery Units,Adults and Health,Other Agencies - Third Party P,90277798,CEDARS NURSING HOME,"2,964.93",05/08/2020
Delivery Units,Adults and Health,Other Agencies - Third Party P,90277799,CEDARS NURSING HOME,"2,526.69",05/08/2020
Delivery Units,Adults and Health,Other Agencies - Third Party P,90277800,CEDARS NURSING HOME,"2,610.91",05/08/2020
Delivery Units,Adults and Health,Other Agencies - Third Party P,90277801,CEDARS NURSING HOME,"3,792.86",05/08/2020
Delivery Units,Adults and Health,Other Agencies - Third Party P,90277802,CEDARS NURSING HOME,"3,919.29",05/08/2020
Delivery Units,Adults and Health,Other Agencies - Third Party P,90277806,CEDARS NURSING HOME,"-2,228.57",05/08/2020
Delivery Units,Adults and Health,Other Agencies - Third Party P,90277808,CEDARS NURSING HOME,"4,285.71",05/08/2020
Delivery Units,Adults and Health,Other Agencies - Third Party P,90277809,CEDARS NURSING HOME,"4,428.57",05/08/2020
Delivery Units,Adults and Health,Other Agencies - Third Party P,90277854,BUPA NURSING HOMES LTD - ARKLEY,953.67,05/08/2020
Delivery Units,Adults and Health,Other Agencies - Third Party P,90277855,BUPA NURSING HOMES LTD - ARKLEY,"3,337.84",05/08/2020
Delivery Units,Adults and Health,Other Agencies - Third Party P,90277856,BUPA NURSING HOMES LTD - ARKLEY,596.04,05/08/2020
Delivery Units,Adults and Health,Other Agencies - Third Party P,90278286,BUPA NURSING HOMES LTD - ARKLEY,"2,945.00",06/08/2020
Delivery Units,Adults and Health,Other Agencies - Third Party P,90278287,BUPA NURSING HOMES LTD - ARKLEY,"2,945.00",06/08/2020
Delivery Units,Adults and Health,Other Agencies - Third Party P,90278288,BUPA NURSING HOMES LTD - ARKLEY,"2,945.00",06/08/2020
Delivery Units,Adults and Health,Other Agencies - Third Party P,90278290,BUPA NURSING HOMES LTD - ARKLEY,"2,945.00",06/08/2020
Delivery Units,Adults and Health,Other Agencies - Third Party P,90278291,BUPA NURSING HOMES LTD - ARKLEY,"2,945.00",06/08/2020
Delivery Units,Adults and Health,Other Agencies - Third Party P,90278292,BUPA NURSING HOMES LTD - ARKLEY,"2,945.00",06/08/2020
Delivery Units,Adults and Health,Other Agencies - Third Party P,90278298,BUPA NURSING HOMES LTD - ARKLEY,"5,045.24",06/08/2020
Delivery Units,Adults and Health,Other Agencies - Third Party P,90278299,BUPA NURSING HOMES LTD - ARKLEY,"4,400.00",06/08/2020
Delivery Units,Adults and Health,Other Agencies - Third Party P,90278300,BUPA NURSING HOMES LTD - ARKLEY,"2,265.36",06/08/2020
Delivery Units,Adults and Health,Other Agencies - Third Party P,90278301,BUPA NURSING HOMES LTD - ARKLEY,"3,337.76",06/08/2020
Delivery Units,Adults and Health,Other Agencies - Third Party P,90280449,BUPA NURSING HOMES LTD - ARKLEY,"3,800.00",17/08/2020
Delivery Units,Adults and Health,Other Agencies - Third Party P,90280450,BUPA NURSING HOMES LTD - ARKLEY,"4,400.00",17/08/2020
Delivery Units,Adults and Health,Other Agencies - Third Party P,90280451,BUPA NURSING HOMES LTD - ARKLEY,"2,265.36",17/08/2020
Delivery Units,Adults and Health,Other Agencies - Third Party P,90280452,BUPA NURSING HOMES LTD - ARKLEY,"3,337.76",17/08/2020
Delivery Units,Adults and Health,Other Agencies - Third Party P,90278198,AGUDAS ISRAEL HOUSING ASSCTN LTD,"2,736.86",05/08/2020
Delivery Units,Adults and Health,Other Agencies - Third Party P,90281905,WESTMINSTER HEALTH CARE LTD,"4,942.64",18/08/2020
Delivery Units,Adults and Health,Other Agencies - Third Party P,90281906,WESTMINSTER HEALTH CARE LTD,"2,064.07",18/08/2020
Delivery Units,Adults and Health,Other Agencies - Third Party P,90281907,WESTMINSTER HEALTH CARE LTD,"5,022.00",18/08/2020
Delivery Units,Adults and Health,Other Agencies - Third Party P,90283613,HENRY NIHILL HOUSE,"2,265.36",21/08/2020
Delivery Units,Adults and Health,Other Agencies - Third Party P,90283632,HENRY NIHILL HOUSE,"2,358.24",21/08/2020
Delivery Units,Adults and Health,Other Agencies - Third Party P,90283642,HENRY NIHILL HOUSE,"2,265.36",21/08/2020
Delivery Units,Adults and Health,Other Agencies - Third Party P,90283685,HENRY NIHILL HOUSE,"5,400.00",21/08/2020
Delivery Units,Adults and Health,Other Agencies - Third Party P,90284580,LIFESTYLE CARE PLC,"2,920.38",27/08/2020
Delivery Units,Adults and Health,Other Agencies - Third Party P,90284582,LIFESTYLE CARE PLC,"1,507.29",27/08/2020
Delivery Units,Adults and Health,Other Agencies - Third Party P,90284583,LIFESTYLE CARE PLC,"2,920.38",27/08/2020
Delivery Units,Adults and Health,Other Agencies - Third Party P,90284584,LIFESTYLE CARE PLC,"2,920.38",27/08/2020
Delivery Units,Adults and Health,Other Agencies - Third Party P,90284585,LIFESTYLE CARE PLC,"2,920.38",27/08/2020
Delivery Units,Adults and Health,Other Agencies - Third Party P,90284586,LIFESTYLE CARE PLC,"2,920.38",27/08/2020
Delivery Units,Adults and Health,Other Agencies - Third Party P,90284587,LIFESTYLE CARE PLC,753.65,27/08/2020
Delivery Units,Adults and Health,Other Agencies - Third Party P,90284588,LIFESTYLE CARE PLC,"2,920.38",27/08/2020
Delivery Units,Adults and Health,Other Agencies - Third Party P,90284590,LIFESTYLE CARE PLC,"2,920.38",27/08/2020
Delivery Units,Adults and Health,Other Agencies - Third Party P,90284591,LIFESTYLE CARE PLC,"2,920.38",27/08/2020
Delivery Units,Adults and Health,Other Agencies - Third Party P,90281885,CARETECH COMMUNITY SERVICES LTD,"4,975.59",18/08/2020
Delivery Units,Adults and Health,Other Agencies - Third Party P,90282519,CARETECH COMMUNITY SERVICES LTD,"4,975.59",19/08/2020
Delivery Units,Adults and Health,Other Agencies - Third Party P,90283719,CARETECH COMMUNITY SERVICES LTD,"4,926.34",21/08/2020
Delivery Units,Adults and Health,Other Agencies - Third Party P,90278520,SONESTA NURSING HOME LTD.,"2,834.29",10/08/2020
Delivery Units,Adults and Health,Other Agencies - Third Party P,90278522,SONESTA NURSING HOME LTD.,"2,834.29",10/08/2020
Delivery Units,Adults and Health,Other Agencies - Third Party P,90278524,SONESTA NURSING HOME LTD.,"2,834.29",10/08/2020
Delivery Units,Adults and Health,Other Agencies - Third Party P,90278525,SONESTA NURSING HOME LTD.,"2,834.29",10/08/2020
Delivery Units,Adults and Health,Other Agencies - Third Party P,90278526,SONESTA NURSING HOME LTD.,"2,834.29",10/08/2020
Delivery Units,Adults and Health,Other Agencies - Third Party P,90278527,SONESTA NURSING HOME LTD.,"2,834.29",10/08/2020
Delivery Units,Adults and Health,Other Agencies - Third Party P,90278530,SONESTA NURSING HOME LTD.,"5,668.56",10/08/2020
Delivery Units,Adults and Health,Other Agencies - Third Party P,90284127,SONESTA NURSING HOME LTD.,"2,834.29",24/08/2020
Delivery Units,Adults and Health,Other Agencies - Third Party P,90284129,SONESTA NURSING HOME LTD.,"2,834.29",24/08/2020
Delivery Units,Adults and Health,Other Agencies - Third Party P,90284131,SONESTA NURSING HOME LTD.,"2,834.29",24/08/2020
Delivery Units,Adults and Health,Other Agencies - Third Party P,90284132,SONESTA NURSING HOME LTD.,"2,834.29",24/08/2020
Delivery Units,Adults and Health,Other Agencies - Third Party P,90284133,SONESTA NURSING HOME LTD.,"2,834.29",24/08/2020
Delivery Units,Adults and Health,Other Agencies - Third Party P,90284134,SONESTA NURSING HOME LTD.,"2,834.29",24/08/2020
Delivery Units,Adults and Health,Other Agencies - Third Party P,90284136,SONESTA NURSING HOME LTD.,365.71,24/08/2020
Delivery Units,Adults and Health,Other Agencies - Third Party P,90284137,SONESTA NURSING HOME LTD.,"2,834.29",24/08/2020
Delivery Units,Adults and Health,Other Agencies - Third Party P,90284609,MEERA NURSING HOME LIMITED,"2,445.68",27/08/2020
Delivery Units,Adults and Health,Other Agencies - Third Party P,90284610,MEERA NURSING HOME LIMITED,"3,100.00",27/08/2020
Delivery Units,Adults and Health,Other Agencies - Third Party P,90284611,MEERA NURSING HOME LIMITED,"2,445.68",27/08/2020
Delivery Units,Adults and Health,Other Agencies - Third Party P,90284612,MEERA NURSING HOME LIMITED,"3,506.72",27/08/2020
Delivery Units,Adults and Health,Other Agencies - Third Party P,90284282,NEWCENTURY CARE LTD,"6,451.43",24/08/2020
Delivery Units,Adults and Health,Other Agencies - Third Party P,90284651,NEWCENTURY CARE LTD,"3,494.12",27/08/2020
Delivery Units,Adults and Health,Other Agencies - Third Party P,90284652,NEWCENTURY CARE LTD,"4,028.48",27/08/2020
Delivery Units,Adults and Health,Other Agencies - Third Party P,90284653,NEWCENTURY CARE LTD,"3,232.00",27/08/2020
Delivery Units,Adults and Health,Other Agencies - Third Party P,90284654,NEWCENTURY CARE LTD,"3,400.00",27/08/2020
Delivery Units,Adults and Health,Other Agencies - Third Party P,90278284,BUPA CARE HOMES,367.84,06/08/2020
Delivery Units,Adults and Health,Other Agencies - Third Party P,90278293,BUPA CARE HOMES,"2,945.00",06/08/2020
Delivery Units,Adults and Health,Other Agencies - Third Party P,90278294,BUPA CARE HOMES,"2,945.00",06/08/2020
Delivery Units,Adults and Health,Other Agencies - Third Party P,90278295,BUPA CARE HOMES,"2,945.00",06/08/2020
Delivery Units,Adults and Health,Other Agencies - Third Party P,90278296,BUPA CARE HOMES,"2,945.00",06/08/2020
Delivery Units,Adults and Health,Other Agencies - Third Party P,90278398,BUPA CARE HOMES,"1,600.00",07/08/2020
Delivery Units,Adults and Health,Other Agencies - Third Party P,90278519,BUPA CARE HOMES,276.08,10/08/2020
Delivery Units,Adults and Health,Other Agencies - Third Party P,90278533,BUPA CARE HOMES,"4,207.14",10/08/2020
Delivery Units,Adults and Health,Other Agencies - Third Party P,90278534,BUPA CARE HOMES,"4,071.43",10/08/2020
Delivery Units,Adults and Health,Other Agencies - Third Party P,90278535,BUPA CARE HOMES,"3,935.71",10/08/2020
Delivery Units,Adults and Health,Other Agencies - Third Party P,90278536,BUPA CARE HOMES,"4,071.43",10/08/2020
Delivery Units,Adults and Health,Other Agencies - Third Party P,90278537,BUPA CARE HOMES,"4,207.14",10/08/2020
Delivery Units,Adults and Health,Other Agencies - Third Party P,90278759,BUPA CARE HOMES,"4,207.14",11/08/2020
Delivery Units,Adults and Health,Other Agencies - Third Party P,90284596,BUPA CARE HOMES,"2,321.43",27/08/2020
Delivery Units,Adults and Health,Other Agencies - Third Party P,90277850,BUPA CARE HOMES,"2,470.00",05/08/2020
Delivery Units,Adults and Health,Other Agencies - Third Party P,90277851,BUPA CARE HOMES,475.00,05/08/2020
Delivery Units,Adults and Health,Other Agencies - Third Party P,90277852,BUPA CARE HOMES,"2,850.00",05/08/2020
Delivery Units,Adults and Health,Other Agencies - Third Party P,90277853,BUPA CARE HOMES,"1,330.00",05/08/2020
Delivery Units,Adults and Health,Other Agencies - Third Party P,90277813,ASPEN VILLAGES LTD,"2,657.14",05/08/2020
Delivery Units,Adults and Health,Other Agencies - Third Party P,90277814,ASPEN VILLAGES LTD,"2,571.43",05/08/2020
Delivery Units,Adults and Health,Other Agencies - Third Party P,90277815,ASPEN VILLAGES LTD,"2,657.14",05/08/2020
Delivery Units,Adults and Health,Other Agencies - Third Party P,90278258,FOUR SEASONS HEALTH CARE,"2,560.00",06/08/2020
Delivery Units,Adults and Health,Other Agencies - Third Party P,90278259,FOUR SEASONS HEALTH CARE,"2,560.00",06/08/2020
Delivery Units,Adults and Health,Other Agencies - Third Party P,90278260,FOUR SEASONS HEALTH CARE,"1,828.57",06/08/2020
Delivery Units,Adults and Health,Other Agencies - Third Party P,90278261,FOUR SEASONS HEALTH CARE,274.29,06/08/2020
Delivery Units,Adults and Health,Other Agencies - Third Party P,90278262,FOUR SEASONS HEALTH CARE,182.86,06/08/2020
Delivery Units,Adults and Health,Other Agencies - Third Party P,90278263,FOUR SEASONS HEALTH CARE,182.86,06/08/2020
Delivery Units,Adults and Health,Other Agencies - Third Party P,90280446,FOUR SEASONS HEALTH CARE,"2,194.29",17/08/2020
Delivery Units,Adults and Health,Other Agencies - Third Party P,90280447,FOUR SEASONS HEALTH CARE,"11,611.42",17/08/2020
Delivery Units,Adults and Health,Other Agencies - Third Party P,90282114,FOUR SEASONS HEALTH CARE,"2,560.00",18/08/2020
Delivery Units,Adults and Health,Other Agencies - Third Party P,90282116,FOUR SEASONS HEALTH CARE,"2,560.00",18/08/2020
Delivery Units,Adults and Health,Other Agencies - Third Party P,90282118,FOUR SEASONS HEALTH CARE,"2,560.00",18/08/2020
Delivery Units,Adults and Health,Other Agencies - Third Party P,90282119,FOUR SEASONS HEALTH CARE,"2,560.00",18/08/2020
Delivery Units,Adults and Health,Other Agencies - Third Party P,90282120,FOUR SEASONS HEALTH CARE,"2,560.00",18/08/2020
Delivery Units,Adults and Health,Other Agencies - Third Party P,90282121,FOUR SEASONS HEALTH CARE,"2,560.00",18/08/2020
Delivery Units,Adults and Health,Other Agencies - Third Party P,90282123,FOUR SEASONS HEALTH CARE,"2,560.00",18/08/2020
Delivery Units,Adults and Health,Other Agencies - Third Party P,90282124,FOUR SEASONS HEALTH CARE,"2,560.00",18/08/2020
Delivery Units,Adults and Health,Other Agencies - Third Party P,90282125,FOUR SEASONS HEALTH CARE,"2,560.00",18/08/2020
Delivery Units,Adults and Health,Other Agencies - Third Party P,90282126,FOUR SEASONS HEALTH CARE,"2,560.00",18/08/2020
Delivery Units,Adults and Health,Other Agencies - Third Party P,90282127,FOUR SEASONS HEALTH CARE,"2,560.00",18/08/2020
Delivery Units,Adults and Health,Other Agencies - Third Party P,90282128,FOUR SEASONS HEALTH CARE,"2,560.00",18/08/2020
Delivery Units,Adults and Health,Other Agencies - Third Party P,90282130,FOUR SEASONS HEALTH CARE,"2,560.00",18/08/2020
Delivery Units,Adults and Health,Other Agencies - Third Party P,90282131,FOUR SEASONS HEALTH CARE,"2,560.00",18/08/2020
Delivery Units,Adults and Health,Other Agencies - Third Party P,90277792,SANCTUARY CARE LTD,"2,459.10",05/08/2020
Delivery Units,Adults and Health,Other Agencies - Third Party P,90277793,SANCTUARY CARE LTD,"2,541.07",05/08/2020
Delivery Units,Adults and Health,Other Agencies - Third Party P,90277794,SANCTUARY CARE LTD,"2,459.10",05/08/2020
Delivery Units,Adults and Health,Other Agencies - Third Party P,90277795,SANCTUARY CARE LTD,"2,541.07",05/08/2020
Delivery Units,Adults and Health,Other Agencies - Third Party P,90284655,SANCTUARY CARE LTD,"2,541.07",27/08/2020
Delivery Units,Adults and Health,Other Agencies - Third Party P,90278277,BUPA CARE HOMES,"3,210.71",06/08/2020
Delivery Units,Adults and Health,Other Agencies - Third Party P,90278279,BUPA CARE HOMES,"3,651.98",06/08/2020
Delivery Units,Adults and Health,Other Agencies - Third Party P,90278282,BUPA CARE HOMES,"2,760.20",06/08/2020
Delivery Units,Adults and Health,Other Agencies - Third Party P,90277866,SAGE NURSING HOME,"4,207.14",05/08/2020
Delivery Units,Adults and Health,Other Agencies - Third Party P,90277869,SAGE NURSING HOME,"2,610.91",05/08/2020
Delivery Units,Adults and Health,Other Agencies - Third Party P,90283777,ST VINCENTS NURSING HOME,"1,754.38",21/08/2020
Delivery Units,Adults and Health,Other Agencies - Third Party P,90283778,ST VINCENTS NURSING HOME,"6,642.86",21/08/2020
Delivery Units,Adults and Health,Other Agencies - Third Party P,90285085,APPLE TREE COURT CARE HOME,"2,760.20",27/08/2020
Delivery Units,Adults and Health,Other Agencies - Third Party P,90285086,APPLE TREE COURT CARE HOME,"4,167.29",27/08/2020
Delivery Units,Adults and Health,Other Agencies - Third Party P,90285090,APPLE TREE COURT CARE HOME,"4,207.14",27/08/2020
Delivery Units,Adults and Health,Other Agencies - Third Party P,90285091,APPLE TREE COURT CARE HOME,"4,871.43",27/08/2020
Delivery Units,Adults and Health,Other Agencies - Third Party P,90285092,APPLE TREE COURT CARE HOME,"3,985.71",27/08/2020
Delivery Units,Adults and Health,Other Agencies - Third Party P,90278388,AUTUMN GARDENS,"3,440.00",07/08/2020
Delivery Units,Adults and Health,Other Agencies - Third Party P,90284627,CARE UK COMMUNITY PARTNERSHIPS,"9,271.43",27/08/2020
Delivery Units,Adults and Health,Other Agencies - Third Party P,90284628,CARE UK COMMUNITY PARTNERSHIPS,"4,714.29",27/08/2020
Delivery Units,Adults and Health,Other Agencies - Third Party P,90284629,CARE UK COMMUNITY PARTNERSHIPS,"4,557.14",27/08/2020
Delivery Units,Adults and Health,Other Agencies - Third Party P,90278285,SUNRISE SENIOR LIVING,"6,382.28",06/08/2020
Delivery Units,Adults and Health,Other Agencies - Third Party P,90280434,ABBEY RAVENSCROFT PARK NURSING HOME,"3,428.57",17/08/2020
Delivery Units,Adults and Health,Other Agencies - Third Party P,90277519,CARLTON COURT (TLC GROUP),"5,785.71",04/08/2020
Delivery Units,Adults and Health,Other Agencies - Third Party P,90282484,CARLTON COURT (TLC GROUP),"5,978.57",19/08/2020
Delivery Units,Adults and Health,Other Agencies - Third Party P,90282490,CARLTON COURT (TLC GROUP),"3,736.61",19/08/2020
Delivery Units,Adults and Health,Other Agencies - Third Party P,90282497,CARLTON COURT (TLC GROUP),"2,448.78",19/08/2020
Delivery Units,Adults and Health,Other Agencies - Third Party P,90282498,CARLTON COURT (TLC GROUP),"3,764.29",19/08/2020
Delivery Units,Adults and Health,Other Agencies - Third Party P,90282499,CARLTON COURT (TLC GROUP),"4,428.57",19/08/2020
Delivery Units,Adults and Health,Other Agencies - Third Party P,90285214,ASHTON LODGE CARE CENTRE,"3,779.34",28/08/2020
Delivery Units,Adults and Health,Other Agencies - Third Party P,90285216,ASHTON LODGE CARE CENTRE,"3,158.59",28/08/2020
Delivery Units,Adults and Health,Other Agencies - Third Party P,90285217,ASHTON LODGE CARE CENTRE,"5,245.38",28/08/2020
Delivery Units,Adults and Health,Other Agencies - Third Party P,90285218,ASHTON LODGE CARE CENTRE,"4,436.37",28/08/2020
Delivery Units,Adults and Health,Other Agencies - Third Party P,90285219,ASHTON LODGE CARE CENTRE,"3,642.32",28/08/2020
Delivery Units,Adults and Health,Other Agencies - Third Party P,90285221,ASHTON LODGE CARE CENTRE,"4,359.66",28/08/2020
Delivery Units,Adults and Health,Other Agencies - Third Party P,90285222,ASHTON LODGE CARE CENTRE,"3,391.67",28/08/2020
Delivery Units,Adults and Health,Other Agencies - Third Party P,90285223,ASHTON LODGE CARE CENTRE,"3,846.97",28/08/2020
Delivery Units,Adults and Health,Other Agencies - Third Party P,90285225,ASHTON LODGE CARE CENTRE,"3,541.79",28/08/2020
Delivery Units,Adults and Health,Other Agencies - Third Party P,90285228,ASHTON LODGE CARE CENTRE,"3,164.04",28/08/2020
Delivery Units,Adults and Health,Other Agencies - Third Party P,90285230,ASHTON LODGE CARE CENTRE,"3,695.38",28/08/2020
Delivery Units,Adults and Health,Other Agencies - Third Party P,90285231,ASHTON LODGE CARE CENTRE,"2,923.96",28/08/2020
Delivery Units,Adults and Health,Other Agencies - Third Party P,90285233,ASHTON LODGE CARE CENTRE,"-1,142.51",28/08/2020
Delivery Units,Adults and Health,Other Agencies - Third Party P,90285234,ASHTON LODGE CARE CENTRE,"-5,258.21",28/08/2020
Delivery Units,Adults and Health,Other Agencies - Third Party P,90285235,ASHTON LODGE CARE CENTRE,"3,018.60",28/08/2020
Delivery Units,Adults and Health,Other Agencies - Third Party P,90281950,WESTGATE HOUSE CARE CENTRE,"3,725.76",18/08/2020
Delivery Units,Adults and Health,Other Agencies - Third Party P,90280436,BIRCHWOOD GRANGE CARE HOME,"3,214.29",17/08/2020
Delivery Units,Adults and Health,Other Agencies - Third Party P,90280448,BIRCHWOOD GRANGE CARE HOME,"3,321.43",17/08/2020
Delivery Units,Adults and Health,Other Agencies - Third Party P,90281968,Victoria Care Centre,"2,958.95",18/08/2020
Delivery Units,Adults and Health,Other Agencies - Third Party P,90282501,Karuna Manor,"4,207.14",19/08/2020
Delivery Units,Adults and Health,Other Agencies - Third Party P,90282502,Karuna Manor,"4,392.43",19/08/2020
Delivery Units,Adults and Health,Other Agencies - Third Party P,90282503,Karuna Manor,"2,373.71",19/08/2020
Delivery Units,Adults and Health,Other Agencies - Third Party P,90278306,St Anns Home-Little Sisters of the Poor,"2,421.68",06/08/2020
Delivery Units,Adults and Health,Other Agencies - Third Party P,90281939,Adara Healthcare Ltd,"3,400.00",18/08/2020
Delivery Units,Adults and Health,Other Agencies - Third Party P,90277382,Aarandale Manor Care Home,"1,525.71",04/08/2020
Delivery Units,Adults and Health,Other Agencies - Third Party P,90277383,Aarandale Manor Care Home,"1,525.71",04/08/2020
Delivery Units,Adults and Health,Other Agencies - Third Party P,90277384,Aarandale Manor Care Home,"1,525.71",04/08/2020
Delivery Units,Adults and Health,Other Agencies - Third Party P,90277385,Aarandale Manor Care Home,"1,525.71",04/08/2020
Delivery Units,Adults and Health,Other Agencies - Third Party P,90277387,Aarandale Manor Care Home,"1,525.71",04/08/2020
Delivery Units,Adults and Health,Other Agencies - Third Party P,90277388,Aarandale Manor Care Home,"1,525.71",04/08/2020
Delivery Units,Adults and Health,Other Agencies - Third Party P,90277776,Aarandale Manor Care Home,"3,257.14",05/08/2020
Delivery Units,Adults and Health,Other Agencies - Third Party P,90277777,Aarandale Manor Care Home,"3,257.14",05/08/2020
Delivery Units,Adults and Health,Other Agencies - Third Party P,90277778,Aarandale Manor Care Home,"3,257.14",05/08/2020
Delivery Units,Adults and Health,Other Agencies - Third Party P,90277780,Aarandale Manor Care Home,"3,257.14",05/08/2020
Delivery Units,Adults and Health,Other Agencies - Third Party P,90277781,Aarandale Manor Care Home,"3,257.14",05/08/2020
Delivery Units,Adults and Health,Other Agencies - Third Party P,90277782,Aarandale Manor Care Home,"3,257.14",05/08/2020
Delivery Units,Adults and Health,Other Agencies - Third Party P,90277783,Aarandale Manor Care Home,"3,257.14",05/08/2020
Delivery Units,Adults and Health,Other Agencies - Third Party P,90277790,Aarandale Manor Care Home,718.08,05/08/2020
Delivery Units,Adults and Health,Other Agencies - Third Party P,90278538,Bondcare (London 2),"2,575.00",10/08/2020
Delivery Units,Adults and Health,Other Agencies - Third Party P,90278539,Bondcare (London 2),"2,575.00",10/08/2020
Delivery Units,Adults and Health,Other Agencies - Third Party P,90278540,Bondcare (London 2),"2,575.00",10/08/2020
Delivery Units,Adults and Health,Other Agencies - Third Party P,90278541,Bondcare (London 2),"-1,103.57",10/08/2020
Delivery Units,Adults and Health,Other Agencies - Third Party P,90278542,Bondcare (London 2),"2,575.00",10/08/2020
Delivery Units,Adults and Health,Other Agencies - Third Party P,90278543,Bondcare (London 2),"2,575.00",10/08/2020
Delivery Units,Adults and Health,Other Agencies - Third Party P,90278544,Bondcare (London 2),"2,575.00",10/08/2020
Delivery Units,Adults and Health,Other Agencies - Third Party P,90277397,HC-One Oval LTD,"2,368.62",04/08/2020
Delivery Units,Adults and Health,Other Agencies - Third Party P,90277398,HC-One Oval LTD,"2,368.62",04/08/2020
Delivery Units,Adults and Health,Other Agencies - Third Party P,90277399,HC-One Oval LTD,"2,292.21",04/08/2020
Delivery Units,Adults and Health,Other Agencies - Third Party P,90277811,Alliance Care (Dales Homes) Limited,"3,764.29",05/08/2020
Delivery Units,Adults and Health,Other Agencies - Third Party P,90277812,Alliance Care (Dales Homes) Limited,"1,942.86",05/08/2020
Delivery Units,Adults and Health,Other Agencies - Third Party P,90281943,HC One Beamish Ltd,"2,624.19",18/08/2020
Delivery Units,Adults and Health,Other Agencies - Third Party P,90282504,Barchester Healthcare Homes Ltd (Brook,"4,207.14",19/08/2020
Delivery Units,Adults and Health,Other Agencies - Third Party P,90280433,East Anglia Care Homes Ltd (Halvergate H,"2,580.00",31/08/2020
Delivery Units,Adults and Health,Other Agencies - Third Party P,90283721,DR FRENCH MEMORIAL HOME LTD,"2,601.88",21/08/2020
Delivery Units,Adults and Health,Other Agencies - Third Party P,90283722,DR FRENCH MEMORIAL HOME LTD,"3,542.86",21/08/2020
Delivery Units,Adults and Health,Other Agencies - Third Party P,90283723,DR FRENCH MEMORIAL HOME LTD,"3,542.86",21/08/2020
Delivery Units,Adults and Health,Other Agencies - Third Party P,90283724,DR FRENCH MEMORIAL HOME LTD,"3,764.29",21/08/2020
Delivery Units,Adults and Health,Other Agencies - Third Party P,90283725,DR FRENCH MEMORIAL HOME LTD,"3,764.29",21/08/2020
Delivery Units,Adults and Health,Other Agencies - Third Party P,90283726,DR FRENCH MEMORIAL HOME LTD,"11,171.44",21/08/2020
Delivery Units,Adults and Health,Other Agencies - Third Party P,90283727,DR FRENCH MEMORIAL HOME LTD,"11,050.01",21/08/2020
Delivery Units,Adults and Health,Other Agencies - Third Party P,90283728,DR FRENCH MEMORIAL HOME LTD,"1,457.14",21/08/2020
Delivery Units,Adults and Health,Other Agencies - Third Party P,90283729,DR FRENCH MEMORIAL HOME LTD,"2,601.88",21/08/2020
Delivery Units,Adults and Health,Other Agencies - Third Party P,90283730,DR FRENCH MEMORIAL HOME LTD,"3,542.86",21/08/2020
Delivery Units,Adults and Health,Other Agencies - Third Party P,90283731,DR FRENCH MEMORIAL HOME LTD,"3,542.86",21/08/2020
Delivery Units,Adults and Health,Other Agencies - Third Party P,90283732,DR FRENCH MEMORIAL HOME LTD,"3,764.29",21/08/2020
Delivery Units,Adults and Health,Other Agencies - Third Party P,90283733,DR FRENCH MEMORIAL HOME LTD,"3,764.29",21/08/2020
Delivery Units,Adults and Health,Other Agencies - Third Party P,90283773,DR FRENCH MEMORIAL HOME LTD,"2,064.29",21/08/2020
Delivery Units,Adults and Health,Other Agencies - Third Party P,90283992,DR FRENCH MEMORIAL HOME LTD,121.43,21/08/2020
Delivery Units,Adults and Health,Other Agencies - Third Party P,90283993,DR FRENCH MEMORIAL HOME LTD,121.43,21/08/2020
Delivery Units,Adults and Health,Other Agencies - Third Party P,90283994,DR FRENCH MEMORIAL HOME LTD,121.43,21/08/2020
Delivery Units,Adults and Health,Other Agencies - Third Party P,90283995,DR FRENCH MEMORIAL HOME LTD,121.43,21/08/2020
Delivery Units,Adults and Health,Other Agencies - Third Party P,90283997,DR FRENCH MEMORIAL HOME LTD,121.42,21/08/2020
Delivery Units,Adults and Health,Other Agencies - Third Party P,90283979,ROSEACRES CARE HOME LIMITED,"2,550.86",21/08/2020
Delivery Units,Adults and Health,Other Agencies - Third Party P,90283980,ROSEACRES CARE HOME LIMITED,"2,550.86",21/08/2020
Delivery Units,Adults and Health,Other Agencies - Third Party P,90283981,ROSEACRES CARE HOME LIMITED,"3,764.29",21/08/2020
Delivery Units,Adults and Health,Other Agencies - Third Party P,90283982,ROSEACRES CARE HOME LIMITED,"2,550.86",21/08/2020
Delivery Units,Adults and Health,Other Agencies - Third Party P,90283983,ROSEACRES CARE HOME LIMITED,"2,550.86",21/08/2020
Delivery Units,Adults and Health,Other Agencies - Third Party P,90283984,ROSEACRES CARE HOME LIMITED,"2,988.53",21/08/2020
Delivery Units,Adults and Health,Other Agencies - Third Party P,90283985,ROSEACRES CARE HOME LIMITED,"3,321.43",21/08/2020
Delivery Units,Adults and Health,Other Agencies - Third Party P,90283986,ROSEACRES CARE HOME LIMITED,"3,321.43",21/08/2020
Delivery Units,Adults and Health,Other Agencies - Third Party P,90283989,ROSEACRES CARE HOME LIMITED,"3,764.29",21/08/2020
Delivery Units,Adults and Health,Other Agencies - Third Party P,90283990,ROSEACRES CARE HOME LIMITED,"2,550.86",21/08/2020
Delivery Units,Adults and Health,Other Agencies - Third Party P,90283991,ROSEACRES CARE HOME LIMITED,"3,321.43",21/08/2020
Delivery Units,Adults and Health,Other Agencies - Third Party P,90283744,ELEANOR PALMER TRUST NO 2 A/C.,"3,321.43",21/08/2020
Delivery Units,Adults and Health,Other Agencies - Third Party P,90283745,ELEANOR PALMER TRUST NO 2 A/C.,"3,321.43",21/08/2020
Delivery Units,Adults and Health,Other Agencies - Third Party P,90283746,ELEANOR PALMER TRUST NO 2 A/C.,"3,321.43",21/08/2020
Delivery Units,Adults and Health,Other Agencies - Third Party P,90283747,ELEANOR PALMER TRUST NO 2 A/C.,"3,354.64",21/08/2020
Delivery Units,Adults and Health,Other Agencies - Third Party P,90283748,ELEANOR PALMER TRUST NO 2 A/C.,"3,354.64",21/08/2020
Delivery Units,Adults and Health,Other Agencies - Third Party P,90283749,ELEANOR PALMER TRUST NO 2 A/C.,"3,321.43",21/08/2020
Delivery Units,Adults and Health,Other Agencies - Third Party P,90283750,ELEANOR PALMER TRUST NO 2 A/C.,"2,630.35",21/08/2020
Delivery Units,Adults and Health,Other Agencies - Third Party P,90283751,ELEANOR PALMER TRUST NO 2 A/C.,"2,630.35",21/08/2020
Delivery Units,Adults and Health,Other Agencies - Third Party P,90283752,ELEANOR PALMER TRUST NO 2 A/C.,"2,530.13",21/08/2020
Delivery Units,Adults and Health,Other Agencies - Third Party P,90283754,ELEANOR PALMER TRUST NO 2 A/C.,"3,321.43",21/08/2020
Delivery Units,Adults and Health,Other Agencies - Third Party P,90283755,ELEANOR PALMER TRUST NO 2 A/C.,"3,321.43",21/08/2020
Delivery Units,Adults and Health,Other Agencies - Third Party P,90283756,ELEANOR PALMER TRUST NO 2 A/C.,"3,430.46",21/08/2020
Delivery Units,Adults and Health,Other Agencies - Third Party P,90283757,ELEANOR PALMER TRUST NO 2 A/C.,"3,321.43",21/08/2020
Delivery Units,Adults and Health,Other Agencies - Third Party P,90283758,ELEANOR PALMER TRUST NO 2 A/C.,"2,530.13",21/08/2020
Delivery Units,Adults and Health,Other Agencies - Third Party P,90283759,ELEANOR PALMER TRUST NO 2 A/C.,"2,630.35",21/08/2020
Delivery Units,Adults and Health,Other Agencies - Third Party P,90283760,ELEANOR PALMER TRUST NO 2 A/C.,"3,354.64",21/08/2020
Delivery Units,Adults and Health,Other Agencies - Third Party P,90283761,ELEANOR PALMER TRUST NO 2 A/C.,"3,321.43",21/08/2020
Delivery Units,Adults and Health,Other Agencies - Third Party P,90283762,ELEANOR PALMER TRUST NO 2 A/C.,"3,430.46",21/08/2020
Delivery Units,Adults and Health,Other Agencies - Third Party P,90284667,ELM PARK LODGE,"3,242.51",27/08/2020
Delivery Units,Adults and Health,Other Agencies - Third Party P,90277400,SPANISH AND PORTUGUESE JEWISH,"5,190.29",04/08/2020
Delivery Units,Adults and Health,Other Agencies - Third Party P,90285094,SPANISH AND PORTUGUESE JEWISH,"5,190.29",27/08/2020
Delivery Units,Adults and Health,Other Agencies - Third Party P,90282479,TORRINGTON HOMES,"2,249.45",19/08/2020
Delivery Units,Adults and Health,Other Agencies - Third Party P,90282480,TORRINGTON HOMES,"3,764.29",19/08/2020
Delivery Units,Adults and Health,Other Agencies - Third Party P,90282481,TORRINGTON HOMES,"2,448.78",19/08/2020
Delivery Units,Adults and Health,Other Agencies - Third Party P,90281972,THE GRANGE,"3,000.00",18/08/2020
Delivery Units,Adults and Health,Other Agencies - Third Party P,90281973,THE GRANGE,"2,458.20",18/08/2020
Delivery Units,Adults and Health,Other Agencies - Third Party P,90281974,THE GRANGE,"2,600.00",18/08/2020
Delivery Units,Adults and Health,Other Agencies - Third Party P,90281975,THE GRANGE,"3,000.00",18/08/2020
Delivery Units,Adults and Health,Other Agencies - Third Party P,90281978,THE GRANGE,"3,000.00",18/08/2020
Delivery Units,Adults and Health,Other Agencies - Third Party P,90277657,JEWISH CARE,876.83,04/08/2020
Delivery Units,Adults and Health,Other Agencies - Third Party P,90277658,JEWISH CARE,431.30,04/08/2020
Delivery Units,Adults and Health,Other Agencies - Third Party P,90277659,JEWISH CARE,283.86,04/08/2020
Delivery Units,Adults and Health,Other Agencies - Third Party P,90277660,JEWISH CARE,644.56,04/08/2020
Delivery Units,Adults and Health,Other Agencies - Third Party P,90277664,JEWISH CARE,732.96,04/08/2020
Delivery Units,Adults and Health,Other Agencies - Third Party P,90283599,JEWISH CARE,"5,070.40",21/08/2020
Delivery Units,Adults and Health,Other Agencies - Third Party P,90283605,JEWISH CARE,"4,265.48",21/08/2020
Delivery Units,Adults and Health,Other Agencies - Third Party P,90283607,JEWISH CARE,"2,399.56",21/08/2020
Delivery Units,Adults and Health,Other Agencies - Third Party P,90283609,JEWISH CARE,"2,484.56",21/08/2020
Delivery Units,Adults and Health,Other Agencies - Third Party P,90283610,JEWISH CARE,"2,235.54",21/08/2020
Delivery Units,Adults and Health,Other Agencies - Third Party P,90283612,JEWISH CARE,"2,581.00",21/08/2020
Delivery Units,Adults and Health,Other Agencies - Third Party P,90283617,JEWISH CARE,"4,825.16",21/08/2020
Delivery Units,Adults and Health,Other Agencies - Third Party P,90283618,JEWISH CARE,"2,581.00",21/08/2020
Delivery Units,Adults and Health,Other Agencies - Third Party P,90283620,JEWISH CARE,-171.40,21/08/2020
Delivery Units,Adults and Health,Other Agencies - Third Party P,90283621,JEWISH CARE,"2,581.00",21/08/2020
Delivery Units,Adults and Health,Other Agencies - Third Party P,90283622,JEWISH CARE,"2,581.00",21/08/2020
Delivery Units,Adults and Health,Other Agencies - Third Party P,90283623,JEWISH CARE,"-1,456.88",21/08/2020
Delivery Units,Adults and Health,Other Agencies - Third Party P,90283626,JEWISH CARE,"2,581.00",21/08/2020
Delivery Units,Adults and Health,Other Agencies - Third Party P,90283627,JEWISH CARE,"2,581.00",21/08/2020
Delivery Units,Adults and Health,Other Agencies - Third Party P,90283628,JEWISH CARE,"2,581.00",21/08/2020
Delivery Units,Adults and Health,Other Agencies - Third Party P,90283629,JEWISH CARE,"2,581.00",21/08/2020
Delivery Units,Adults and Health,Other Agencies - Third Party P,90283630,JEWISH CARE,"2,581.00",21/08/2020
Delivery Units,Adults and Health,Other Agencies - Third Party P,90283631,JEWISH CARE,"2,399.56",21/08/2020
Delivery Units,Adults and Health,Other Agencies - Third Party P,90283638,JEWISH CARE,"2,399.56",21/08/2020
Delivery Units,Adults and Health,Other Agencies - Third Party P,90283639,JEWISH CARE,"2,399.56",21/08/2020
Delivery Units,Adults and Health,Other Agencies - Third Party P,90283641,JEWISH CARE,294.63,21/08/2020
Delivery Units,Adults and Health,Other Agencies - Third Party P,90283645,JEWISH CARE,"2,581.00",21/08/2020
Delivery Units,Adults and Health,Other Agencies - Third Party P,90283646,JEWISH CARE,"2,399.56",21/08/2020
Delivery Units,Adults and Health,Other Agencies - Third Party P,90283647,JEWISH CARE,"2,399.56",21/08/2020
Delivery Units,Adults and Health,Other Agencies - Third Party P,90283648,JEWISH CARE,"2,399.56",21/08/2020
Delivery Units,Adults and Health,Other Agencies - Third Party P,90283649,JEWISH CARE,"2,581.00",21/08/2020
Delivery Units,Adults and Health,Other Agencies - Third Party P,90283652,JEWISH CARE,"2,455.12",21/08/2020
Delivery Units,Adults and Health,Other Agencies - Third Party P,90283654,JEWISH CARE,"2,581.00",21/08/2020
Delivery Units,Adults and Health,Other Agencies - Third Party P,90283655,JEWISH CARE,921.79,21/08/2020
Delivery Units,Adults and Health,Other Agencies - Third Party P,90283656,JEWISH CARE,"2,399.56",21/08/2020
Delivery Units,Adults and Health,Other Agencies - Third Party P,90283661,JEWISH CARE,"2,581.00",21/08/2020
Delivery Units,Adults and Health,Other Agencies - Third Party P,90283668,JEWISH CARE,"2,581.00",21/08/2020
Delivery Units,Adults and Health,Other Agencies - Third Party P,90283671,JEWISH CARE,"2,581.00",21/08/2020
Delivery Units,Adults and Health,Other Agencies - Third Party P,90283672,JEWISH CARE,"2,484.56",21/08/2020
Delivery Units,Adults and Health,Other Agencies - Third Party P,90283673,JEWISH CARE,"2,399.56",21/08/2020
Delivery Units,Adults and Health,Other Agencies - Third Party P,90283676,JEWISH CARE,"2,399.56",21/08/2020
Delivery Units,Adults and Health,Other Agencies - Third Party P,90283679,JEWISH CARE,"2,581.00",21/08/2020
Delivery Units,Adults and Health,Other Agencies - Third Party P,90283681,JEWISH CARE,"2,399.56",21/08/2020
Delivery Units,Adults and Health,Other Agencies - Third Party P,90283683,JEWISH CARE,"3,800.00",21/08/2020
Delivery Units,Adults and Health,Other Agencies - Third Party P,90283686,JEWISH CARE,"2,581.00",21/08/2020
Delivery Units,Adults and Health,Other Agencies - Third Party P,90283687,JEWISH CARE,"2,581.00",21/08/2020
Delivery Units,Adults and Health,Other Agencies - Third Party P,90283688,JEWISH CARE,"2,581.00",21/08/2020
Delivery Units,Adults and Health,Other Agencies - Third Party P,90283689,JEWISH CARE,"2,581.00",21/08/2020
Delivery Units,Adults and Health,Other Agencies - Third Party P,90283692,JEWISH CARE,"2,581.00",21/08/2020
Delivery Units,Adults and Health,Other Agencies - Third Party P,90283699,JEWISH CARE,"2,581.00",21/08/2020
Delivery Units,Adults and Health,Other Agencies - Third Party P,90283700,JEWISH CARE,"2,399.56",21/08/2020
Delivery Units,Adults and Health,Other Agencies - Third Party P,90283704,JEWISH CARE,"1,751.40",21/08/2020
Delivery Units,Adults and Health,Other Agencies - Third Party P,90283711,JEWISH CARE,"2,581.00",21/08/2020
Delivery Units,Adults and Health,Other Agencies - Third Party P,90283712,JEWISH CARE,"2,581.00",21/08/2020
Delivery Units,Adults and Health,Other Agencies - Third Party P,90283714,JEWISH CARE,"2,581.00",21/08/2020
Delivery Units,Adults and Health,Other Agencies - Third Party P,90283715,JEWISH CARE,"2,581.00",21/08/2020
Delivery Units,Adults and Health,Other Agencies - Third Party P,90283718,JEWISH CARE,"2,581.00",21/08/2020
Delivery Units,Adults and Health,Other Agencies - Third Party P,90277837,CLOVELLY HOUSE RESID. HOME LTD,"1,392.86",05/08/2020
Delivery Units,Adults and Health,Other Agencies - Third Party P,90278283,CLOVELLY HOUSE RESID. HOME LTD,321.43,06/08/2020
Delivery Units,Adults and Health,Other Agencies - Third Party P,90280217,CLOVELLY HOUSE RESID. HOME LTD,"3,000.00",13/08/2020
Delivery Units,Adults and Health,Other Agencies - Third Party P,90280218,CLOVELLY HOUSE RESID. HOME LTD,"2,600.00",13/08/2020
Delivery Units,Adults and Health,Other Agencies - Third Party P,90280224,CLOVELLY HOUSE RESID. HOME LTD,"3,000.00",13/08/2020
Delivery Units,Adults and Health,Other Agencies - Third Party P,90280225,CLOVELLY HOUSE RESID. HOME LTD,"3,000.00",13/08/2020
Delivery Units,Adults and Health,Other Agencies - Third Party P,90280226,CLOVELLY HOUSE RESID. HOME LTD,"3,000.00",13/08/2020
Delivery Units,Adults and Health,Other Agencies - Third Party P,90280228,CLOVELLY HOUSE RESID. HOME LTD,"3,000.00",13/08/2020
Delivery Units,Adults and Health,Other Agencies - Third Party P,90280229,CLOVELLY HOUSE RESID. HOME LTD,"3,000.00",13/08/2020
Delivery Units,Adults and Health,Other Agencies - Third Party P,90280230,CLOVELLY HOUSE RESID. HOME LTD,"2,458.20",13/08/2020
Delivery Units,Adults and Health,Other Agencies - Third Party P,90280231,CLOVELLY HOUSE RESID. HOME LTD,"3,000.00",13/08/2020
Delivery Units,Adults and Health,Other Agencies - Third Party P,90280232,CLOVELLY HOUSE RESID. HOME LTD,"2,458.20",13/08/2020
Delivery Units,Adults and Health,Other Agencies - Third Party P,90280234,CLOVELLY HOUSE RESID. HOME LTD,"3,100.00",13/08/2020
Delivery Units,Adults and Health,Other Agencies - Third Party P,90281908,CLOVELLY HOUSE RESID. HOME LTD,"3,000.00",18/08/2020
Delivery Units,Adults and Health,Other Agencies - Third Party P,90280453,QUANTUM CARE LIMITED,"3,428.57",17/08/2020
Delivery Units,Adults and Health,Other Agencies - Third Party P,90280454,QUANTUM CARE LIMITED,"3,542.86",17/08/2020
Delivery Units,Adults and Health,Other Agencies - Third Party P,90277805,CEDARS NURSING HOME,300.00,05/08/2020
Delivery Units,Adults and Health,Other Agencies - Third Party P,90277807,CEDARS NURSING HOME,"4,285.71",05/08/2020
Delivery Units,Adults and Health,Other Agencies - Third Party P,90277810,CEDARS NURSING HOME,"4,428.57",05/08/2020
Delivery Units,Adults and Health,Other Agencies - Third Party P,90283734,CATHERINE LODGE,"3,321.43",21/08/2020
Delivery Units,Adults and Health,Other Agencies - Third Party P,90283739,CATHERINE LODGE,"2,601.87",21/08/2020
Delivery Units,Adults and Health,Other Agencies - Third Party P,90283740,CATHERINE LODGE,"2,601.87",21/08/2020
Delivery Units,Adults and Health,Other Agencies - Third Party P,90283741,CATHERINE LODGE,"3,963.57",21/08/2020
Delivery Units,Adults and Health,Other Agencies - Third Party P,90283742,CATHERINE LODGE,"3,764.29",21/08/2020
Delivery Units,Adults and Health,Other Agencies - Third Party P,90281947,SUNRIDGE HOUSING ASSOCIATION LTD,"2,989.58",18/08/2020
Delivery Units,Adults and Health,Other Agencies - Third Party P,90283770,SUNRIDGE HOUSING ASSOCIATION LTD,"2,989.58",21/08/2020
Delivery Units,Adults and Health,Other Agencies - Third Party P,90278149,NAZARETH HOUSE,"2,350.08",05/08/2020
Delivery Units,Adults and Health,Other Agencies - Third Party P,90278150,NAZARETH HOUSE,"2,350.08",05/08/2020
Delivery Units,Adults and Health,Other Agencies - Third Party P,90278151,NAZARETH HOUSE,"2,186.88",05/08/2020
Delivery Units,Adults and Health,Other Agencies - Third Party P,90278152,NAZARETH HOUSE,"2,186.88",05/08/2020
Delivery Units,Adults and Health,Other Agencies - Third Party P,90278153,NAZARETH HOUSE,"2,186.88",05/08/2020
Delivery Units,Adults and Health,Other Agencies - Third Party P,90278154,NAZARETH HOUSE,"2,350.08",05/08/2020
Delivery Units,Adults and Health,Other Agencies - Third Party P,90278155,NAZARETH HOUSE,"2,186.88",05/08/2020
Delivery Units,Adults and Health,Other Agencies - Third Party P,90278156,NAZARETH HOUSE,"2,285.28",05/08/2020
Delivery Units,Adults and Health,Other Agencies - Third Party P,90278157,NAZARETH HOUSE,"2,186.88",05/08/2020
Delivery Units,Adults and Health,Other Agencies - Third Party P,90278158,NAZARETH HOUSE,"2,186.88",05/08/2020
Delivery Units,Adults and Health,Other Agencies - Third Party P,90278160,NAZARETH HOUSE,"2,650.40",05/08/2020
Delivery Units,Adults and Health,Other Agencies - Third Party P,90278161,NAZARETH HOUSE,"2,186.88",05/08/2020
Delivery Units,Adults and Health,Other Agencies - Third Party P,90278162,NAZARETH HOUSE,"2,458.20",05/08/2020
Delivery Units,Adults and Health,Other Agencies - Third Party P,90278163,NAZARETH HOUSE,"2,350.08",05/08/2020
Delivery Units,Adults and Health,Other Agencies - Third Party P,90278164,NAZARETH HOUSE,"2,186.88",05/08/2020
Delivery Units,Adults and Health,Other Agencies - Third Party P,90278165,NAZARETH HOUSE,"2,186.88",05/08/2020
Delivery Units,Adults and Health,Other Agencies - Third Party P,90278166,NAZARETH HOUSE,"2,186.88",05/08/2020
Delivery Units,Adults and Health,Other Agencies - Third Party P,90278167,NAZARETH HOUSE,"2,350.08",05/08/2020
Delivery Units,Adults and Health,Other Agencies - Third Party P,90278168,NAZARETH HOUSE,"2,186.88",05/08/2020
Delivery Units,Adults and Health,Other Agencies - Third Party P,90278169,NAZARETH HOUSE,"2,186.88",05/08/2020
Delivery Units,Adults and Health,Other Agencies - Third Party P,90278170,NAZARETH HOUSE,"2,186.88",05/08/2020
Delivery Units,Adults and Health,Other Agencies - Third Party P,90278171,NAZARETH HOUSE,"2,186.88",05/08/2020
Delivery Units,Adults and Health,Other Agencies - Third Party P,90278172,NAZARETH HOUSE,"2,285.28",05/08/2020
Delivery Units,Adults and Health,Other Agencies - Third Party P,90278173,NAZARETH HOUSE,"2,186.88",05/08/2020
Delivery Units,Adults and Health,Other Agencies - Third Party P,90277389,THE WOODSIDE HOME,"2,285.28",04/08/2020
Delivery Units,Adults and Health,Other Agencies - Third Party P,90277390,THE WOODSIDE HOME,"2,285.28",04/08/2020
Delivery Units,Adults and Health,Other Agencies - Third Party P,90277391,THE WOODSIDE HOME,"2,285.28",04/08/2020
Delivery Units,Adults and Health,Other Agencies - Third Party P,90277392,THE WOODSIDE HOME,"2,264.90",04/08/2020
Delivery Units,Adults and Health,Other Agencies - Third Party P,90277393,THE WOODSIDE HOME,"2,285.28",04/08/2020
Delivery Units,Adults and Health,Other Agencies - Third Party P,90280235,THE WOODSIDE HOME,"2,285.28",13/08/2020
Delivery Units,Adults and Health,Other Agencies - Third Party P,90280236,THE WOODSIDE HOME,"2,285.28",13/08/2020
Delivery Units,Adults and Health,Other Agencies - Third Party P,90280237,THE WOODSIDE HOME,"2,285.28",13/08/2020
Delivery Units,Adults and Health,Other Agencies - Third Party P,90280238,THE WOODSIDE HOME,"2,458.20",13/08/2020
Delivery Units,Adults and Health,Other Agencies - Third Party P,90280239,THE WOODSIDE HOME,"2,285.28",13/08/2020
Delivery Units,Adults and Health,Other Agencies - Third Party P,90280440,METHODIST HOMES FOR THE AGED,"2,631.76",17/08/2020
Delivery Units,Adults and Health,Other Agencies - Third Party P,90281896,SYDMAR LODGE,"29,000.00",18/08/2020
Delivery Units,Adults and Health,Other Agencies - Third Party P,90281897,SYDMAR LODGE,404.24,18/08/2020
Delivery Units,Adults and Health,Other Agencies - Third Party P,90283600,THE LIMES RESIDENTIAL HOME,"2,304.00",21/08/2020
Delivery Units,Adults and Health,Other Agencies - Third Party P,90283616,THE LIMES RESIDENTIAL HOME,"2,458.20",21/08/2020
Delivery Units,Adults and Health,Other Agencies - Third Party P,90283650,THE LIMES RESIDENTIAL HOME,"3,000.00",21/08/2020
Delivery Units,Adults and Health,Other Agencies - Third Party P,90283669,THE LIMES RESIDENTIAL HOME,"2,458.20",21/08/2020
Delivery Units,Adults and Health,Other Agencies - Third Party P,90283670,THE LIMES RESIDENTIAL HOME,"2,458.20",21/08/2020
Delivery Units,Adults and Health,Other Agencies - Third Party P,90283680,THE LIMES RESIDENTIAL HOME,"3,040.00",21/08/2020
Delivery Units,Adults and Health,Other Agencies - Third Party P,90283693,THE LIMES RESIDENTIAL HOME,"2,304.00",21/08/2020
Delivery Units,Adults and Health,Other Agencies - Third Party P,90283701,THE LIMES RESIDENTIAL HOME,"2,458.20",21/08/2020
Delivery Units,Adults and Health,Other Agencies - Third Party P,90283702,THE LIMES RESIDENTIAL HOME,-351.17,21/08/2020
Delivery Units,Adults and Health,Other Agencies - Third Party P,90283705,THE LIMES RESIDENTIAL HOME,"2,458.20",21/08/2020
Delivery Units,Adults and Health,Other Agencies - Third Party P,90283706,THE LIMES RESIDENTIAL HOME,"2,458.20",21/08/2020
Delivery Units,Adults and Health,Other Agencies - Third Party P,90283707,THE LIMES RESIDENTIAL HOME,"2,458.20",21/08/2020
Delivery Units,Adults and Health,Other Agencies - Third Party P,90283710,THE LIMES RESIDENTIAL HOME,"2,458.20",21/08/2020
Delivery Units,Adults and Health,Other Agencies - Third Party P,90277789,SPRINGDENE,"1,053.51",05/08/2020
Delivery Units,Adults and Health,Other Agencies - Third Party P,90278765,SPRINGDENE,"5,070.71",11/08/2020
Delivery Units,Adults and Health,Other Agencies - Third Party P,90278766,SPRINGDENE,"2,721.58",11/08/2020
Delivery Units,Adults and Health,Other Agencies - Third Party P,90278761,SCIMITAR CARE HOTELS PLC,"3,764.29",11/08/2020
Delivery Units,Adults and Health,Other Agencies - Third Party P,90278399,BUPA CARE HOMES,"3,631.43",07/08/2020
Delivery Units,Adults and Health,Other Agencies - Third Party P,90278400,BUPA CARE HOMES,"3,631.43",07/08/2020
Delivery Units,Adults and Health,Other Agencies - Third Party P,90283763,BUPA CARE HOMES,"3,631.43",21/08/2020
Delivery Units,Adults and Health,Other Agencies - Third Party P,90283764,BUPA CARE HOMES,"2,572.20",21/08/2020
Delivery Units,Adults and Health,Other Agencies - Third Party P,90283765,BUPA CARE HOMES,"3,631.43",21/08/2020
Delivery Units,Adults and Health,Other Agencies - Third Party P,90278385,ANASTASIA LODGE,"3,800.00",07/08/2020
Delivery Units,Adults and Health,Other Agencies - Third Party P,90278179,HILTON LODGE LTD.,"2,880.00",05/08/2020
Delivery Units,Adults and Health,Other Agencies - Third Party P,90278180,HILTON LODGE LTD.,"3,800.00",05/08/2020
Delivery Units,Adults and Health,Other Agencies - Third Party P,90278413,VENTRY RESIDENTIAL CARE LTD,"3,100.00",07/08/2020
Delivery Units,Adults and Health,Other Agencies - Third Party P,90278414,VENTRY RESIDENTIAL CARE LTD,"3,321.43",07/08/2020
Delivery Units,Adults and Health,Other Agencies - Third Party P,90278529,VENTRY RESIDENTIAL CARE LTD,"3,321.43",10/08/2020
Delivery Units,Adults and Health,Other Agencies - Third Party P,90280215,VENTRY RESIDENTIAL CARE LTD,"3,321.43",13/08/2020
Delivery Units,Adults and Health,Other Agencies - Third Party P,90283767,B & M CARE,"3,764.29",21/08/2020
Delivery Units,Adults and Health,Other Agencies - Third Party P,90277868,SAGE NURSING HOME,"2,657.14",05/08/2020
Delivery Units,Adults and Health,Other Agencies - Third Party P,90277870,SAGE NURSING HOME,"2,122.05",05/08/2020
Delivery Units,Adults and Health,Other Agencies - Third Party P,90277871,SAGE NURSING HOME,"3,100.00",05/08/2020
Delivery Units,Adults and Health,Other Agencies - Third Party P,90278265,EASTSIDE HOUSE CARE HOME,"3,580.00",06/08/2020
Delivery Units,Adults and Health,Other Agencies - Third Party P,90278760,EASTSIDE HOUSE CARE HOME,"3,500.00",11/08/2020
Delivery Units,Adults and Health,Other Agencies - Third Party P,90285087,APPLE TREE COURT CARE HOME,"3,764.29",27/08/2020
Delivery Units,Adults and Health,Other Agencies - Third Party P,90285049,TENTERDEN HOUSE,"3,957.50",27/08/2020
Delivery Units,Adults and Health,Other Agencies - Third Party P,90285093,TENTERDEN HOUSE,"3,957.50",27/08/2020
Delivery Units,Adults and Health,Other Agencies - Third Party P,90281936,SWANBOROUGH HOUSE,"4,121.27",18/08/2020
Delivery Units,Adults and Health,Other Agencies - Third Party P,90280216,Ashfields Residential Care Home,"2,530.13",13/08/2020
Delivery Units,Adults and Health,Other Agencies - Third Party P,90278383,AUTUMN GARDENS,"2,880.00",07/08/2020
Delivery Units,Adults and Health,Other Agencies - Third Party P,90278386,AUTUMN GARDENS,"3,680.00",07/08/2020
Delivery Units,Adults and Health,Other Agencies - Third Party P,90278387,AUTUMN GARDENS,"3,160.00",07/08/2020
Delivery Units,Adults and Health,Other Transfer Payments to Soc,1003373002,CATALYST HOUSING LTD,"20,318.21",18/08/2020
Delivery Units,Adults and Health,Other Transfer Payments to Soc,1003577702,CATALYST HOUSING LTD,"248,931.02",26/08/2020
Delivery Units,Adults and Health,Other Agencies - Third Party P,90277517,CARLTON COURT (TLC GROUP),"1,450.00",04/08/2020
Delivery Units,Adults and Health,Other Agencies - Third Party P,90277518,CARLTON COURT (TLC GROUP),"6,421.43",04/08/2020
Delivery Units,Adults and Health,Other Agencies - Third Party P,90280435,CARLTON COURT (TLC GROUP),621.43,17/08/2020
Delivery Units,Adults and Health,Other Agencies - Third Party P,90280460,CARLTON COURT (TLC GROUP),"1,440.00",17/08/2020
Delivery Units,Adults and Health,Other Agencies - Third Party P,90280487,CARLTON COURT (TLC GROUP),"1,440.00",17/08/2020
Delivery Units,Adults and Health,Other Agencies - Third Party P,90282483,CARLTON COURT (TLC GROUP),"2,249.45",19/08/2020
Delivery Units,Adults and Health,Other Agencies - Third Party P,90284595,CARLTON COURT (TLC GROUP),"6,421.43",27/08/2020
Delivery Units,Adults and Health,Other Agencies - Third Party P,90278264,WOODFIELD HOUSE,"15,080.00",06/08/2020
Delivery Units,Adults and Health,Other Agencies - Third Party P,90285227,ASHTON LODGE CARE CENTRE,"4,359.66",28/08/2020
Delivery Units,Adults and Health,Other Agencies - Third Party P,90278268,LIVABILITY,"3,211.80",06/08/2020
Delivery Units,Adults and Health,Other Agencies - Third Party P,90278269,LIVABILITY,"3,458.24",06/08/2020
Delivery Units,Adults and Health,Other Agencies - Third Party P,90278273,LIVABILITY,"4,364.00",06/08/2020
Delivery Units,Adults and Health,Other Agencies - Third Party P,90282137,THE BARNETGROUP LIMITED,"2,144.00",18/08/2020
Delivery Units,Adults and Health,Other Agencies - Third Party P,90282138,THE BARNETGROUP LIMITED,"2,144.00",18/08/2020
Delivery Units,Adults and Health,Other Agencies - Third Party P,90282139,THE BARNETGROUP LIMITED,"2,304.00",18/08/2020
Delivery Units,Adults and Health,Other Agencies - Third Party P,90282140,THE BARNETGROUP LIMITED,"2,144.00",18/08/2020
Delivery Units,Adults and Health,Other Agencies - Third Party P,90282141,THE BARNETGROUP LIMITED,"2,144.00",18/08/2020
Delivery Units,Adults and Health,Other Agencies - Third Party P,90282142,THE BARNETGROUP LIMITED,"2,144.00",18/08/2020
Delivery Units,Adults and Health,Other Agencies - Third Party P,90282144,THE BARNETGROUP LIMITED,"3,567.52",18/08/2020
Delivery Units,Adults and Health,Other Agencies - Third Party P,90282145,THE BARNETGROUP LIMITED,"4,080.00",18/08/2020
Delivery Units,Adults and Health,Other Agencies - Third Party P,90282146,THE BARNETGROUP LIMITED,0.04,18/08/2020
Delivery Units,Adults and Health,Other Agencies - Third Party P,90282147,THE BARNETGROUP LIMITED,"2,144.00",18/08/2020
Delivery Units,Adults and Health,Other Agencies - Third Party P,90282149,THE BARNETGROUP LIMITED,"2,304.00",18/08/2020
Delivery Units,Adults and Health,Other Agencies - Third Party P,90282150,THE BARNETGROUP LIMITED,"2,304.00",18/08/2020
Delivery Units,Adults and Health,Other Agencies - Third Party P,90282151,THE BARNETGROUP LIMITED,"3,598.86",18/08/2020
Delivery Units,Adults and Health,Other Agencies - Third Party P,90282152,THE BARNETGROUP LIMITED,"2,144.00",18/08/2020
Delivery Units,Adults and Health,Other Agencies - Third Party P,90282153,THE BARNETGROUP LIMITED,"2,144.00",18/08/2020
Delivery Units,Adults and Health,Other Agencies - Third Party P,90282155,THE BARNETGROUP LIMITED,-576.00,18/08/2020
Delivery Units,Adults and Health,Other Agencies - Third Party P,90282156,THE BARNETGROUP LIMITED,"2,304.00",18/08/2020
Delivery Units,Adults and Health,Other Agencies - Third Party P,90282157,THE BARNETGROUP LIMITED,"2,304.00",18/08/2020
Delivery Units,Adults and Health,Other Agencies - Third Party P,90282158,THE BARNETGROUP LIMITED,"2,304.00",18/08/2020
Delivery Units,Adults and Health,Other Agencies - Third Party P,90282159,THE BARNETGROUP LIMITED,"2,144.00",18/08/2020
Delivery Units,Adults and Health,Other Agencies - Third Party P,90282160,THE BARNETGROUP LIMITED,"2,144.00",18/08/2020
Delivery Units,Adults and Health,Other Agencies - Third Party P,90282161,THE BARNETGROUP LIMITED,"2,144.00",18/08/2020
Delivery Units,Adults and Health,Other Agencies - Third Party P,90282162,THE BARNETGROUP LIMITED,"2,144.00",18/08/2020
Delivery Units,Adults and Health,Other Agencies - Third Party P,90282163,THE BARNETGROUP LIMITED,"2,144.00",18/08/2020
Delivery Units,Adults and Health,Other Agencies - Third Party P,90282164,THE BARNETGROUP LIMITED,"2,144.00",18/08/2020
Delivery Units,Adults and Health,Other Agencies - Third Party P,90282165,THE BARNETGROUP LIMITED,"2,144.00",18/08/2020
Delivery Units,Adults and Health,Other Agencies - Third Party P,90282167,THE BARNETGROUP LIMITED,"2,304.00",18/08/2020
Delivery Units,Adults and Health,Other Agencies - Third Party P,90282168,THE BARNETGROUP LIMITED,"3,000.00",18/08/2020
Delivery Units,Adults and Health,Other Agencies - Third Party P,90282169,THE BARNETGROUP LIMITED,"4,062.40",18/08/2020
Delivery Units,Adults and Health,Other Agencies - Third Party P,90282170,THE BARNETGROUP LIMITED,0.04,18/08/2020
Delivery Units,Adults and Health,Other Agencies - Third Party P,90282171,THE BARNETGROUP LIMITED,"2,304.00",18/08/2020
Delivery Units,Adults and Health,Other Agencies - Third Party P,90282172,THE BARNETGROUP LIMITED,"2,304.00",18/08/2020
Delivery Units,Adults and Health,Other Agencies - Third Party P,90282173,THE BARNETGROUP LIMITED,"9,164.00",18/08/2020
Delivery Units,Adults and Health,Other Agencies - Third Party P,90282174,THE BARNETGROUP LIMITED,"2,304.00",18/08/2020
Delivery Units,Adults and Health,Other Agencies - Third Party P,90282176,THE BARNETGROUP LIMITED,"2,304.00",18/08/2020
Delivery Units,Adults and Health,Other Agencies - Third Party P,90282177,THE BARNETGROUP LIMITED,"1,923.43",18/08/2020
Delivery Units,Adults and Health,Other Agencies - Third Party P,90282179,THE BARNETGROUP LIMITED,"13,715.00",18/08/2020
Delivery Units,Adults and Health,Other Agencies - Third Party P,90282180,THE BARNETGROUP LIMITED,"2,304.00",18/08/2020
Delivery Units,Adults and Health,Other Agencies - Third Party P,90282181,THE BARNETGROUP LIMITED,"2,304.00",18/08/2020
Delivery Units,Adults and Health,Other Agencies - Third Party P,90282182,THE BARNETGROUP LIMITED,"2,304.00",18/08/2020
Delivery Units,Adults and Health,Other Agencies - Third Party P,90282184,THE BARNETGROUP LIMITED,"2,304.00",18/08/2020
Delivery Units,Adults and Health,Other Agencies - Third Party P,90282185,THE BARNETGROUP LIMITED,"2,304.00",18/08/2020
Delivery Units,Adults and Health,Other Agencies - Third Party P,90282186,THE BARNETGROUP LIMITED,"2,144.00",18/08/2020
Delivery Units,Adults and Health,Other Agencies - Third Party P,90282187,THE BARNETGROUP LIMITED,"2,144.00",18/08/2020
Delivery Units,Adults and Health,Other Agencies - Third Party P,90282188,THE BARNETGROUP LIMITED,"2,304.00",18/08/2020
Delivery Units,Adults and Health,Other Agencies - Third Party P,90282189,THE BARNETGROUP LIMITED,"2,304.00",18/08/2020
Delivery Units,Adults and Health,Other Agencies - Third Party P,90282190,THE BARNETGROUP LIMITED,"2,694.00",18/08/2020
Delivery Units,Adults and Health,Other Agencies - Third Party P,90282191,THE BARNETGROUP LIMITED,"56,914.71",18/08/2020
Delivery Units,Adults and Health,Other Agencies - Third Party P,90282192,THE BARNETGROUP LIMITED,"2,144.00",18/08/2020
Delivery Units,Adults and Health,Other Agencies - Third Party P,90282193,THE BARNETGROUP LIMITED,"2,304.00",18/08/2020
Delivery Units,Adults and Health,Other Agencies - Third Party P,90282194,THE BARNETGROUP LIMITED,"2,304.00",18/08/2020
Delivery Units,Adults and Health,Other Agencies - Third Party P,90282195,THE BARNETGROUP LIMITED,"2,304.00",18/08/2020
Delivery Units,Adults and Health,Other Agencies - Third Party P,90282196,THE BARNETGROUP LIMITED,"2,144.00",18/08/2020
Delivery Units,Adults and Health,Other Agencies - Third Party P,90282197,THE BARNETGROUP LIMITED,"2,304.00",18/08/2020
Delivery Units,Adults and Health,Other Agencies - Third Party P,90282199,THE BARNETGROUP LIMITED,"2,144.00",18/08/2020
Delivery Units,Adults and Health,Other Agencies - Third Party P,90282202,THE BARNETGROUP LIMITED,"2,144.00",18/08/2020
Delivery Units,Adults and Health,Other Agencies - Third Party P,90282203,THE BARNETGROUP LIMITED,"2,144.00",18/08/2020
Delivery Units,Adults and Health,Other Agencies - Third Party P,90282204,THE BARNETGROUP LIMITED,"2,304.00",18/08/2020
Delivery Units,Adults and Health,Other Agencies - Third Party P,90282205,THE BARNETGROUP LIMITED,"2,304.00",18/08/2020
Delivery Units,Adults and Health,Other Agencies - Third Party P,90282206,THE BARNETGROUP LIMITED,"2,144.00",18/08/2020
Delivery Units,Adults and Health,Other Agencies - Third Party P,90282207,THE BARNETGROUP LIMITED,"2,144.00",18/08/2020
Delivery Units,Adults and Health,Other Agencies - Third Party P,90282208,THE BARNETGROUP LIMITED,"2,144.00",18/08/2020
Delivery Units,Adults and Health,Other Agencies - Third Party P,90282209,THE BARNETGROUP LIMITED,"2,144.00",18/08/2020
Delivery Units,Adults and Health,Other Agencies - Third Party P,90282210,THE BARNETGROUP LIMITED,"2,144.00",18/08/2020
Delivery Units,Adults and Health,Other Agencies - Third Party P,90282211,THE BARNETGROUP LIMITED,"2,304.00",18/08/2020
Delivery Units,Adults and Health,Other Agencies - Third Party P,90282212,THE BARNETGROUP LIMITED,"2,304.00",18/08/2020
Delivery Units,Adults and Health,Other Agencies - Third Party P,90282213,THE BARNETGROUP LIMITED,"2,144.00",18/08/2020
Delivery Units,Adults and Health,Other Agencies - Third Party P,90282215,THE BARNETGROUP LIMITED,"2,144.00",18/08/2020
Delivery Units,Adults and Health,Other Agencies - Third Party P,90282216,THE BARNETGROUP LIMITED,"2,144.00",18/08/2020
Delivery Units,Adults and Health,Other Agencies - Third Party P,90282217,THE BARNETGROUP LIMITED,"2,304.00",18/08/2020
Delivery Units,Adults and Health,Other Agencies - Third Party P,90282218,THE BARNETGROUP LIMITED,"2,304.00",18/08/2020
Delivery Units,Adults and Health,Other Agencies - Third Party P,90282219,THE BARNETGROUP LIMITED,"2,144.00",18/08/2020
Delivery Units,Adults and Health,Other Agencies - Third Party P,90281941,Z & M CARE LTD,"2,600.00",18/08/2020
Delivery Units,Adults and Health,Other Agencies - Third Party P,90282500,Karuna Manor,"4,207.14",19/08/2020
Delivery Units,Adults and Health,Other Agencies - Third Party P,90283977,Sonnet Care Homes (Essex) Ltd,"4,871.43",21/08/2020
Delivery Units,Adults and Health,Other Agencies - Third Party P,90278381,GCH (Hertfordshire) Ltd T/A,"2,414.68",07/08/2020
Delivery Units,Adults and Health,Other Agencies - Third Party P,90280240,Wilton House Ltd,"2,636.57",13/08/2020
Delivery Units,Adults and Health,Other Agencies - Third Party P,90281933,Wilton House Ltd,"2,724.46",18/08/2020
Delivery Units,Adults and Health,Other Agencies - Third Party P,90281934,Wilton House Ltd,"2,621.01",18/08/2020
Delivery Units,Adults and Health,Other Agencies - Third Party P,90281935,Wilton House Ltd,"2,611.48",18/08/2020
Delivery Units,Adults and Health,Other Agencies - Third Party P,90281898,HC-One Oval LTD,"2,178.32",18/08/2020
Delivery Units,Adults and Health,Other Agencies - Third Party P,90281899,HC-One Oval LTD,"2,178.32",18/08/2020
Delivery Units,Adults and Health,Other Agencies - Third Party P,90281900,HC-One Oval LTD,"2,178.32",18/08/2020
Delivery Units,Adults and Health,Other Agencies - Third Party P,90281901,HC-One Oval LTD,"2,178.32",18/08/2020
Delivery Units,Adults and Health,Other Agencies - Third Party P,90281932,Wordsworth House Care Home,"2,657.14",18/08/2020
Delivery Units,Adults and Health,Other Agencies - Third Party P,90280241,A.H.J. David Ltd t/a Florence House,"3,200.00",13/08/2020
Delivery Units,Adults and Health,Other Agencies - Third Party P,90281967,Beaumont Court Care Home,"3,764.29",18/08/2020
Delivery Units,Adults and Health,Fees and Charges,80037462,REDACTED - PERSONAL DATA,505.20,10/08/2020
Delivery Units,Adults and Health,Direct Transfer Payments to So,90280932,REDACTED - PERSONAL DATA,"1,881.00",18/08/2020
Delivery Units,Adults and Health,Direct Transfer Payments to So,90281316,REDACTED - PERSONAL DATA,"2,931.20",18/08/2020
Delivery Units,Adults and Health,Direct Transfer Payments to So,90281195,REDACTED - PERSONAL DATA,"3,846.40",18/08/2020
Delivery Units,Adults and Health,Direct Transfer Payments to So,90280922,REDACTED - PERSONAL DATA,"3,834.44",18/08/2020
Delivery Units,Adults and Health,Direct Transfer Payments to So,90281633,REDACTED - PERSONAL DATA,579.24,18/08/2020
Delivery Units,Adults and Health,Direct Transfer Payments to So,90280998,REDACTED - PERSONAL DATA,458.88,18/08/2020
Delivery Units,Adults and Health,Direct Transfer Payments to So,90283056,REDACTED - PERSONAL DATA,"1,800.00",21/08/2020
Delivery Units,Adults and Health,Direct Transfer Payments to So,90281671,REDACTED - PERSONAL DATA,"1,560.72",18/08/2020
Delivery Units,Adults and Health,Direct Transfer Payments to So,90280962,REDACTED - PERSONAL DATA,"2,724.92",18/08/2020
Delivery Units,Adults and Health,Direct Transfer Payments to So,90281003,REDACTED - PERSONAL DATA,795.56,18/08/2020
Delivery Units,Adults and Health,Direct Transfer Payments to So,90280983,REDACTED - PERSONAL DATA,852.76,18/08/2020
Delivery Units,Adults and Health,Direct Transfer Payments to So,90281347,REDACTED - PERSONAL DATA,889.48,18/08/2020
Delivery Units,Adults and Health,Direct Transfer Payments to So,90280909,REDACTED - PERSONAL DATA,611.40,18/08/2020
Delivery Units,Adults and Health,Direct Transfer Payments to So,90281738,REDACTED - PERSONAL DATA,349.12,18/08/2020
Delivery Units,Adults and Health,Direct Transfer Payments to So,90281658,REDACTED - PERSONAL DATA,377.88,18/08/2020
Delivery Units,Adults and Health,Direct Transfer Payments to So,90281123,REDACTED - PERSONAL DATA,"2,056.84",18/08/2020
Delivery Units,Adults and Health,Direct Transfer Payments to So,90281014,REDACTED - PERSONAL DATA,"1,143.16",18/08/2020
Delivery Units,Adults and Health,Direct Transfer Payments to So,90281204,REDACTED - PERSONAL DATA,"1,238.92",18/08/2020
Delivery Units,Adults and Health,Direct Transfer Payments to So,90278561,REDACTED - PERSONAL DATA,"1,636.37",10/08/2020
Delivery Units,Adults and Health,Direct Transfer Payments to So,90281414,REDACTED - PERSONAL DATA,"1,497.04",18/08/2020
Delivery Units,Adults and Health,Direct Transfer Payments to So,90281389,REDACTED - PERSONAL DATA,490.04,18/08/2020
Delivery Units,Adults and Health,Direct Transfer Payments to So,90281022,REDACTED - PERSONAL DATA,975.36,18/08/2020
Delivery Units,Adults and Health,Direct Transfer Payments to So,90281635,REDACTED - PERSONAL DATA,800.00,18/08/2020
Delivery Units,Adults and Health,Direct Transfer Payments to So,90283054,REDACTED - PERSONAL DATA,"1,152.00",21/08/2020
Delivery Units,Adults and Health,Direct Transfer Payments to So,90281030,REDACTED - PERSONAL DATA,"2,349.16",18/08/2020
Delivery Units,Adults and Health,Direct Transfer Payments to So,90281321,REDACTED - PERSONAL DATA,480.80,18/08/2020
Delivery Units,Adults and Health,Direct Transfer Payments to So,90281239,REDACTED - PERSONAL DATA,"3,444.00",18/08/2020
Delivery Units,Adults and Health,Direct Transfer Payments to So,90281322,REDACTED - PERSONAL DATA,451.92,18/08/2020
Delivery Units,Adults and Health,Direct Transfer Payments to So,90281507,REDACTED - PERSONAL DATA,649.08,18/08/2020
Delivery Units,Adults and Health,Direct Transfer Payments to So,90281044,REDACTED - PERSONAL DATA,348.00,18/08/2020
Delivery Units,Adults and Health,Direct Transfer Payments to So,90281768,REDACTED - PERSONAL DATA,880.00,18/08/2020
Delivery Units,Adults and Health,Direct Transfer Payments to So,90281045,REDACTED - PERSONAL DATA,547.08,18/08/2020
Delivery Units,Adults and Health,Direct Transfer Payments to So,90281452,REDACTED - PERSONAL DATA,"1,560.72",18/08/2020
Delivery Units,Adults and Health,Direct Transfer Payments to So,90281740,REDACTED - PERSONAL DATA,"2,316.96",18/08/2020
Delivery Units,Adults and Health,Direct Transfer Payments to So,90281601,REDACTED - PERSONAL DATA,"1,508.08",18/08/2020
Delivery Units,Adults and Health,Direct Transfer Payments to So,90281333,REDACTED - PERSONAL DATA,738.52,18/08/2020
Delivery Units,Adults and Health,Direct Transfer Payments to So,90281519,REDACTED - PERSONAL DATA,360.60,18/08/2020
Delivery Units,Adults and Health,Direct Transfer Payments to So,90281450,REDACTED - PERSONAL DATA,"4,022.52",18/08/2020
Delivery Units,Adults and Health,Direct Transfer Payments to So,90281339,REDACTED - PERSONAL DATA,844.40,18/08/2020
Delivery Units,Adults and Health,Direct Transfer Payments to So,90281059,REDACTED - PERSONAL DATA,960.00,18/08/2020
Delivery Units,Adults and Health,Direct Transfer Payments to So,90281526,REDACTED - PERSONAL DATA,"2,066.00",18/08/2020
Delivery Units,Adults and Health,Direct Transfer Payments to So,90281527,REDACTED - PERSONAL DATA,"2,772.00",18/08/2020
Delivery Units,Adults and Health,Direct Transfer Payments to So,90281528,REDACTED - PERSONAL DATA,231.40,18/08/2020
Delivery Units,Adults and Health,Direct Transfer Payments to So,90281352,REDACTED - PERSONAL DATA,478.48,18/08/2020
Delivery Units,Adults and Health,Direct Transfer Payments to So,90281636,REDACTED - PERSONAL DATA,944.00,18/08/2020
Delivery Units,Adults and Health,Direct Transfer Payments to So,90281624,REDACTED - PERSONAL DATA,"2,400.00",18/08/2020
Delivery Units,Adults and Health,Direct Transfer Payments to So,90281621,REDACTED - PERSONAL DATA,"1,059.93",18/08/2020
Delivery Units,Adults and Health,Fees and Charges,90281066,REDACTED - PERSONAL DATA,-257.60,18/08/2020
Delivery Units,Adults and Health,Direct Transfer Payments to So,90281769,REDACTED - PERSONAL DATA,996.92,18/08/2020
Delivery Units,Adults and Health,Direct Transfer Payments to So,90281647,REDACTED - PERSONAL DATA,"4,000.00",18/08/2020
Delivery Units,Adults and Health,Direct Transfer Payments to So,90281456,REDACTED - PERSONAL DATA,136.00,18/08/2020
Delivery Units,Adults and Health,Direct Transfer Payments to So,90281631,REDACTED - PERSONAL DATA,"4,608.04",18/08/2020
Delivery Units,Adults and Health,Direct Transfer Payments to So,90281703,REDACTED - PERSONAL DATA,"3,480.00",18/08/2020
Delivery Units,Adults and Health,Direct Transfer Payments to So,90281467,REDACTED - PERSONAL DATA,"1,351.56",18/08/2020
Delivery Units,Adults and Health,Direct Transfer Payments to So,90281258,REDACTED - PERSONAL DATA,589.68,18/08/2020
Delivery Units,Adults and Health,Direct Transfer Payments to So,90281262,REDACTED - PERSONAL DATA,"2,960.56",18/08/2020
Delivery Units,Adults and Health,Direct Transfer Payments to So,90281650,REDACTED - PERSONAL DATA,"1,470.40",18/08/2020
Delivery Units,Adults and Health,Direct Transfer Payments to So,90281268,REDACTED - PERSONAL DATA,730.92,18/08/2020
Delivery Units,Adults and Health,Direct Transfer Payments to So,90281273,REDACTED - PERSONAL DATA,"1,346.12",18/08/2020
Delivery Units,Adults and Health,Direct Transfer Payments to So,90281278,REDACTED - PERSONAL DATA,"1,238.92",18/08/2020
Delivery Units,Adults and Health,Direct Transfer Payments to So,90281484,REDACTED - PERSONAL DATA,903.92,18/08/2020
Delivery Units,Adults and Health,Direct Transfer Payments to So,90281726,REDACTED - PERSONAL DATA,482.72,18/08/2020
Delivery Units,Adults and Health,Direct Transfer Payments to So,90281489,REDACTED - PERSONAL DATA,"1,238.92",18/08/2020
Delivery Units,Adults and Health,Direct Transfer Payments to So,90281734,REDACTED - PERSONAL DATA,"2,350.08",18/08/2020
Delivery Units,Adults and Health,Direct Transfer Payments to So,90281500,REDACTED - PERSONAL DATA,"3,000.00",18/08/2020
Delivery Units,Adults and Health,Direct Transfer Payments to So,90281674,REDACTED - PERSONAL DATA,"2,843.24",18/08/2020
Delivery Units,Adults and Health,Direct Transfer Payments to So,90281494,REDACTED - PERSONAL DATA,"2,751.32",18/08/2020
Delivery Units,Adults and Health,Direct Transfer Payments to So,90281676,REDACTED - PERSONAL DATA,"2,781.72",18/08/2020
Delivery Units,Adults and Health,Direct Transfer Payments to So,90281565,REDACTED - PERSONAL DATA,586.96,18/08/2020
Delivery Units,Adults and Health,Direct Transfer Payments to So,90281772,REDACTED - PERSONAL DATA,"2,252.60",18/08/2020
Delivery Units,Adults and Health,Direct Transfer Payments to So,90281743,REDACTED - PERSONAL DATA,"2,331.60",18/08/2020
Delivery Units,Adults and Health,Direct Transfer Payments to So,90281678,REDACTED - PERSONAL DATA,"1,802.08",18/08/2020
Delivery Units,Adults and Health,Direct Transfer Payments to So,90281746,REDACTED - PERSONAL DATA,450.52,18/08/2020
Delivery Units,Adults and Health,Direct Transfer Payments to So,90281420,REDACTED - PERSONAL DATA,"3,857.92",18/08/2020
Delivery Units,Adults and Health,Direct Transfer Payments to So,90281423,REDACTED - PERSONAL DATA,"2,388.12",18/08/2020
Delivery Units,Adults and Health,Direct Transfer Payments to So,90281747,REDACTED - PERSONAL DATA,"1,350.80",18/08/2020
Delivery Units,Adults and Health,Direct Transfer Payments to So,90281754,REDACTED - PERSONAL DATA,804.52,18/08/2020
Delivery Units,Adults and Health,Direct Transfer Payments to So,90281686,REDACTED - PERSONAL DATA,"1,344.00",18/08/2020
Delivery Units,Adults and Health,Direct Transfer Payments to So,90281690,REDACTED - PERSONAL DATA,"1,122.00",18/08/2020
Delivery Units,Adults and Health,Direct Transfer Payments to So,90281697,REDACTED - PERSONAL DATA,901.04,18/08/2020
Delivery Units,Adults and Health,Direct Transfer Payments to So,90281571,REDACTED - PERSONAL DATA,193.08,18/08/2020
Delivery Units,Adults and Health,Direct Transfer Payments to So,90281765,REDACTED - PERSONAL DATA,560.00,18/08/2020
Delivery Units,Adults and Health,Direct Transfer Payments to So,90281436,REDACTED - PERSONAL DATA,273.20,18/08/2020
Delivery Units,Adults and Health,Direct Transfer Payments to So,90281751,REDACTED - PERSONAL DATA,"1,802.08",18/08/2020
Delivery Units,Adults and Health,Direct Transfer Payments to So,90281574,REDACTED - PERSONAL DATA,"2,260.00",18/08/2020
Delivery Units,Adults and Health,Fees and Charges,90281437,REDACTED - PERSONAL DATA,-602.24,18/08/2020
Delivery Units,Adults and Health,Direct Transfer Payments to So,90281771,REDACTED - PERSONAL DATA,"3,360.00",18/08/2020
Delivery Units,Adults and Health,Direct Transfer Payments to So,90281767,REDACTED - PERSONAL DATA,396.00,18/08/2020
Delivery Units,Adults and Health,Direct Transfer Payments to So,90281438,REDACTED - PERSONAL DATA,"3,218.00",18/08/2020
Delivery Units,Adults and Health,Direct Transfer Payments to So,90281757,REDACTED - PERSONAL DATA,648.16,18/08/2020
Delivery Units,Adults and Health,Direct Transfer Payments to So,90281774,REDACTED - PERSONAL DATA,346.64,18/08/2020
Delivery Units,Adults and Health,Direct Transfer Payments to So,90281708,REDACTED - PERSONAL DATA,888.20,18/08/2020
Delivery Units,Adults and Health,Direct Transfer Payments to So,90278557,REDACTED - PERSONAL DATA,241.03,10/08/2020
Delivery Units,Adults and Health,Direct Transfer Payments to So,90281778,REDACTED - PERSONAL DATA,561.48,18/08/2020
Delivery Units,Adults and Health,Direct Transfer Payments to So,90281780,REDACTED - PERSONAL DATA,"3,604.16",18/08/2020
Delivery Units,Adults and Health,Direct Transfer Payments to So,90281713,REDACTED - PERSONAL DATA,384.64,18/08/2020
Delivery Units,Adults and Health,Fees and Charges,90280884,REDACTED - PERSONAL DATA,0.08,18/08/2020
Delivery Units,Adults and Health,Fees and Charges,90283065,REDACTED - PERSONAL DATA,0.12,21/08/2020
Delivery Units,Adults and Health,Direct Transfer Payments to So,90283040,REDACTED - PERSONAL DATA,"7,502.54",21/08/2020
Delivery Units,Adults and Health,Direct Transfer Payments to So,90283041,REDACTED - PERSONAL DATA,"1,029.76",21/08/2020
Delivery Units,Adults and Health,Direct Transfer Payments to So,90283042,REDACTED - PERSONAL DATA,"1,029.76",21/08/2020
Delivery Units,Adults and Health,Direct Transfer Payments to So,90283049,REDACTED - PERSONAL DATA,"1,029.76",21/08/2020
Delivery Units,Adults and Health,Fees and Charges,90283067,REDACTED - PERSONAL DATA,"-1,038.80",21/08/2020
Delivery Units,Adults and Health,Direct Transfer Payments to So,90283043,REDACTED - PERSONAL DATA,"1,053.46",21/08/2020
Delivery Units,Adults and Health,Direct Transfer Payments to So,90283047,REDACTED - PERSONAL DATA,867.56,21/08/2020
Delivery Units,Adults and Health,Fees and Charges,90284290,REDACTED - PERSONAL DATA,-494.42,25/08/2020
Delivery Units,Adults and Health,Fees and Charges,90281261,REDACTED - PERSONAL DATA,766.40,
Delivery Units,Adults and Health,Fees and Charges,90281265,REDACTED - PERSONAL DATA,"2,193.12",
Delivery Units,Adults and Health,Fees and Charges,90281643,REDACTED - PERSONAL DATA,982.20,
Delivery Units,Adults and Health,Other Agencies - Third Party P,90282871,WESTMINSTER HOMECARE LTD,265.58,19/08/2020
Delivery Units,Adults and Health,Other Agencies - Third Party P,90282872,WESTMINSTER HOMECARE LTD,265.58,19/08/2020
Delivery Units,Adults and Health,Other Agencies - Third Party P,90282873,WESTMINSTER HOMECARE LTD,261.37,19/08/2020
Delivery Units,Adults and Health,Other Agencies - Third Party P,90282874,WESTMINSTER HOMECARE LTD,261.36,19/08/2020
Delivery Units,Adults and Health,Other Agencies - Third Party P,90282875,WESTMINSTER HOMECARE LTD,151.78,19/08/2020
Delivery Units,Adults and Health,Other Agencies - Third Party P,90282876,WESTMINSTER HOMECARE LTD,139.12,19/08/2020
Delivery Units,Adults and Health,Other Agencies - Third Party P,90282877,WESTMINSTER HOMECARE LTD,156.01,19/08/2020
Delivery Units,Adults and Health,Other Agencies - Third Party P,90282878,WESTMINSTER HOMECARE LTD,171.19,19/08/2020
Delivery Units,Adults and Health,Other Agencies - Third Party P,90282879,WESTMINSTER HOMECARE LTD,88.55,19/08/2020
Delivery Units,Adults and Health,Other Agencies - Third Party P,90282880,WESTMINSTER HOMECARE LTD,88.55,19/08/2020
Delivery Units,Adults and Health,Other Agencies - Third Party P,90282881,WESTMINSTER HOMECARE LTD,88.55,19/08/2020
Delivery Units,Adults and Health,Other Agencies - Third Party P,90282882,WESTMINSTER HOMECARE LTD,88.55,19/08/2020
Delivery Units,Adults and Health,Other Agencies - Third Party P,90282883,WESTMINSTER HOMECARE LTD,50.58,19/08/2020
Delivery Units,Adults and Health,Other Agencies - Third Party P,90282884,WESTMINSTER HOMECARE LTD,50.58,19/08/2020
Delivery Units,Adults and Health,Other Agencies - Third Party P,90282885,WESTMINSTER HOMECARE LTD,50.58,19/08/2020
Delivery Units,Adults and Health,Other Agencies - Third Party P,90282886,WESTMINSTER HOMECARE LTD,59.01,19/08/2020
Delivery Units,Adults and Health,Other Agencies - Third Party P,90282887,WESTMINSTER HOMECARE LTD,82.10,19/08/2020
Delivery Units,Adults and Health,Other Agencies - Third Party P,90282888,WESTMINSTER HOMECARE LTD,82.10,19/08/2020
Delivery Units,Adults and Health,Other Agencies - Third Party P,90282889,WESTMINSTER HOMECARE LTD,84.07,19/08/2020
Delivery Units,Adults and Health,Other Agencies - Third Party P,90282890,WESTMINSTER HOMECARE LTD,83.79,19/08/2020
Delivery Units,Adults and Health,Other Agencies - Third Party P,90282895,WESTMINSTER HOMECARE LTD,177.10,19/08/2020
Delivery Units,Adults and Health,Other Agencies - Third Party P,90282896,WESTMINSTER HOMECARE LTD,177.10,19/08/2020
Delivery Units,Adults and Health,Other Agencies - Third Party P,90282897,WESTMINSTER HOMECARE LTD,150.96,19/08/2020
Delivery Units,Adults and Health,Other Agencies - Third Party P,90282898,WESTMINSTER HOMECARE LTD,164.44,19/08/2020
Delivery Units,Adults and Health,Other Agencies - Third Party P,90282899,WESTMINSTER HOMECARE LTD,206.57,19/08/2020
Delivery Units,Adults and Health,Other Agencies - Third Party P,90282900,WESTMINSTER HOMECARE LTD,206.57,19/08/2020
Delivery Units,Adults and Health,Other Agencies - Third Party P,90282901,WESTMINSTER HOMECARE LTD,206.57,19/08/2020
Delivery Units,Adults and Health,Other Agencies - Third Party P,90282902,WESTMINSTER HOMECARE LTD,206.57,19/08/2020
Delivery Units,Adults and Health,Other Agencies - Third Party P,90282903,WESTMINSTER HOMECARE LTD,25.29,19/08/2020
Delivery Units,Adults and Health,Other Agencies - Third Party P,90282904,WESTMINSTER HOMECARE LTD,25.29,19/08/2020
Delivery Units,Adults and Health,Other Agencies - Third Party P,90282905,WESTMINSTER HOMECARE LTD,25.29,19/08/2020
Delivery Units,Adults and Health,Other Agencies - Third Party P,90282906,WESTMINSTER HOMECARE LTD,25.29,19/08/2020
Delivery Units,Adults and Health,Other Agencies - Third Party P,90282907,WESTMINSTER HOMECARE LTD,147.56,19/08/2020
Delivery Units,Adults and Health,Other Agencies - Third Party P,90282908,WESTMINSTER HOMECARE LTD,147.56,19/08/2020
Delivery Units,Adults and Health,Other Agencies - Third Party P,90282909,WESTMINSTER HOMECARE LTD,134.91,19/08/2020
Delivery Units,Adults and Health,Other Agencies - Third Party P,90282910,WESTMINSTER HOMECARE LTD,147.56,19/08/2020
Delivery Units,Adults and Health,Other Agencies - Third Party P,90282911,WESTMINSTER HOMECARE LTD,274.08,19/08/2020
Delivery Units,Adults and Health,Other Agencies - Third Party P,90282912,WESTMINSTER HOMECARE LTD,286.73,19/08/2020
Delivery Units,Adults and Health,Other Agencies - Third Party P,90282913,WESTMINSTER HOMECARE LTD,286.73,19/08/2020
Delivery Units,Adults and Health,Other Agencies - Third Party P,90282914,WESTMINSTER HOMECARE LTD,286.73,19/08/2020
Delivery Units,Adults and Health,Other Agencies - Third Party P,90282915,WESTMINSTER HOMECARE LTD,147.56,19/08/2020
Delivery Units,Adults and Health,Other Agencies - Third Party P,90282916,WESTMINSTER HOMECARE LTD,139.13,19/08/2020
Delivery Units,Adults and Health,Other Agencies - Third Party P,90282917,WESTMINSTER HOMECARE LTD,143.34,19/08/2020
Delivery Units,Adults and Health,Other Agencies - Third Party P,90282918,WESTMINSTER HOMECARE LTD,147.56,19/08/2020
Delivery Units,Adults and Health,Other Agencies - Third Party P,90282919,WESTMINSTER HOMECARE LTD,8.43,19/08/2020
Delivery Units,Adults and Health,Other Agencies - Third Party P,90282920,WESTMINSTER HOMECARE LTD,8.43,19/08/2020
Delivery Units,Adults and Health,Other Agencies - Third Party P,90282921,WESTMINSTER HOMECARE LTD,8.43,19/08/2020
Delivery Units,Adults and Health,Other Agencies - Third Party P,90282922,WESTMINSTER HOMECARE LTD,8.43,19/08/2020
Delivery Units,Adults and Health,Other Agencies - Third Party P,90282931,WESTMINSTER HOMECARE LTD,340.48,19/08/2020
Delivery Units,Adults and Health,Other Agencies - Third Party P,90282932,WESTMINSTER HOMECARE LTD,351.44,19/08/2020
Delivery Units,Adults and Health,Other Agencies - Third Party P,90282933,WESTMINSTER HOMECARE LTD,338.78,19/08/2020
Delivery Units,Adults and Health,Other Agencies - Third Party P,90282934,WESTMINSTER HOMECARE LTD,350.59,19/08/2020
Delivery Units,Adults and Health,Other Agencies - Third Party P,90282935,WESTMINSTER HOMECARE LTD,147.56,19/08/2020
Delivery Units,Adults and Health,Other Agencies - Third Party P,90282936,WESTMINSTER HOMECARE LTD,147.56,19/08/2020
Delivery Units,Adults and Health,Other Agencies - Third Party P,90282937,WESTMINSTER HOMECARE LTD,143.35,19/08/2020
Delivery Units,Adults and Health,Other Agencies - Third Party P,90282938,WESTMINSTER HOMECARE LTD,143.35,19/08/2020
Delivery Units,Adults and Health,Other Agencies - Third Party P,90282939,WESTMINSTER HOMECARE LTD,50.60,19/08/2020
Delivery Units,Adults and Health,Other Agencies - Third Party P,90282940,WESTMINSTER HOMECARE LTD,63.25,19/08/2020
Delivery Units,Adults and Health,Other Agencies - Third Party P,90282941,WESTMINSTER HOMECARE LTD,63.25,19/08/2020
Delivery Units,Adults and Health,Other Agencies - Third Party P,90282942,WESTMINSTER HOMECARE LTD,63.25,19/08/2020
Delivery Units,Adults and Health,Other Agencies - Third Party P,90282943,WESTMINSTER HOMECARE LTD,59.01,19/08/2020
Delivery Units,Adults and Health,Other Agencies - Third Party P,90282944,WESTMINSTER HOMECARE LTD,59.01,19/08/2020
Delivery Units,Adults and Health,Other Agencies - Third Party P,90282945,WESTMINSTER HOMECARE LTD,59.01,19/08/2020
Delivery Units,Adults and Health,Other Agencies - Third Party P,90282946,WESTMINSTER HOMECARE LTD,84.07,19/08/2020
Delivery Units,Adults and Health,Other Agencies - Third Party P,90282947,WESTMINSTER HOMECARE LTD,75.91,19/08/2020
Delivery Units,Adults and Health,Other Agencies - Third Party P,90282948,WESTMINSTER HOMECARE LTD,84.35,19/08/2020
Delivery Units,Adults and Health,Other Agencies - Third Party P,90282949,WESTMINSTER HOMECARE LTD,84.35,19/08/2020
Delivery Units,Adults and Health,Other Agencies - Third Party P,90282950,WESTMINSTER HOMECARE LTD,33.73,19/08/2020
Delivery Units,Adults and Health,Other Agencies - Third Party P,90282951,WESTMINSTER HOMECARE LTD,75.89,19/08/2020
Delivery Units,Adults and Health,Other Agencies - Third Party P,90282952,WESTMINSTER HOMECARE LTD,80.11,19/08/2020
Delivery Units,Adults and Health,Other Agencies - Third Party P,90282953,WESTMINSTER HOMECARE LTD,198.14,19/08/2020
Delivery Units,Adults and Health,Other Agencies - Third Party P,90282954,WESTMINSTER HOMECARE LTD,206.57,19/08/2020
Delivery Units,Adults and Health,Other Agencies - Third Party P,90282955,WESTMINSTER HOMECARE LTD,206.57,19/08/2020
Delivery Units,Adults and Health,Other Agencies - Third Party P,90282956,WESTMINSTER HOMECARE LTD,202.35,19/08/2020
Delivery Units,Adults and Health,Other Agencies - Third Party P,90282957,WESTMINSTER HOMECARE LTD,118.02,19/08/2020
Delivery Units,Adults and Health,Other Agencies - Third Party P,90282958,WESTMINSTER HOMECARE LTD,118.02,19/08/2020
Delivery Units,Adults and Health,Other Agencies - Third Party P,90282959,WESTMINSTER HOMECARE LTD,118.02,19/08/2020
Delivery Units,Adults and Health,Other Agencies - Third Party P,90282960,WESTMINSTER HOMECARE LTD,118.02,19/08/2020
Delivery Units,Adults and Health,Other Agencies - Third Party P,90282965,WESTMINSTER HOMECARE LTD,261.39,19/08/2020
Delivery Units,Adults and Health,Other Agencies - Third Party P,90282966,WESTMINSTER HOMECARE LTD,172.88,19/08/2020
Delivery Units,Adults and Health,Other Agencies - Third Party P,90282967,WESTMINSTER HOMECARE LTD,174.28,19/08/2020
Delivery Units,Adults and Health,Other Agencies - Third Party P,90282968,WESTMINSTER HOMECARE LTD,174.28,19/08/2020
Delivery Units,Adults and Health,Other Agencies - Third Party P,90282969,WESTMINSTER HOMECARE LTD,182.71,19/08/2020
Delivery Units,Adults and Health,Other Agencies - Third Party P,90282974,WESTMINSTER HOMECARE LTD,526.95,19/08/2020
Delivery Units,Adults and Health,Other Agencies - Third Party P,90282975,WESTMINSTER HOMECARE LTD,531.16,19/08/2020
Delivery Units,Adults and Health,Other Agencies - Third Party P,90282976,WESTMINSTER HOMECARE LTD,459.50,19/08/2020
Delivery Units,Adults and Health,Other Agencies - Third Party P,90282977,WESTMINSTER HOMECARE LTD,484.79,19/08/2020
Delivery Units,Adults and Health,Other Agencies - Third Party P,90282978,WESTMINSTER HOMECARE LTD,143.34,19/08/2020
Delivery Units,Adults and Health,Other Agencies - Third Party P,90282979,WESTMINSTER HOMECARE LTD,147.56,19/08/2020
Delivery Units,Adults and Health,Other Agencies - Third Party P,90282980,WESTMINSTER HOMECARE LTD,147.56,19/08/2020
Delivery Units,Adults and Health,Other Agencies - Third Party P,90282981,WESTMINSTER HOMECARE LTD,143.34,19/08/2020
Delivery Units,Adults and Health,Other Agencies - Third Party P,90282982,WESTMINSTER HOMECARE LTD,33.74,19/08/2020
Delivery Units,Adults and Health,Other Agencies - Third Party P,90282983,WESTMINSTER HOMECARE LTD,45.27,19/08/2020
Delivery Units,Adults and Health,Other Agencies - Third Party P,90282984,WESTMINSTER HOMECARE LTD,42.17,19/08/2020
Delivery Units,Adults and Health,Other Agencies - Third Party P,90282985,WESTMINSTER HOMECARE LTD,33.73,19/08/2020
Delivery Units,Adults and Health,Other Agencies - Third Party P,90282990,WESTMINSTER HOMECARE LTD,84.33,19/08/2020
Delivery Units,Adults and Health,Other Agencies - Third Party P,90282991,WESTMINSTER HOMECARE LTD,25.30,19/08/2020
Delivery Units,Adults and Health,Other Agencies - Third Party P,90282992,WESTMINSTER HOMECARE LTD,8.43,19/08/2020
Delivery Units,Adults and Health,Other Agencies - Third Party P,90282993,WESTMINSTER HOMECARE LTD,33.72,19/08/2020
Delivery Units,Adults and Health,Other Agencies - Third Party P,90282994,WESTMINSTER HOMECARE LTD,25.29,19/08/2020
Delivery Units,Adults and Health,Other Agencies - Third Party P,90282995,WESTMINSTER HOMECARE LTD,25.29,19/08/2020
Delivery Units,Adults and Health,Other Agencies - Third Party P,90282996,WESTMINSTER HOMECARE LTD,382.01,19/08/2020
Delivery Units,Adults and Health,Other Agencies - Third Party P,90282997,WESTMINSTER HOMECARE LTD,598.21,19/08/2020
Delivery Units,Adults and Health,Other Agencies - Third Party P,90282998,WESTMINSTER HOMECARE LTD,543.12,19/08/2020
Delivery Units,Adults and Health,Other Agencies - Third Party P,90282999,WESTMINSTER HOMECARE LTD,560.56,19/08/2020
Delivery Units,Adults and Health,Other Agencies - Third Party P,90283000,WESTMINSTER HOMECARE LTD,33.72,19/08/2020
Delivery Units,Adults and Health,Other Agencies - Third Party P,90283001,WESTMINSTER HOMECARE LTD,33.72,19/08/2020
Delivery Units,Adults and Health,Other Agencies - Third Party P,90283002,WESTMINSTER HOMECARE LTD,33.72,19/08/2020
Delivery Units,Adults and Health,Other Agencies - Third Party P,90283003,WESTMINSTER HOMECARE LTD,201.53,19/08/2020
Delivery Units,Adults and Health,Other Agencies - Third Party P,90283004,WESTMINSTER HOMECARE LTD,286.68,19/08/2020
Delivery Units,Adults and Health,Other Agencies - Third Party P,90283005,WESTMINSTER HOMECARE LTD,275.16,19/08/2020
Delivery Units,Adults and Health,Other Agencies - Third Party P,90283010,WESTMINSTER HOMECARE LTD,118.09,19/08/2020
Delivery Units,Adults and Health,Other Agencies - Third Party P,90283011,WESTMINSTER HOMECARE LTD,156.01,19/08/2020
Delivery Units,Adults and Health,Other Agencies - Third Party P,90283020,WESTMINSTER HOMECARE LTD,269.80,19/08/2020
Delivery Units,Adults and Health,Other Agencies - Third Party P,90283021,WESTMINSTER HOMECARE LTD,265.58,19/08/2020
Delivery Units,Adults and Health,Other Agencies - Third Party P,90283022,WESTMINSTER HOMECARE LTD,265.58,19/08/2020
Delivery Units,Adults and Health,Other Agencies - Third Party P,90283023,WESTMINSTER HOMECARE LTD,265.58,19/08/2020
Delivery Units,Adults and Health,Other Agencies - Third Party P,90283024,WESTMINSTER HOMECARE LTD,413.21,19/08/2020
Delivery Units,Adults and Health,Other Agencies - Third Party P,90283025,WESTMINSTER HOMECARE LTD,413.21,19/08/2020
Delivery Units,Adults and Health,Other Agencies - Third Party P,90283026,WESTMINSTER HOMECARE LTD,413.21,19/08/2020
Delivery Units,Adults and Health,Other Agencies - Third Party P,90283027,WESTMINSTER HOMECARE LTD,371.05,19/08/2020
Delivery Units,Adults and Health,Other Agencies - Third Party P,90283032,WESTMINSTER HOMECARE LTD,105.40,19/08/2020
Delivery Units,Adults and Health,Other Agencies - Third Party P,90283033,WESTMINSTER HOMECARE LTD,122.26,19/08/2020
Delivery Units,Adults and Health,Other Agencies - Third Party P,90283034,WESTMINSTER HOMECARE LTD,113.83,19/08/2020
Delivery Units,Adults and Health,Other Agencies - Third Party P,90283035,WESTMINSTER HOMECARE LTD,160.20,19/08/2020
Delivery Units,Adults and Health,Other Agencies - Third Party P,90283036,WESTMINSTER HOMECARE LTD,265.58,19/08/2020
Delivery Units,Adults and Health,Other Agencies - Third Party P,90283037,WESTMINSTER HOMECARE LTD,265.58,19/08/2020
Delivery Units,Adults and Health,Other Agencies - Third Party P,90283038,WESTMINSTER HOMECARE LTD,257.15,19/08/2020
Delivery Units,Adults and Health,Other Agencies - Third Party P,90283039,WESTMINSTER HOMECARE LTD,265.58,19/08/2020
Delivery Units,Adults and Health,Other Agencies - Third Party P,90283068,CAREWATCH (BARNET),128.85,21/08/2020
Delivery Units,Adults and Health,Other Agencies - Third Party P,90283069,CAREWATCH (BARNET),128.85,21/08/2020
Delivery Units,Adults and Health,Other Agencies - Third Party P,90283070,CAREWATCH (BARNET),120.26,21/08/2020
Delivery Units,Adults and Health,Other Agencies - Third Party P,90283071,CAREWATCH (BARNET),120.26,21/08/2020
Delivery Units,Adults and Health,Other Agencies - Third Party P,90283072,CAREWATCH (BARNET),257.70,21/08/2020
Delivery Units,Adults and Health,Other Agencies - Third Party P,90283073,CAREWATCH (BARNET),257.70,21/08/2020
Delivery Units,Adults and Health,Other Agencies - Third Party P,90283074,CAREWATCH (BARNET),240.52,21/08/2020
Delivery Units,Adults and Health,Other Agencies - Third Party P,90283075,CAREWATCH (BARNET),124.56,21/08/2020
Delivery Units,Adults and Health,Other Agencies - Third Party P,90283076,CAREWATCH (BARNET),644.28,21/08/2020
Delivery Units,Adults and Health,Other Agencies - Third Party P,90283077,CAREWATCH (BARNET),644.28,21/08/2020
Delivery Units,Adults and Health,Other Agencies - Third Party P,90283078,CAREWATCH (BARNET),601.30,21/08/2020
Delivery Units,Adults and Health,Other Agencies - Third Party P,90283079,CAREWATCH (BARNET),687.20,21/08/2020
Delivery Units,Adults and Health,Other Agencies - Third Party P,90283080,CAREWATCH (BARNET),21.48,21/08/2020
Delivery Units,Adults and Health,Other Agencies - Third Party P,90283081,CAREWATCH (BARNET),51.54,21/08/2020
Delivery Units,Adults and Health,Other Agencies - Third Party P,90283082,CAREWATCH (BARNET),51.56,21/08/2020
Delivery Units,Adults and Health,Other Agencies - Third Party P,90283083,CAREWATCH (BARNET),51.54,21/08/2020
Delivery Units,Adults and Health,Other Agencies - Third Party P,90283084,CAREWATCH (BARNET),161.10,21/08/2020
Delivery Units,Adults and Health,Other Agencies - Third Party P,90283085,CAREWATCH (BARNET),161.06,21/08/2020
Delivery Units,Adults and Health,Other Agencies - Third Party P,90283086,CAREWATCH (BARNET),150.36,21/08/2020
Delivery Units,Adults and Health,Other Agencies - Third Party P,90283087,CAREWATCH (BARNET),150.36,21/08/2020
Delivery Units,Adults and Health,Other Agencies - Third Party P,90283088,CAREWATCH (BARNET),777.40,21/08/2020
Delivery Units,Adults and Health,Other Agencies - Third Party P,90283089,CAREWATCH (BARNET),734.45,21/08/2020
Delivery Units,Adults and Health,Other Agencies - Third Party P,90283090,CAREWATCH (BARNET),712.97,21/08/2020
Delivery Units,Adults and Health,Other Agencies - Third Party P,90283091,CAREWATCH (BARNET),712.97,21/08/2020
Delivery Units,Adults and Health,Other Agencies - Third Party P,90283092,CAREWATCH (BARNET),277.06,21/08/2020
Delivery Units,Adults and Health,Other Agencies - Third Party P,90283093,CAREWATCH (BARNET),277.06,21/08/2020
Delivery Units,Adults and Health,Other Agencies - Third Party P,90283094,CAREWATCH (BARNET),257.73,21/08/2020
Delivery Units,Adults and Health,Other Agencies - Third Party P,90283095,CAREWATCH (BARNET),257.73,21/08/2020
Delivery Units,Adults and Health,Other Agencies - Third Party P,90283096,CAREWATCH (BARNET),193.28,21/08/2020
Delivery Units,Adults and Health,Other Agencies - Third Party P,90283097,CAREWATCH (BARNET),193.28,21/08/2020
Delivery Units,Adults and Health,Other Agencies - Third Party P,90283098,CAREWATCH (BARNET),180.39,21/08/2020
Delivery Units,Adults and Health,Other Agencies - Third Party P,90283099,CAREWATCH (BARNET),180.39,21/08/2020
Delivery Units,Adults and Health,Other Agencies - Third Party P,90283100,CAREWATCH (BARNET),126.74,21/08/2020
Delivery Units,Adults and Health,Other Agencies - Third Party P,90283101,CAREWATCH (BARNET),126.74,21/08/2020
Delivery Units,Adults and Health,Other Agencies - Third Party P,90283102,CAREWATCH (BARNET),116.00,21/08/2020
Delivery Units,Adults and Health,Other Agencies - Third Party P,90283103,CAREWATCH (BARNET),98.78,21/08/2020
Delivery Units,Adults and Health,Other Agencies - Third Party P,90283108,CAREWATCH (BARNET),322.13,21/08/2020
Delivery Units,Adults and Health,Other Agencies - Third Party P,90283109,CAREWATCH (BARNET),322.13,21/08/2020
Delivery Units,Adults and Health,Other Agencies - Third Party P,90283110,CAREWATCH (BARNET),300.65,21/08/2020
Delivery Units,Adults and Health,Other Agencies - Third Party P,90283111,CAREWATCH (BARNET),300.65,21/08/2020
Delivery Units,Adults and Health,Other Agencies - Third Party P,90283112,CAREWATCH (BARNET),193.28,21/08/2020
Delivery Units,Adults and Health,Other Agencies - Third Party P,90283113,CAREWATCH (BARNET),193.28,21/08/2020
Delivery Units,Adults and Health,Other Agencies - Third Party P,90283114,CAREWATCH (BARNET),180.39,21/08/2020
Delivery Units,Adults and Health,Other Agencies - Third Party P,90283115,CAREWATCH (BARNET),146.03,21/08/2020
Delivery Units,Adults and Health,Other Agencies - Third Party P,90283116,CAREWATCH (BARNET),238.37,21/08/2020
Delivery Units,Adults and Health,Other Agencies - Third Party P,90283117,CAREWATCH (BARNET),251.26,21/08/2020
Delivery Units,Adults and Health,Other Agencies - Third Party P,90283118,CAREWATCH (BARNET),231.93,21/08/2020
Delivery Units,Adults and Health,Other Agencies - Third Party P,90283119,CAREWATCH (BARNET),231.93,21/08/2020
Delivery Units,Adults and Health,Other Agencies - Third Party P,90283120,CAREWATCH (BARNET),289.95,21/08/2020
Delivery Units,Adults and Health,Other Agencies - Third Party P,90283121,CAREWATCH (BARNET),289.95,21/08/2020
Delivery Units,Adults and Health,Other Agencies - Third Party P,90283122,CAREWATCH (BARNET),270.58,21/08/2020
Delivery Units,Adults and Health,Other Agencies - Third Party P,90283123,CAREWATCH (BARNET),270.62,21/08/2020
Delivery Units,Adults and Health,Other Agencies - Third Party P,90283124,CAREWATCH (BARNET),225.49,21/08/2020
Delivery Units,Adults and Health,Other Agencies - Third Party P,90283125,CAREWATCH (BARNET),214.75,21/08/2020
Delivery Units,Adults and Health,Other Agencies - Third Party P,90283126,CAREWATCH (BARNET),197.57,21/08/2020
Delivery Units,Adults and Health,Other Agencies - Third Party P,90283127,CAREWATCH (BARNET),197.57,21/08/2020
Delivery Units,Adults and Health,Other Agencies - Third Party P,90283128,CAREWATCH (BARNET),146.03,21/08/2020
Delivery Units,Adults and Health,Other Agencies - Third Party P,90283129,CAREWATCH (BARNET),152.47,21/08/2020
Delivery Units,Adults and Health,Other Agencies - Third Party P,90283130,CAREWATCH (BARNET),137.44,21/08/2020
Delivery Units,Adults and Health,Other Agencies - Third Party P,90283131,CAREWATCH (BARNET),137.44,21/08/2020
Delivery Units,Adults and Health,Other Agencies - Third Party P,90283132,CAREWATCH (BARNET),96.67,21/08/2020
Delivery Units,Adults and Health,Other Agencies - Third Party P,90283133,CAREWATCH (BARNET),96.67,21/08/2020
Delivery Units,Adults and Health,Other Agencies - Third Party P,90283134,CAREWATCH (BARNET),90.20,21/08/2020
Delivery Units,Adults and Health,Other Agencies - Third Party P,90283135,CAREWATCH (BARNET),90.23,21/08/2020
Delivery Units,Adults and Health,Other Agencies - Third Party P,90283136,CAREWATCH (BARNET),21.48,21/08/2020
Delivery Units,Adults and Health,Other Agencies - Third Party P,90283137,CAREWATCH (BARNET),21.48,21/08/2020
Delivery Units,Adults and Health,Other Agencies - Third Party P,90283138,CAREWATCH (BARNET),17.18,21/08/2020
Delivery Units,Adults and Health,Other Agencies - Third Party P,90283139,CAREWATCH (BARNET),17.18,21/08/2020
Delivery Units,Adults and Health,Other Agencies - Third Party P,90283140,CAREWATCH (BARNET),332.91,21/08/2020
Delivery Units,Adults and Health,Other Agencies - Third Party P,90283141,CAREWATCH (BARNET),332.91,21/08/2020
Delivery Units,Adults and Health,Other Agencies - Third Party P,90283142,CAREWATCH (BARNET),304.98,21/08/2020
Delivery Units,Adults and Health,Other Agencies - Third Party P,90283143,CAREWATCH (BARNET),304.98,21/08/2020
Delivery Units,Adults and Health,Other Agencies - Third Party P,90283147,CAREWATCH (BARNET),221.19,21/08/2020
Delivery Units,Adults and Health,Other Agencies - Third Party P,90283148,CAREWATCH (BARNET),249.11,21/08/2020
Delivery Units,Adults and Health,Other Agencies - Third Party P,90283149,CAREWATCH (BARNET),231.93,21/08/2020
Delivery Units,Adults and Health,Other Agencies - Third Party P,90283150,CAREWATCH (BARNET),231.93,21/08/2020
Delivery Units,Adults and Health,Other Agencies - Third Party P,90283151,CAREWATCH (BARNET),163.21,21/08/2020
Delivery Units,Adults and Health,Other Agencies - Third Party P,90283152,CAREWATCH (BARNET),85.90,21/08/2020
Delivery Units,Adults and Health,Other Agencies - Third Party P,90283153,CAREWATCH (BARNET),304.94,21/08/2020
Delivery Units,Adults and Health,Other Agencies - Third Party P,90283154,CAREWATCH (BARNET),259.89,21/08/2020
Delivery Units,Adults and Health,Other Agencies - Third Party P,90283155,CAREWATCH (BARNET),268.48,21/08/2020
Delivery Units,Adults and Health,Other Agencies - Third Party P,90283156,CAREWATCH (BARNET),244.85,21/08/2020
Delivery Units,Adults and Health,Other Agencies - Third Party P,90283157,CAREWATCH (BARNET),244.85,21/08/2020
Delivery Units,Adults and Health,Other Agencies - Third Party P,90283158,CAREWATCH (BARNET),154.62,21/08/2020
Delivery Units,Adults and Health,Other Agencies - Third Party P,90283159,CAREWATCH (BARNET),161.06,21/08/2020
Delivery Units,Adults and Health,Other Agencies - Third Party P,90283160,CAREWATCH (BARNET),141.74,21/08/2020
Delivery Units,Adults and Health,Other Agencies - Third Party P,90283161,CAREWATCH (BARNET),150.36,21/08/2020
Delivery Units,Adults and Health,Other Agencies - Third Party P,90283162,CAREWATCH (BARNET),354.34,21/08/2020
Delivery Units,Adults and Health,Other Agencies - Third Party P,90283163,CAREWATCH (BARNET),354.34,21/08/2020
Delivery Units,Adults and Health,Other Agencies - Third Party P,90283164,CAREWATCH (BARNET),330.75,21/08/2020
Delivery Units,Adults and Health,Other Agencies - Third Party P,90283165,CAREWATCH (BARNET),330.75,21/08/2020
Delivery Units,Adults and Health,Other Agencies - Third Party P,90283170,CAREWATCH (BARNET),268.44,21/08/2020
Delivery Units,Adults and Health,Other Agencies - Third Party P,90283171,CAREWATCH (BARNET),289.95,21/08/2020
Delivery Units,Adults and Health,Other Agencies - Third Party P,90283172,CAREWATCH (BARNET),266.29,21/08/2020
Delivery Units,Adults and Health,Other Agencies - Third Party P,90283173,CAREWATCH (BARNET),227.64,21/08/2020
Delivery Units,Adults and Health,Other Agencies - Third Party P,90283174,CAREWATCH (BARNET),128.85,21/08/2020
Delivery Units,Adults and Health,Other Agencies - Third Party P,90283175,CAREWATCH (BARNET),128.85,21/08/2020
Delivery Units,Adults and Health,Other Agencies - Third Party P,90283176,CAREWATCH (BARNET),120.26,21/08/2020
Delivery Units,Adults and Health,Other Agencies - Third Party P,90283177,CAREWATCH (BARNET),120.26,21/08/2020
Delivery Units,Adults and Health,Other Agencies - Third Party P,90283178,CAREWATCH (BARNET),96.67,21/08/2020
Delivery Units,Adults and Health,Other Agencies - Third Party P,90283179,CAREWATCH (BARNET),96.67,21/08/2020
Delivery Units,Adults and Health,Other Agencies - Third Party P,90283180,CAREWATCH (BARNET),90.23,21/08/2020
Delivery Units,Adults and Health,Other Agencies - Third Party P,90283181,CAREWATCH (BARNET),90.23,21/08/2020
Delivery Units,Adults and Health,Other Agencies - Third Party P,90283182,CAREWATCH (BARNET),206.16,21/08/2020
Delivery Units,Adults and Health,Other Agencies - Third Party P,90283183,CAREWATCH (BARNET),206.16,21/08/2020
Delivery Units,Adults and Health,Other Agencies - Third Party P,90283184,CAREWATCH (BARNET),206.16,21/08/2020
Delivery Units,Adults and Health,Other Agencies - Third Party P,90283185,CAREWATCH (BARNET),201.86,21/08/2020
Delivery Units,Adults and Health,Other Agencies - Third Party P,90283186,CAREWATCH (BARNET),354.38,21/08/2020
Delivery Units,Adults and Health,Other Agencies - Third Party P,90283187,CAREWATCH (BARNET),354.38,21/08/2020
Delivery Units,Adults and Health,Other Agencies - Third Party P,90283188,CAREWATCH (BARNET),330.75,21/08/2020
Delivery Units,Adults and Health,Other Agencies - Third Party P,90283189,CAREWATCH (BARNET),339.34,21/08/2020
Delivery Units,Adults and Health,Other Agencies - Third Party P,90283190,CAREWATCH (BARNET),322.19,21/08/2020
Delivery Units,Adults and Health,Other Agencies - Third Party P,90283191,CAREWATCH (BARNET),322.19,21/08/2020
Delivery Units,Adults and Health,Other Agencies - Third Party P,90283192,CAREWATCH (BARNET),300.72,21/08/2020
Delivery Units,Adults and Health,Other Agencies - Third Party P,90283193,CAREWATCH (BARNET),300.72,21/08/2020
Delivery Units,Adults and Health,Other Agencies - Third Party P,90283194,CAREWATCH (BARNET),25.77,21/08/2020
Delivery Units,Adults and Health,Other Agencies - Third Party P,90283195,CAREWATCH (BARNET),17.18,21/08/2020
Delivery Units,Adults and Health,Other Agencies - Third Party P,90283196,CAREWATCH (BARNET),17.18,21/08/2020
Delivery Units,Adults and Health,Other Agencies - Third Party P,90283197,CAREWATCH (BARNET),17.18,21/08/2020
Delivery Units,Adults and Health,Other Agencies - Third Party P,90283198,CAREWATCH (BARNET),128.85,21/08/2020
Delivery Units,Adults and Health,Other Agencies - Third Party P,90283199,CAREWATCH (BARNET),124.56,21/08/2020
Delivery Units,Adults and Health,Other Agencies - Third Party P,90283200,CAREWATCH (BARNET),120.26,21/08/2020
Delivery Units,Adults and Health,Other Agencies - Third Party P,90283201,CAREWATCH (BARNET),120.26,21/08/2020
Delivery Units,Adults and Health,Other Agencies - Third Party P,90283202,CAREWATCH (BARNET),289.95,21/08/2020
Delivery Units,Adults and Health,Other Agencies - Third Party P,90283203,CAREWATCH (BARNET),289.95,21/08/2020
Delivery Units,Adults and Health,Other Agencies - Third Party P,90283204,CAREWATCH (BARNET),270.62,21/08/2020
Delivery Units,Adults and Health,Other Agencies - Third Party P,90283205,CAREWATCH (BARNET),270.62,21/08/2020
Delivery Units,Adults and Health,Other Agencies - Third Party P,90283210,CAREWATCH (BARNET),32.21,21/08/2020
Delivery Units,Adults and Health,Other Agencies - Third Party P,90283211,CAREWATCH (BARNET),25.77,21/08/2020
Delivery Units,Adults and Health,Other Agencies - Third Party P,90283212,CAREWATCH (BARNET),12.88,21/08/2020
Delivery Units,Adults and Health,Other Agencies - Third Party P,90283213,CAREWATCH (BARNET),25.77,21/08/2020
Delivery Units,Adults and Health,Other Agencies - Third Party P,90283214,CAREWATCH (BARNET),73.02,21/08/2020
Delivery Units,Adults and Health,Other Agencies - Third Party P,90283215,CAREWATCH (BARNET),221.19,21/08/2020
Delivery Units,Adults and Health,Other Agencies - Third Party P,90283216,CAREWATCH (BARNET),225.53,21/08/2020
Delivery Units,Adults and Health,Other Agencies - Third Party P,90283217,CAREWATCH (BARNET),197.57,21/08/2020
Delivery Units,Adults and Health,Other Agencies - Third Party P,90283218,CAREWATCH (BARNET),176.10,21/08/2020
Delivery Units,Adults and Health,Other Agencies - Third Party P,90283219,CAREWATCH (BARNET),109.52,21/08/2020
Delivery Units,Adults and Health,Other Agencies - Third Party P,90283220,CAREWATCH (BARNET),118.11,21/08/2020
Delivery Units,Adults and Health,Other Agencies - Third Party P,90283221,CAREWATCH (BARNET),115.96,21/08/2020
Delivery Units,Adults and Health,Other Agencies - Third Party P,90283222,CAREWATCH (BARNET),120.26,21/08/2020
Delivery Units,Adults and Health,Other Agencies - Third Party P,90283223,CAREWATCH (BARNET),128.85,21/08/2020
Delivery Units,Adults and Health,Other Agencies - Third Party P,90283224,CAREWATCH (BARNET),128.85,21/08/2020
Delivery Units,Adults and Health,Other Agencies - Third Party P,90283225,CAREWATCH (BARNET),120.26,21/08/2020
Delivery Units,Adults and Health,Other Agencies - Third Party P,90283226,CAREWATCH (BARNET),120.26,21/08/2020
Delivery Units,Adults and Health,Other Agencies - Third Party P,90283227,CAREWATCH (BARNET),191.17,21/08/2020
Delivery Units,Adults and Health,Other Agencies - Third Party P,90283228,CAREWATCH (BARNET),214.75,21/08/2020
Delivery Units,Adults and Health,Other Agencies - Third Party P,90283229,CAREWATCH (BARNET),25.77,21/08/2020
Delivery Units,Adults and Health,Other Agencies - Third Party P,90283230,CAREWATCH (BARNET),249.11,21/08/2020
Delivery Units,Adults and Health,Other Agencies - Third Party P,90283231,CAREWATCH (BARNET),335.08,21/08/2020
Delivery Units,Adults and Health,Other Agencies - Third Party P,90283232,CAREWATCH (BARNET),335.08,21/08/2020
Delivery Units,Adults and Health,Other Agencies - Third Party P,90283233,CAREWATCH (BARNET),128.85,21/08/2020
Delivery Units,Adults and Health,Other Agencies - Third Party P,90283234,CAREWATCH (BARNET),42.95,21/08/2020
Delivery Units,Adults and Health,Other Agencies - Third Party P,90283235,CAREWATCH (BARNET),107.38,21/08/2020
Delivery Units,Adults and Health,Other Agencies - Third Party P,90283236,CAREWATCH (BARNET),120.26,21/08/2020
Delivery Units,Adults and Health,Other Agencies - Third Party P,90283237,CAREWATCH (BARNET),289.95,21/08/2020
Delivery Units,Adults and Health,Other Agencies - Third Party P,90283238,CAREWATCH (BARNET),289.91,21/08/2020
Delivery Units,Adults and Health,Other Agencies - Third Party P,90283239,CAREWATCH (BARNET),266.29,21/08/2020
Delivery Units,Adults and Health,Other Agencies - Third Party P,90283240,CAREWATCH (BARNET),270.62,21/08/2020
Delivery Units,Adults and Health,Other Agencies - Third Party P,90283241,CAREWATCH (BARNET),277.06,21/08/2020
Delivery Units,Adults and Health,Other Agencies - Third Party P,90283242,CAREWATCH (BARNET),277.06,21/08/2020
Delivery Units,Adults and Health,Other Agencies - Third Party P,90283243,CAREWATCH (BARNET),262.03,21/08/2020
Delivery Units,Adults and Health,Other Agencies - Third Party P,90283244,CAREWATCH (BARNET),262.03,21/08/2020
Delivery Units,Adults and Health,Other Agencies - Third Party P,90283245,CAREWATCH (BARNET),90.21,21/08/2020
Delivery Units,Adults and Health,Other Agencies - Third Party P,90283246,CAREWATCH (BARNET),73.02,21/08/2020
Delivery Units,Adults and Health,Other Agencies - Third Party P,90283247,CAREWATCH (BARNET),509.05,21/08/2020
Delivery Units,Adults and Health,Other Agencies - Third Party P,90283248,CAREWATCH (BARNET),500.46,21/08/2020
Delivery Units,Adults and Health,Other Agencies - Third Party P,90283249,CAREWATCH (BARNET),468.26,21/08/2020
Delivery Units,Adults and Health,Other Agencies - Third Party P,90283250,CAREWATCH (BARNET),468.26,21/08/2020
Delivery Units,Adults and Health,Other Agencies - Third Party P,90283251,CAREWATCH (BARNET),171.80,21/08/2020
Delivery Units,Adults and Health,Other Agencies - Third Party P,90283256,CAREWATCH (BARNET),103.11,21/08/2020
Delivery Units,Adults and Health,Other Agencies - Third Party P,90283257,CAREWATCH (BARNET),261.99,21/08/2020
Delivery Units,Adults and Health,Other Agencies - Third Party P,90283258,CAREWATCH (BARNET),214.75,21/08/2020
Delivery Units,Adults and Health,Other Agencies - Third Party P,90283259,CAREWATCH (BARNET),111.67,21/08/2020
Delivery Units,Adults and Health,Other Agencies - Third Party P,90283260,CAREWATCH (BARNET),231.97,21/08/2020
Delivery Units,Adults and Health,Other Agencies - Third Party P,90283261,CAREWATCH (BARNET),118.11,21/08/2020
Delivery Units,Adults and Health,Other Agencies - Third Party P,90283262,CAREWATCH (BARNET),289.95,21/08/2020
Delivery Units,Adults and Health,Other Agencies - Third Party P,90283263,CAREWATCH (BARNET),270.62,21/08/2020
Delivery Units,Adults and Health,Other Agencies - Third Party P,90283264,CAREWATCH (BARNET),270.62,21/08/2020
Delivery Units,Adults and Health,Other Agencies - Third Party P,90283265,CAREWATCH (BARNET),352.19,21/08/2020
Delivery Units,Adults and Health,Other Agencies - Third Party P,90283266,CAREWATCH (BARNET),339.30,21/08/2020
Delivery Units,Adults and Health,Other Agencies - Third Party P,90283267,CAREWATCH (BARNET),326.42,21/08/2020
Delivery Units,Adults and Health,Other Agencies - Third Party P,90283268,CAREWATCH (BARNET),317.83,21/08/2020
Delivery Units,Adults and Health,Other Agencies - Third Party P,90283269,CAREWATCH (BARNET),225.53,21/08/2020
Delivery Units,Adults and Health,Other Agencies - Third Party P,90283270,CAREWATCH (BARNET),225.49,21/08/2020
Delivery Units,Adults and Health,Other Agencies - Third Party P,90283271,CAREWATCH (BARNET),210.49,21/08/2020
Delivery Units,Adults and Health,Other Agencies - Third Party P,90283272,CAREWATCH (BARNET),210.49,21/08/2020
Delivery Units,Adults and Health,Other Agencies - Third Party P,90283273,CAREWATCH (BARNET),307.14,21/08/2020
Delivery Units,Adults and Health,Other Agencies - Third Party P,90283274,CAREWATCH (BARNET),307.14,21/08/2020
Delivery Units,Adults and Health,Other Agencies - Third Party P,90283275,CAREWATCH (BARNET),287.80,21/08/2020
Delivery Units,Adults and Health,Other Agencies - Third Party P,90283276,CAREWATCH (BARNET),287.80,21/08/2020
Delivery Units,Adults and Health,Other Agencies - Third Party P,90283277,CAREWATCH (BARNET),300.65,21/08/2020
Delivery Units,Adults and Health,Other Agencies - Third Party P,90283278,CAREWATCH (BARNET),313.53,21/08/2020
Delivery Units,Adults and Health,Other Agencies - Third Party P,90283279,CAREWATCH (BARNET),262.00,21/08/2020
Delivery Units,Adults and Health,Other Agencies - Third Party P,90283280,CAREWATCH (BARNET),171.80,21/08/2020
Delivery Units,Adults and Health,Other Agencies - Third Party P,90283281,CAREWATCH (BARNET),240.52,21/08/2020
Delivery Units,Adults and Health,Other Agencies - Third Party P,90283282,CAREWATCH (BARNET),240.52,21/08/2020
Delivery Units,Adults and Health,Other Agencies - Third Party P,90283283,CAREWATCH (BARNET),223.34,21/08/2020
Delivery Units,Adults and Health,Other Agencies - Third Party P,90283284,CAREWATCH (BARNET),206.16,21/08/2020
Delivery Units,Adults and Health,Other Agencies - Third Party P,90283285,CAREWATCH (BARNET),64.43,21/08/2020
Delivery Units,Adults and Health,Other Agencies - Third Party P,90283286,CAREWATCH (BARNET),60.13,21/08/2020
Delivery Units,Adults and Health,Other Agencies - Third Party P,90283287,CAREWATCH (BARNET),60.13,21/08/2020
Delivery Units,Adults and Health,Other Agencies - Third Party P,90283288,CAREWATCH (BARNET),55.84,21/08/2020
Delivery Units,Adults and Health,Other Agencies - Third Party P,90283289,CAREWATCH (BARNET),225.53,21/08/2020
Delivery Units,Adults and Health,Other Agencies - Third Party P,90283290,CAREWATCH (BARNET),225.53,21/08/2020
Delivery Units,Adults and Health,Other Agencies - Third Party P,90283291,CAREWATCH (BARNET),210.49,21/08/2020
Delivery Units,Adults and Health,Other Agencies - Third Party P,90283292,CAREWATCH (BARNET),210.49,21/08/2020
Delivery Units,Adults and Health,Other Agencies - Third Party P,90283293,CAREWATCH (BARNET),64.43,21/08/2020
Delivery Units,Adults and Health,Other Agencies - Third Party P,90283294,CAREWATCH (BARNET),64.43,21/08/2020
Delivery Units,Adults and Health,Other Agencies - Third Party P,90283295,CAREWATCH (BARNET),60.13,21/08/2020
Delivery Units,Adults and Health,Other Agencies - Third Party P,90283296,CAREWATCH (BARNET),60.13,21/08/2020
Delivery Units,Adults and Health,Other Agencies - Third Party P,90283297,CAREWATCH (BARNET),257.77,21/08/2020
Delivery Units,Adults and Health,Other Agencies - Third Party P,90283298,CAREWATCH (BARNET),257.77,21/08/2020
Delivery Units,Adults and Health,Other Agencies - Third Party P,90283299,CAREWATCH (BARNET),240.59,21/08/2020
Delivery Units,Adults and Health,Other Agencies - Third Party P,90283300,CAREWATCH (BARNET),240.59,21/08/2020
Delivery Units,Adults and Health,Other Agencies - Third Party P,90283305,CAREWATCH (BARNET),88.05,21/08/2020
Delivery Units,Adults and Health,Other Agencies - Third Party P,90283306,CAREWATCH (BARNET),77.31,21/08/2020
Delivery Units,Adults and Health,Other Agencies - Third Party P,90283307,CAREWATCH (BARNET),68.72,21/08/2020
Delivery Units,Adults and Health,Other Agencies - Third Party P,90283308,CAREWATCH (BARNET),60.13,21/08/2020
Delivery Units,Adults and Health,Other Agencies - Third Party P,90283309,CAREWATCH (BARNET),161.10,21/08/2020
Delivery Units,Adults and Health,Other Agencies - Third Party P,90283310,CAREWATCH (BARNET),161.10,21/08/2020
Delivery Units,Adults and Health,Other Agencies - Third Party P,90283311,CAREWATCH (BARNET),150.33,21/08/2020
Delivery Units,Adults and Health,Other Agencies - Third Party P,90283312,CAREWATCH (BARNET),150.36,21/08/2020
Delivery Units,Adults and Health,Other Agencies - Third Party P,90283332,CAREWATCH (BARNET),128.85,21/08/2020
Delivery Units,Adults and Health,Other Agencies - Third Party P,90283333,CAREWATCH (BARNET),120.26,21/08/2020
Delivery Units,Adults and Health,Other Agencies - Third Party P,90283334,CAREWATCH (BARNET),120.26,21/08/2020
Delivery Units,Adults and Health,Other Agencies - Third Party P,90283335,CAREWATCH (BARNET),128.85,21/08/2020
Delivery Units,Adults and Health,Other Agencies - Third Party P,90283336,CAREWATCH (BARNET),107.38,21/08/2020
Delivery Units,Adults and Health,Other Agencies - Third Party P,90283337,CAREWATCH (BARNET),240.52,21/08/2020
Delivery Units,Adults and Health,Other Agencies - Third Party P,90283338,CAREWATCH (BARNET),115.96,21/08/2020
Delivery Units,Adults and Health,Other Agencies - Third Party P,90283339,CAREWATCH (BARNET),773.14,21/08/2020
Delivery Units,Adults and Health,Other Agencies - Third Party P,90283340,CAREWATCH (BARNET),721.56,21/08/2020
Delivery Units,Adults and Health,Other Agencies - Third Party P,90283341,CAREWATCH (BARNET),721.56,21/08/2020
Delivery Units,Adults and Health,Other Agencies - Third Party P,90283342,CAREWATCH (BARNET),773.14,21/08/2020
Delivery Units,Adults and Health,Other Agencies - Third Party P,90283343,CAREWATCH (BARNET),58.00,21/08/2020
Delivery Units,Adults and Health,Other Agencies - Third Party P,90283344,CAREWATCH (BARNET),51.56,21/08/2020
Delivery Units,Adults and Health,Other Agencies - Third Party P,90283345,CAREWATCH (BARNET),51.56,21/08/2020
Delivery Units,Adults and Health,Other Agencies - Third Party P,90283346,CAREWATCH (BARNET),58.00,21/08/2020
Delivery Units,Adults and Health,Other Agencies - Third Party P,90283347,CAREWATCH (BARNET),161.06,21/08/2020
Delivery Units,Adults and Health,Other Agencies - Third Party P,90283348,CAREWATCH (BARNET),150.33,21/08/2020
Delivery Units,Adults and Health,Other Agencies - Third Party P,90283349,CAREWATCH (BARNET),150.33,21/08/2020
Delivery Units,Adults and Health,Other Agencies - Third Party P,90283350,CAREWATCH (BARNET),161.06,21/08/2020
Delivery Units,Adults and Health,Other Agencies - Third Party P,90283351,CAREWATCH (BARNET),777.40,21/08/2020
Delivery Units,Adults and Health,Other Agencies - Third Party P,90283352,CAREWATCH (BARNET),712.97,21/08/2020
Delivery Units,Adults and Health,Other Agencies - Third Party P,90283353,CAREWATCH (BARNET),712.97,21/08/2020
Delivery Units,Adults and Health,Other Agencies - Third Party P,90283354,CAREWATCH (BARNET),734.45,21/08/2020
Delivery Units,Adults and Health,Other Agencies - Third Party P,90283355,CAREWATCH (BARNET),277.06,21/08/2020
Delivery Units,Adults and Health,Other Agencies - Third Party P,90283356,CAREWATCH (BARNET),257.73,21/08/2020
Delivery Units,Adults and Health,Other Agencies - Third Party P,90283357,CAREWATCH (BARNET),257.73,21/08/2020
Delivery Units,Adults and Health,Other Agencies - Third Party P,90283358,CAREWATCH (BARNET),277.06,21/08/2020
Delivery Units,Adults and Health,Other Agencies - Third Party P,90283359,CAREWATCH (BARNET),193.28,21/08/2020
Delivery Units,Adults and Health,Other Agencies - Third Party P,90283360,CAREWATCH (BARNET),176.10,21/08/2020
Delivery Units,Adults and Health,Other Agencies - Third Party P,90283361,CAREWATCH (BARNET),180.39,21/08/2020
Delivery Units,Adults and Health,Other Agencies - Third Party P,90283362,CAREWATCH (BARNET),193.28,21/08/2020
Delivery Units,Adults and Health,Other Agencies - Third Party P,90283363,CAREWATCH (BARNET),105.23,21/08/2020
Delivery Units,Adults and Health,Other Agencies - Third Party P,90283364,CAREWATCH (BARNET),81.60,21/08/2020
Delivery Units,Adults and Health,Other Agencies - Third Party P,90283365,CAREWATCH (BARNET),90.20,21/08/2020
Delivery Units,Adults and Health,Other Agencies - Third Party P,90283366,CAREWATCH (BARNET),92.34,21/08/2020
Delivery Units,Adults and Health,Other Agencies - Third Party P,90283371,CAREWATCH (BARNET),322.13,21/08/2020
Delivery Units,Adults and Health,Other Agencies - Third Party P,90283372,CAREWATCH (BARNET),300.65,21/08/2020
Delivery Units,Adults and Health,Other Agencies - Third Party P,90283373,CAREWATCH (BARNET),300.65,21/08/2020
Delivery Units,Adults and Health,Other Agencies - Third Party P,90283374,CAREWATCH (BARNET),322.13,21/08/2020
Delivery Units,Adults and Health,Other Agencies - Third Party P,90283375,CAREWATCH (BARNET),111.67,21/08/2020
Delivery Units,Adults and Health,Other Agencies - Third Party P,90283376,CAREWATCH (BARNET),120.26,21/08/2020
Delivery Units,Adults and Health,Other Agencies - Third Party P,90283377,CAREWATCH (BARNET),115.96,21/08/2020
Delivery Units,Adults and Health,Other Agencies - Third Party P,90283378,CAREWATCH (BARNET),124.56,21/08/2020
Delivery Units,Adults and Health,Other Agencies - Third Party P,90283379,CAREWATCH (BARNET),255.55,21/08/2020
Delivery Units,Adults and Health,Other Agencies - Third Party P,90283380,CAREWATCH (BARNET),231.93,21/08/2020
Delivery Units,Adults and Health,Other Agencies - Third Party P,90283381,CAREWATCH (BARNET),240.52,21/08/2020
Delivery Units,Adults and Health,Other Agencies - Third Party P,90283382,CAREWATCH (BARNET),257.70,21/08/2020
Delivery Units,Adults and Health,Other Agencies - Third Party P,90283383,CAREWATCH (BARNET),289.95,21/08/2020
Delivery Units,Adults and Health,Other Agencies - Third Party P,90283384,CAREWATCH (BARNET),270.62,21/08/2020
Delivery Units,Adults and Health,Other Agencies - Third Party P,90283385,CAREWATCH (BARNET),270.62,21/08/2020
Delivery Units,Adults and Health,Other Agencies - Third Party P,90283386,CAREWATCH (BARNET),57.98,21/08/2020
Delivery Units,Adults and Health,Other Agencies - Third Party P,90283387,CAREWATCH (BARNET),225.49,21/08/2020
Delivery Units,Adults and Health,Other Agencies - Third Party P,90283388,CAREWATCH (BARNET),197.57,21/08/2020
Delivery Units,Adults and Health,Other Agencies - Third Party P,90283389,CAREWATCH (BARNET),201.87,21/08/2020
Delivery Units,Adults and Health,Other Agencies - Third Party P,90283390,CAREWATCH (BARNET),210.46,21/08/2020
Delivery Units,Adults and Health,Other Agencies - Third Party P,90283391,CAREWATCH (BARNET),137.44,21/08/2020
Delivery Units,Adults and Health,Other Agencies - Third Party P,90283392,CAREWATCH (BARNET),120.26,21/08/2020
Delivery Units,Adults and Health,Other Agencies - Third Party P,90283393,CAREWATCH (BARNET),128.85,21/08/2020
Delivery Units,Adults and Health,Other Agencies - Third Party P,90283394,CAREWATCH (BARNET),141.74,21/08/2020
Delivery Units,Adults and Health,Other Agencies - Third Party P,90283395,CAREWATCH (BARNET),96.67,21/08/2020
Delivery Units,Adults and Health,Other Agencies - Third Party P,90283396,CAREWATCH (BARNET),90.20,21/08/2020
Delivery Units,Adults and Health,Other Agencies - Third Party P,90283397,CAREWATCH (BARNET),90.20,21/08/2020
Delivery Units,Adults and Health,Other Agencies - Third Party P,90283398,CAREWATCH (BARNET),96.64,21/08/2020
Delivery Units,Adults and Health,Other Agencies - Third Party P,90283399,CAREWATCH (BARNET),8.59,21/08/2020
Delivery Units,Adults and Health,Other Agencies - Third Party P,90283400,CAREWATCH (BARNET),17.18,21/08/2020
Delivery Units,Adults and Health,Other Agencies - Third Party P,90283401,CAREWATCH (BARNET),17.18,21/08/2020
Delivery Units,Adults and Health,Other Agencies - Third Party P,90283402,CAREWATCH (BARNET),21.48,21/08/2020
Delivery Units,Adults and Health,Other Agencies - Third Party P,90283403,CAREWATCH (BARNET),332.91,21/08/2020
Delivery Units,Adults and Health,Other Agencies - Third Party P,90283404,CAREWATCH (BARNET),304.98,21/08/2020
Delivery Units,Adults and Health,Other Agencies - Third Party P,90283405,CAREWATCH (BARNET),304.98,21/08/2020
Delivery Units,Adults and Health,Other Agencies - Third Party P,90283406,CAREWATCH (BARNET),332.91,21/08/2020
Delivery Units,Adults and Health,Other Agencies - Third Party P,90283407,CAREWATCH (BARNET),227.64,21/08/2020
Delivery Units,Adults and Health,Other Agencies - Third Party P,90283408,CAREWATCH (BARNET),219.04,21/08/2020
Delivery Units,Adults and Health,Other Agencies - Third Party P,90283409,CAREWATCH (BARNET),214.75,21/08/2020
Delivery Units,Adults and Health,Other Agencies - Third Party P,90283410,CAREWATCH (BARNET),236.23,21/08/2020
Delivery Units,Adults and Health,Other Agencies - Third Party P,90283411,CAREWATCH (BARNET),259.89,21/08/2020
Delivery Units,Adults and Health,Other Agencies - Third Party P,90283412,CAREWATCH (BARNET),244.85,21/08/2020
Delivery Units,Adults and Health,Other Agencies - Third Party P,90283413,CAREWATCH (BARNET),244.85,21/08/2020
Delivery Units,Adults and Health,Other Agencies - Third Party P,90283414,CAREWATCH (BARNET),259.85,21/08/2020
Delivery Units,Adults and Health,Other Agencies - Third Party P,90283415,CAREWATCH (BARNET),126.70,21/08/2020
Delivery Units,Adults and Health,Other Agencies - Third Party P,90283416,CAREWATCH (BARNET),150.36,21/08/2020
Delivery Units,Adults and Health,Other Agencies - Third Party P,90283417,CAREWATCH (BARNET),150.36,21/08/2020
Delivery Units,Adults and Health,Other Agencies - Third Party P,90283418,CAREWATCH (BARNET),161.10,21/08/2020
Delivery Units,Adults and Health,Other Agencies - Third Party P,90283419,CAREWATCH (BARNET),354.38,21/08/2020
Delivery Units,Adults and Health,Other Agencies - Third Party P,90283420,CAREWATCH (BARNET),330.72,21/08/2020
Delivery Units,Adults and Health,Other Agencies - Third Party P,90283421,CAREWATCH (BARNET),330.75,21/08/2020
Delivery Units,Adults and Health,Other Agencies - Third Party P,90283422,CAREWATCH (BARNET),354.34,21/08/2020
Delivery Units,Adults and Health,Other Agencies - Third Party P,90283427,CAREWATCH (BARNET),32.21,21/08/2020
Delivery Units,Adults and Health,Other Agencies - Third Party P,90283428,CAREWATCH (BARNET),42.95,21/08/2020
Delivery Units,Adults and Health,Other Agencies - Third Party P,90283429,CAREWATCH (BARNET),42.95,21/08/2020
Delivery Units,Adults and Health,Other Agencies - Third Party P,90283430,CAREWATCH (BARNET),249.11,21/08/2020
Delivery Units,Adults and Health,Other Agencies - Third Party P,90283431,CAREWATCH (BARNET),223.34,21/08/2020
Delivery Units,Adults and Health,Other Agencies - Third Party P,90283432,CAREWATCH (BARNET),206.16,21/08/2020
Delivery Units,Adults and Health,Other Agencies - Third Party P,90283433,CAREWATCH (BARNET),221.19,21/08/2020
Delivery Units,Adults and Health,Other Agencies - Third Party P,90283434,CAREWATCH (BARNET),128.85,21/08/2020
Delivery Units,Adults and Health,Other Agencies - Third Party P,90283435,CAREWATCH (BARNET),120.26,21/08/2020
Delivery Units,Adults and Health,Other Agencies - Third Party P,90283436,CAREWATCH (BARNET),120.26,21/08/2020
Delivery Units,Adults and Health,Other Agencies - Third Party P,90283437,CAREWATCH (BARNET),128.85,21/08/2020
Delivery Units,Adults and Health,Other Agencies - Third Party P,90283438,CAREWATCH (BARNET),96.64,21/08/2020
Delivery Units,Adults and Health,Other Agencies - Third Party P,90283439,CAREWATCH (BARNET),81.60,21/08/2020
Delivery Units,Adults and Health,Other Agencies - Third Party P,90283440,CAREWATCH (BARNET),90.23,21/08/2020
Delivery Units,Adults and Health,Other Agencies - Third Party P,90283441,CAREWATCH (BARNET),96.64,21/08/2020
Delivery Units,Adults and Health,Other Agencies - Third Party P,90283442,CAREWATCH (BARNET),212.60,21/08/2020
Delivery Units,Adults and Health,Other Agencies - Third Party P,90283443,CAREWATCH (BARNET),193.28,21/08/2020
Delivery Units,Adults and Health,Other Agencies - Third Party P,90283444,CAREWATCH (BARNET),201.86,21/08/2020
Delivery Units,Adults and Health,Other Agencies - Third Party P,90283445,CAREWATCH (BARNET),223.34,21/08/2020
Delivery Units,Adults and Health,Other Agencies - Third Party P,90283446,CAREWATCH (BARNET),354.38,21/08/2020
Delivery Units,Adults and Health,Other Agencies - Third Party P,90283447,CAREWATCH (BARNET),330.75,21/08/2020
Delivery Units,Adults and Health,Other Agencies - Third Party P,90283448,CAREWATCH (BARNET),330.75,21/08/2020
Delivery Units,Adults and Health,Other Agencies - Third Party P,90283449,CAREWATCH (BARNET),354.38,21/08/2020
Delivery Units,Adults and Health,Other Agencies - Third Party P,90283450,CAREWATCH (BARNET),322.19,21/08/2020
Delivery Units,Adults and Health,Other Agencies - Third Party P,90283451,CAREWATCH (BARNET),300.72,21/08/2020
Delivery Units,Adults and Health,Other Agencies - Third Party P,90283452,CAREWATCH (BARNET),300.72,21/08/2020
Delivery Units,Adults and Health,Other Agencies - Third Party P,90283453,CAREWATCH (BARNET),322.19,21/08/2020
Delivery Units,Adults and Health,Other Agencies - Third Party P,90283454,CAREWATCH (BARNET),17.18,21/08/2020
Delivery Units,Adults and Health,Other Agencies - Third Party P,90283455,CAREWATCH (BARNET),17.18,21/08/2020
Delivery Units,Adults and Health,Other Agencies - Third Party P,90283456,CAREWATCH (BARNET),21.48,21/08/2020
Delivery Units,Adults and Health,Other Agencies - Third Party P,90283457,CAREWATCH (BARNET),17.18,21/08/2020
Delivery Units,Adults and Health,Other Agencies - Third Party P,90283458,CAREWATCH (BARNET),128.85,21/08/2020
Delivery Units,Adults and Health,Other Agencies - Third Party P,90283459,CAREWATCH (BARNET),120.26,21/08/2020
Delivery Units,Adults and Health,Other Agencies - Third Party P,90283460,CAREWATCH (BARNET),120.26,21/08/2020
Delivery Units,Adults and Health,Other Agencies - Third Party P,90283461,CAREWATCH (BARNET),128.85,21/08/2020
Delivery Units,Adults and Health,Other Agencies - Third Party P,90283462,CAREWATCH (BARNET),289.95,21/08/2020
Delivery Units,Adults and Health,Other Agencies - Third Party P,90283463,CAREWATCH (BARNET),270.62,21/08/2020
Delivery Units,Adults and Health,Other Agencies - Third Party P,90283464,CAREWATCH (BARNET),270.62,21/08/2020
Delivery Units,Adults and Health,Other Agencies - Third Party P,90283465,CAREWATCH (BARNET),289.95,21/08/2020
Delivery Units,Adults and Health,Other Agencies - Third Party P,90283470,CAREWATCH (BARNET),32.21,21/08/2020
Delivery Units,Adults and Health,Other Agencies - Third Party P,90283471,CAREWATCH (BARNET),25.77,21/08/2020
Delivery Units,Adults and Health,Other Agencies - Third Party P,90283472,CAREWATCH (BARNET),25.77,21/08/2020
Delivery Units,Adults and Health,Other Agencies - Third Party P,90283473,CAREWATCH (BARNET),25.77,21/08/2020
Delivery Units,Adults and Health,Other Agencies - Third Party P,90283474,CAREWATCH (BARNET),178.24,21/08/2020
Delivery Units,Adults and Health,Other Agencies - Third Party P,90283475,CAREWATCH (BARNET),163.21,21/08/2020
Delivery Units,Adults and Health,Other Agencies - Third Party P,90283476,CAREWATCH (BARNET),206.16,21/08/2020
Delivery Units,Adults and Health,Other Agencies - Third Party P,90283477,CAREWATCH (BARNET),225.53,21/08/2020
Delivery Units,Adults and Health,Other Agencies - Third Party P,90283478,CAREWATCH (BARNET),128.85,21/08/2020
Delivery Units,Adults and Health,Other Agencies - Third Party P,90283479,CAREWATCH (BARNET),120.26,21/08/2020
Delivery Units,Adults and Health,Other Agencies - Third Party P,90283480,CAREWATCH (BARNET),111.67,21/08/2020
Delivery Units,Adults and Health,Other Agencies - Third Party P,90283481,CAREWATCH (BARNET),120.26,21/08/2020
Delivery Units,Adults and Health,Other Agencies - Third Party P,90283482,CAREWATCH (BARNET),128.85,21/08/2020
Delivery Units,Adults and Health,Other Agencies - Third Party P,90283483,CAREWATCH (BARNET),120.26,21/08/2020
Delivery Units,Adults and Health,Other Agencies - Third Party P,90283484,CAREWATCH (BARNET),120.26,21/08/2020
Delivery Units,Adults and Health,Other Agencies - Third Party P,90283485,CAREWATCH (BARNET),128.85,21/08/2020
Delivery Units,Adults and Health,Other Agencies - Third Party P,90283486,CAREWATCH (BARNET),350.04,21/08/2020
Delivery Units,Adults and Health,Other Agencies - Third Party P,90283487,CAREWATCH (BARNET),317.83,21/08/2020
Delivery Units,Adults and Health,Other Agencies - Third Party P,90283488,CAREWATCH (BARNET),322.12,21/08/2020
Delivery Units,Adults and Health,Other Agencies - Third Party P,90283489,CAREWATCH (BARNET),373.73,21/08/2020
Delivery Units,Adults and Health,Other Agencies - Third Party P,90283490,CAREWATCH (BARNET),128.85,21/08/2020
Delivery Units,Adults and Health,Other Agencies - Third Party P,90283491,CAREWATCH (BARNET),120.26,21/08/2020
Delivery Units,Adults and Health,Other Agencies - Third Party P,90283492,CAREWATCH (BARNET),120.26,21/08/2020
Delivery Units,Adults and Health,Other Agencies - Third Party P,90283493,CAREWATCH (BARNET),128.85,21/08/2020
Delivery Units,Adults and Health,Other Agencies - Third Party P,90283494,CAREWATCH (BARNET),289.95,21/08/2020
Delivery Units,Adults and Health,Other Agencies - Third Party P,90283495,CAREWATCH (BARNET),270.62,21/08/2020
Delivery Units,Adults and Health,Other Agencies - Third Party P,90283496,CAREWATCH (BARNET),270.58,21/08/2020
Delivery Units,Adults and Health,Other Agencies - Third Party P,90283497,CAREWATCH (BARNET),277.03,21/08/2020
Delivery Units,Adults and Health,Other Agencies - Third Party P,90283498,CAREWATCH (BARNET),277.06,21/08/2020
Delivery Units,Adults and Health,Other Agencies - Third Party P,90283499,CAREWATCH (BARNET),262.03,21/08/2020
Delivery Units,Adults and Health,Other Agencies - Third Party P,90283500,CAREWATCH (BARNET),262.03,21/08/2020
Delivery Units,Adults and Health,Other Agencies - Third Party P,90283501,CAREWATCH (BARNET),277.06,21/08/2020
Delivery Units,Adults and Health,Other Agencies - Third Party P,90283502,CAREWATCH (BARNET),158.92,21/08/2020
Delivery Units,Adults and Health,Other Agencies - Third Party P,90283503,CAREWATCH (BARNET),257.70,21/08/2020
Delivery Units,Adults and Health,Other Agencies - Third Party P,90283504,CAREWATCH (BARNET),240.52,21/08/2020
Delivery Units,Adults and Health,Other Agencies - Third Party P,90283505,CAREWATCH (BARNET),240.52,21/08/2020
Delivery Units,Adults and Health,Other Agencies - Third Party P,90283506,CAREWATCH (BARNET),257.70,21/08/2020
Delivery Units,Adults and Health,Other Agencies - Third Party P,90283511,CAREWATCH (BARNET),139.62,21/08/2020
Delivery Units,Adults and Health,Other Agencies - Third Party P,90283512,CAREWATCH (BARNET),150.36,21/08/2020
Delivery Units,Adults and Health,Other Agencies - Third Party P,90283513,CAREWATCH (BARNET),150.36,21/08/2020
Delivery Units,Adults and Health,Other Agencies - Third Party P,90283514,CAREWATCH (BARNET),161.10,21/08/2020
Delivery Units,Adults and Health,Other Agencies - Third Party P,90283515,CAREWATCH (BARNET),251.26,21/08/2020
Delivery Units,Adults and Health,Other Agencies - Third Party P,90283516,CAREWATCH (BARNET),219.04,21/08/2020
Delivery Units,Adults and Health,Other Agencies - Third Party P,90283517,CAREWATCH (BARNET),253.40,21/08/2020
Delivery Units,Adults and Health,Other Agencies - Third Party P,90283518,CAREWATCH (BARNET),251.26,21/08/2020
Delivery Units,Adults and Health,Other Agencies - Third Party P,90283519,CAREWATCH (BARNET),115.97,21/08/2020
Delivery Units,Adults and Health,Other Agencies - Third Party P,90283520,CAREWATCH (BARNET),60.13,21/08/2020
Delivery Units,Adults and Health,Other Agencies - Third Party P,90283521,CAREWATCH (BARNET),128.85,21/08/2020
Delivery Units,Adults and Health,Other Agencies - Third Party P,90283522,CAREWATCH (BARNET),141.74,21/08/2020
Delivery Units,Adults and Health,Other Agencies - Third Party P,90283523,CAREWATCH (BARNET),156.77,21/08/2020
Delivery Units,Adults and Health,Other Agencies - Third Party P,90283524,CAREWATCH (BARNET),161.10,21/08/2020
Delivery Units,Adults and Health,Other Agencies - Third Party P,90283525,CAREWATCH (BARNET),150.36,21/08/2020
Delivery Units,Adults and Health,Other Agencies - Third Party P,90283526,CAREWATCH (BARNET),150.33,21/08/2020
Delivery Units,Adults and Health,Other Agencies - Third Party P,90283527,CAREWATCH (BARNET),152.47,21/08/2020
Delivery Units,Adults and Health,Other Agencies - Third Party P,90283528,CAREWATCH (BARNET),12.88,21/08/2020
Delivery Units,Adults and Health,Other Agencies - Third Party P,90283529,CAREWATCH (BARNET),152.47,21/08/2020
Delivery Units,Adults and Health,Other Agencies - Third Party P,90283530,CAREWATCH (BARNET),304.94,21/08/2020
Delivery Units,Adults and Health,Other Agencies - Third Party P,90283531,CAREWATCH (BARNET),225.53,21/08/2020
Delivery Units,Adults and Health,Other Agencies - Third Party P,90283532,CAREWATCH (BARNET),227.64,21/08/2020
Delivery Units,Adults and Health,Other Agencies - Third Party P,90283533,CAREWATCH (BARNET),206.16,21/08/2020
Delivery Units,Adults and Health,Other Agencies - Third Party P,90283534,CAREWATCH (BARNET),251.26,21/08/2020
Delivery Units,Adults and Health,Other Agencies - Third Party P,90283535,CAREWATCH (BARNET),68.72,21/08/2020
Delivery Units,Adults and Health,Other Agencies - Third Party P,90283536,CAREWATCH (BARNET),17.18,21/08/2020
Delivery Units,Adults and Health,Other Agencies - Third Party P,90283537,CAREWATCH (BARNET),64.42,21/08/2020
Delivery Units,Adults and Health,Other Agencies - Third Party P,90283538,CAREWATCH (BARNET),25.77,21/08/2020
Delivery Units,Adults and Health,Other Agencies - Third Party P,90283539,CAREWATCH (BARNET),81.60,21/08/2020
Delivery Units,Adults and Health,Other Agencies - Third Party P,90283540,CAREWATCH (BARNET),225.53,21/08/2020
Delivery Units,Adults and Health,Other Agencies - Third Party P,90283541,CAREWATCH (BARNET),289.95,21/08/2020
Delivery Units,Adults and Health,Other Agencies - Third Party P,90283542,CAREWATCH (BARNET),270.62,21/08/2020
Delivery Units,Adults and Health,Other Agencies - Third Party P,90283543,CAREWATCH (BARNET),270.62,21/08/2020
Delivery Units,Adults and Health,Other Agencies - Third Party P,90283544,CAREWATCH (BARNET),289.95,21/08/2020
Delivery Units,Adults and Health,Other Agencies - Third Party P,90283545,CAREWATCH (BARNET),350.04,21/08/2020
Delivery Units,Adults and Health,Other Agencies - Third Party P,90283546,CAREWATCH (BARNET),313.53,21/08/2020
Delivery Units,Adults and Health,Other Agencies - Third Party P,90283547,CAREWATCH (BARNET),326.42,21/08/2020
Delivery Units,Adults and Health,Other Agencies - Third Party P,90283548,CAREWATCH (BARNET),307.09,21/08/2020
Delivery Units,Adults and Health,Other Agencies - Third Party P,90283549,CAREWATCH (BARNET),225.53,21/08/2020
Delivery Units,Adults and Health,Other Agencies - Third Party P,90283550,CAREWATCH (BARNET),210.49,21/08/2020
Delivery Units,Adults and Health,Other Agencies - Third Party P,90283551,CAREWATCH (BARNET),206.16,21/08/2020
Delivery Units,Adults and Health,Other Agencies - Third Party P,90283552,CAREWATCH (BARNET),225.53,21/08/2020
Delivery Units,Adults and Health,Other Agencies - Third Party P,90283553,CAREWATCH (BARNET),307.14,21/08/2020
Delivery Units,Adults and Health,Other Agencies - Third Party P,90283554,CAREWATCH (BARNET),287.80,21/08/2020
Delivery Units,Adults and Health,Other Agencies - Third Party P,90283555,CAREWATCH (BARNET),287.80,21/08/2020
Delivery Units,Adults and Health,Other Agencies - Third Party P,90283556,CAREWATCH (BARNET),292.06,21/08/2020
Delivery Units,Adults and Health,Other Agencies - Third Party P,90283557,CAREWATCH (BARNET),186.83,21/08/2020
Delivery Units,Adults and Health,Other Agencies - Third Party P,90283558,CAREWATCH (BARNET),180.39,21/08/2020
Delivery Units,Adults and Health,Other Agencies - Third Party P,90283559,CAREWATCH (BARNET),180.39,21/08/2020
Delivery Units,Adults and Health,Other Agencies - Third Party P,90283560,CAREWATCH (BARNET),184.69,21/08/2020
Delivery Units,Adults and Health,Other Agencies - Third Party P,90283561,CAREWATCH (BARNET),257.70,21/08/2020
Delivery Units,Adults and Health,Other Agencies - Third Party P,90283562,CAREWATCH (BARNET),240.52,21/08/2020
Delivery Units,Adults and Health,Other Agencies - Third Party P,90283563,CAREWATCH (BARNET),223.34,21/08/2020
Delivery Units,Adults and Health,Other Agencies - Third Party P,90283564,CAREWATCH (BARNET),257.70,21/08/2020
Delivery Units,Adults and Health,Other Agencies - Third Party P,90283565,CAREWATCH (BARNET),64.42,21/08/2020
Delivery Units,Adults and Health,Other Agencies - Third Party P,90283566,CAREWATCH (BARNET),55.84,21/08/2020
Delivery Units,Adults and Health,Other Agencies - Third Party P,90283567,CAREWATCH (BARNET),55.84,21/08/2020
Delivery Units,Adults and Health,Other Agencies - Third Party P,90283568,CAREWATCH (BARNET),60.13,21/08/2020
Delivery Units,Adults and Health,Other Agencies - Third Party P,90283569,CAREWATCH (BARNET),225.53,21/08/2020
Delivery Units,Adults and Health,Other Agencies - Third Party P,90283570,CAREWATCH (BARNET),210.49,21/08/2020
Delivery Units,Adults and Health,Other Agencies - Third Party P,90283571,CAREWATCH (BARNET),210.49,21/08/2020
Delivery Units,Adults and Health,Other Agencies - Third Party P,90283572,CAREWATCH (BARNET),225.53,21/08/2020
Delivery Units,Adults and Health,Other Agencies - Third Party P,90283573,CAREWATCH (BARNET),64.43,21/08/2020
Delivery Units,Adults and Health,Other Agencies - Third Party P,90283574,CAREWATCH (BARNET),60.13,21/08/2020
Delivery Units,Adults and Health,Other Agencies - Third Party P,90283575,CAREWATCH (BARNET),60.13,21/08/2020
Delivery Units,Adults and Health,Other Agencies - Third Party P,90283576,CAREWATCH (BARNET),64.43,21/08/2020
Delivery Units,Adults and Health,Other Agencies - Third Party P,90283577,CAREWATCH (BARNET),257.77,21/08/2020
Delivery Units,Adults and Health,Other Agencies - Third Party P,90283578,CAREWATCH (BARNET),240.59,21/08/2020
Delivery Units,Adults and Health,Other Agencies - Third Party P,90283579,CAREWATCH (BARNET),240.59,21/08/2020
Delivery Units,Adults and Health,Other Agencies - Third Party P,90283580,CAREWATCH (BARNET),257.77,21/08/2020
Delivery Units,Adults and Health,Other Agencies - Third Party P,90283585,CAREWATCH (BARNET),68.72,21/08/2020
Delivery Units,Adults and Health,Other Agencies - Third Party P,90283586,CAREWATCH (BARNET),60.13,21/08/2020
Delivery Units,Adults and Health,Other Agencies - Third Party P,90283587,CAREWATCH (BARNET),90.23,21/08/2020
Delivery Units,Adults and Health,Other Agencies - Third Party P,90283588,CAREWATCH (BARNET),96.64,21/08/2020
Delivery Units,Adults and Health,Other Agencies - Third Party P,90283589,CAREWATCH (BARNET),161.10,21/08/2020
Delivery Units,Adults and Health,Other Agencies - Third Party P,90283590,CAREWATCH (BARNET),150.36,21/08/2020
Delivery Units,Adults and Health,Other Agencies - Third Party P,90283591,CAREWATCH (BARNET),150.36,21/08/2020
Delivery Units,Adults and Health,Other Agencies - Third Party P,90283592,CAREWATCH (BARNET),161.10,21/08/2020
Delivery Units,Adults and Health,Other Agencies - Third Party P,90283597,CAREWATCH (BARNET),270.62,21/08/2020
Delivery Units,Adults and Health,Other Agencies - Third Party P,90283598,CAREWATCH (BARNET),188.98,21/08/2020
Delivery Units,Adults and Health,Other Agencies - Third Party P,90277240,DYNAMIC PEOPLE LTD,850.73,04/08/2020
Delivery Units,Adults and Health,Other Agencies - Third Party P,90277241,DYNAMIC PEOPLE LTD,643.60,04/08/2020
Delivery Units,Adults and Health,Other Agencies - Third Party P,90277242,DYNAMIC PEOPLE LTD,643.60,04/08/2020
Delivery Units,Adults and Health,Other Agencies - Third Party P,90277243,DYNAMIC PEOPLE LTD,"1,291.21",04/08/2020
Delivery Units,Adults and Health,Other Agencies - Third Party P,90277245,DYNAMIC PEOPLE LTD,893.01,04/08/2020
Delivery Units,Adults and Health,Other Agencies - Third Party P,90277246,DYNAMIC PEOPLE LTD,724.06,04/08/2020
Delivery Units,Adults and Health,Other Agencies - Third Party P,90277247,DYNAMIC PEOPLE LTD,"1,013.67",04/08/2020
Delivery Units,Adults and Health,Other Agencies - Third Party P,90278963,DYNAMIC PEOPLE LTD,140.79,12/08/2020
Delivery Units,Adults and Health,Other Agencies - Third Party P,90278964,DYNAMIC PEOPLE LTD,150.84,12/08/2020
Delivery Units,Adults and Health,Other Agencies - Third Party P,90278965,DYNAMIC PEOPLE LTD,426.38,12/08/2020
Delivery Units,Adults and Health,Other Agencies - Third Party P,90278966,DYNAMIC PEOPLE LTD,422.36,12/08/2020
Delivery Units,Adults and Health,Other Agencies - Third Party P,90278967,DYNAMIC PEOPLE LTD,72.40,12/08/2020
Delivery Units,Adults and Health,Other Agencies - Third Party P,90278968,DYNAMIC PEOPLE LTD,80.45,12/08/2020
Delivery Units,Adults and Health,Other Agencies - Third Party P,90278969,DYNAMIC PEOPLE LTD,60.34,12/08/2020
Delivery Units,Adults and Health,Other Agencies - Third Party P,90278970,DYNAMIC PEOPLE LTD,66.37,12/08/2020
Delivery Units,Adults and Health,Other Agencies - Third Party P,90278971,DYNAMIC PEOPLE LTD,197.10,12/08/2020
Delivery Units,Adults and Health,Other Agencies - Third Party P,90278972,DYNAMIC PEOPLE LTD,211.18,12/08/2020
Delivery Units,Adults and Health,Other Agencies - Third Party P,90278973,DYNAMIC PEOPLE LTD,40.22,12/08/2020
Delivery Units,Adults and Health,Other Agencies - Third Party P,90278974,DYNAMIC PEOPLE LTD,80.45,12/08/2020
Delivery Units,Adults and Health,Other Agencies - Third Party P,90278975,DYNAMIC PEOPLE LTD,84.47,12/08/2020
Delivery Units,Adults and Health,Other Agencies - Third Party P,90278976,DYNAMIC PEOPLE LTD,90.51,12/08/2020
Delivery Units,Adults and Health,Other Agencies - Third Party P,90278977,DYNAMIC PEOPLE LTD,128.72,12/08/2020
Delivery Units,Adults and Health,Other Agencies - Third Party P,90278978,DYNAMIC PEOPLE LTD,136.76,12/08/2020
Delivery Units,Adults and Health,Other Agencies - Third Party P,90278979,DYNAMIC PEOPLE LTD,88.50,12/08/2020
Delivery Units,Adults and Health,Other Agencies - Third Party P,90278980,DYNAMIC PEOPLE LTD,92.52,12/08/2020
Delivery Units,Adults and Health,Other Agencies - Third Party P,90278981,DYNAMIC PEOPLE LTD,197.10,12/08/2020
Delivery Units,Adults and Health,Other Agencies - Third Party P,90278982,DYNAMIC PEOPLE LTD,211.18,12/08/2020
Delivery Units,Adults and Health,Other Agencies - Third Party P,90278983,DYNAMIC PEOPLE LTD,217.22,12/08/2020
Delivery Units,Adults and Health,Other Agencies - Third Party P,90278986,DYNAMIC PEOPLE LTD,84.47,12/08/2020
Delivery Units,Adults and Health,Other Agencies - Third Party P,90278987,DYNAMIC PEOPLE LTD,132.74,12/08/2020
Delivery Units,Adults and Health,Other Agencies - Third Party P,90278990,DYNAMIC PEOPLE LTD,60.34,12/08/2020
Delivery Units,Adults and Health,Other Agencies - Third Party P,90278991,DYNAMIC PEOPLE LTD,66.37,12/08/2020
Delivery Units,Adults and Health,Other Agencies - Third Party P,90278992,DYNAMIC PEOPLE LTD,253.42,12/08/2020
Delivery Units,Adults and Health,Other Agencies - Third Party P,90278993,DYNAMIC PEOPLE LTD,271.52,12/08/2020
Delivery Units,Adults and Health,Other Agencies - Third Party P,90278994,DYNAMIC PEOPLE LTD,140.79,12/08/2020
Delivery Units,Adults and Health,Other Agencies - Third Party P,90278995,DYNAMIC PEOPLE LTD,150.84,12/08/2020
Delivery Units,Adults and Health,Other Agencies - Third Party P,90278996,DYNAMIC PEOPLE LTD,197.10,12/08/2020
Delivery Units,Adults and Health,Other Agencies - Third Party P,90278997,DYNAMIC PEOPLE LTD,211.18,12/08/2020
Delivery Units,Adults and Health,Other Agencies - Third Party P,90279002,DYNAMIC PEOPLE LTD,52.29,12/08/2020
Delivery Units,Adults and Health,Other Agencies - Third Party P,90279003,DYNAMIC PEOPLE LTD,52.29,12/08/2020
Delivery Units,Adults and Health,Other Agencies - Third Party P,90279004,DYNAMIC PEOPLE LTD,140.79,12/08/2020
Delivery Units,Adults and Health,Other Agencies - Third Party P,90279005,DYNAMIC PEOPLE LTD,150.84,12/08/2020
Delivery Units,Adults and Health,Other Agencies - Third Party P,90279006,DYNAMIC PEOPLE LTD,394.20,12/08/2020
Delivery Units,Adults and Health,Other Agencies - Third Party P,90279007,DYNAMIC PEOPLE LTD,422.36,12/08/2020
Delivery Units,Adults and Health,Other Agencies - Third Party P,90279010,DYNAMIC PEOPLE LTD,32.18,12/08/2020
Delivery Units,Adults and Health,Other Agencies - Third Party P,90279011,DYNAMIC PEOPLE LTD,32.18,12/08/2020
Delivery Units,Adults and Health,Other Agencies - Third Party P,90279014,DYNAMIC PEOPLE LTD,112.63,12/08/2020
Delivery Units,Adults and Health,Other Agencies - Third Party P,90279015,DYNAMIC PEOPLE LTD,120.68,12/08/2020
Delivery Units,Adults and Health,Other Agencies - Third Party P,90279016,DYNAMIC PEOPLE LTD,124.70,12/08/2020
Delivery Units,Adults and Health,Other Agencies - Third Party P,90279017,DYNAMIC PEOPLE LTD,134.75,12/08/2020
Delivery Units,Adults and Health,Other Agencies - Third Party P,90279018,DYNAMIC PEOPLE LTD,241.35,12/08/2020
Delivery Units,Adults and Health,Other Agencies - Third Party P,90279019,DYNAMIC PEOPLE LTD,261.46,12/08/2020
Delivery Units,Adults and Health,Other Agencies - Third Party P,90279020,DYNAMIC PEOPLE LTD,60.34,12/08/2020
Delivery Units,Adults and Health,Other Agencies - Third Party P,90279021,DYNAMIC PEOPLE LTD,48.27,12/08/2020
Delivery Units,Adults and Health,Other Agencies - Third Party P,90279022,DYNAMIC PEOPLE LTD,96.54,12/08/2020
Delivery Units,Adults and Health,Other Agencies - Third Party P,90279023,DYNAMIC PEOPLE LTD,104.58,12/08/2020
Delivery Units,Adults and Health,Other Agencies - Third Party P,90279024,DYNAMIC PEOPLE LTD,253.42,12/08/2020
Delivery Units,Adults and Health,Other Agencies - Third Party P,90279025,DYNAMIC PEOPLE LTD,271.52,12/08/2020
Delivery Units,Adults and Health,Other Agencies - Third Party P,90279026,DYNAMIC PEOPLE LTD,462.59,12/08/2020
Delivery Units,Adults and Health,Other Agencies - Third Party P,90279027,DYNAMIC PEOPLE LTD,476.67,12/08/2020
Delivery Units,Adults and Health,Other Agencies - Third Party P,90279030,DYNAMIC PEOPLE LTD,337.89,12/08/2020
Delivery Units,Adults and Health,Other Agencies - Third Party P,90279031,DYNAMIC PEOPLE LTD,362.02,12/08/2020
Delivery Units,Adults and Health,Other Agencies - Third Party P,90279032,DYNAMIC PEOPLE LTD,96.54,12/08/2020
Delivery Units,Adults and Health,Other Agencies - Third Party P,90279033,DYNAMIC PEOPLE LTD,104.58,12/08/2020
Delivery Units,Adults and Health,Other Agencies - Third Party P,90279036,DYNAMIC PEOPLE LTD,168.94,12/08/2020
Delivery Units,Adults and Health,Other Agencies - Third Party P,90279037,DYNAMIC PEOPLE LTD,181.01,12/08/2020
Delivery Units,Adults and Health,Other Agencies - Third Party P,90279038,DYNAMIC PEOPLE LTD,225.26,12/08/2020
Delivery Units,Adults and Health,Other Agencies - Third Party P,90279039,DYNAMIC PEOPLE LTD,241.35,12/08/2020
Delivery Units,Adults and Health,Other Agencies - Third Party P,90279042,DYNAMIC PEOPLE LTD,253.42,12/08/2020
Delivery Units,Adults and Health,Other Agencies - Third Party P,90279043,DYNAMIC PEOPLE LTD,271.52,12/08/2020
Delivery Units,Adults and Health,Other Agencies - Third Party P,90279044,DYNAMIC PEOPLE LTD,144.81,12/08/2020
Delivery Units,Adults and Health,Other Agencies - Third Party P,90279045,DYNAMIC PEOPLE LTD,160.90,12/08/2020
Delivery Units,Adults and Health,Other Agencies - Third Party P,90279046,DYNAMIC PEOPLE LTD,84.47,12/08/2020
Delivery Units,Adults and Health,Other Agencies - Third Party P,90279047,DYNAMIC PEOPLE LTD,90.51,12/08/2020
Delivery Units,Adults and Health,Other Agencies - Third Party P,90279048,DYNAMIC PEOPLE LTD,309.73,12/08/2020
Delivery Units,Adults and Health,Other Agencies - Third Party P,90279049,DYNAMIC PEOPLE LTD,331.86,12/08/2020
Delivery Units,Adults and Health,Other Agencies - Third Party P,90279050,DYNAMIC PEOPLE LTD,84.47,12/08/2020
Delivery Units,Adults and Health,Other Agencies - Third Party P,90279051,DYNAMIC PEOPLE LTD,90.51,12/08/2020
Delivery Units,Adults and Health,Other Agencies - Third Party P,90279052,DYNAMIC PEOPLE LTD,225.26,12/08/2020
Delivery Units,Adults and Health,Other Agencies - Third Party P,90279053,DYNAMIC PEOPLE LTD,237.33,12/08/2020
Delivery Units,Adults and Health,Other Agencies - Third Party P,90279054,DYNAMIC PEOPLE LTD,56.32,12/08/2020
Delivery Units,Adults and Health,Other Agencies - Third Party P,90279055,DYNAMIC PEOPLE LTD,60.34,12/08/2020
Delivery Units,Adults and Health,Other Agencies - Third Party P,90279056,DYNAMIC PEOPLE LTD,140.79,12/08/2020
Delivery Units,Adults and Health,Other Agencies - Third Party P,90279057,DYNAMIC PEOPLE LTD,150.84,12/08/2020
Delivery Units,Adults and Health,Other Agencies - Third Party P,90279064,DYNAMIC PEOPLE LTD,36.20,12/08/2020
Delivery Units,Adults and Health,Other Agencies - Third Party P,90279065,DYNAMIC PEOPLE LTD,42.24,12/08/2020
Delivery Units,Adults and Health,Other Agencies - Third Party P,90279068,DYNAMIC PEOPLE LTD,84.47,12/08/2020
Delivery Units,Adults and Health,Other Agencies - Third Party P,90279069,DYNAMIC PEOPLE LTD,90.51,12/08/2020
Delivery Units,Adults and Health,Other Agencies - Third Party P,90279072,DYNAMIC PEOPLE LTD,84.47,12/08/2020
Delivery Units,Adults and Health,Other Agencies - Third Party P,90279073,DYNAMIC PEOPLE LTD,90.51,12/08/2020
Delivery Units,Adults and Health,Other Agencies - Third Party P,90279076,DYNAMIC PEOPLE LTD,112.63,12/08/2020
Delivery Units,Adults and Health,Other Agencies - Third Party P,90279077,DYNAMIC PEOPLE LTD,120.68,12/08/2020
Delivery Units,Adults and Health,Other Agencies - Third Party P,90279080,DYNAMIC PEOPLE LTD,84.47,12/08/2020
Delivery Units,Adults and Health,Other Agencies - Third Party P,90279081,DYNAMIC PEOPLE LTD,90.51,12/08/2020
Delivery Units,Adults and Health,Other Agencies - Third Party P,90279084,DYNAMIC PEOPLE LTD,120.68,12/08/2020
Delivery Units,Adults and Health,Other Agencies - Third Party P,90279085,DYNAMIC PEOPLE LTD,132.74,12/08/2020
Delivery Units,Adults and Health,Other Agencies - Third Party P,90279086,DYNAMIC PEOPLE LTD,281.58,12/08/2020
Delivery Units,Adults and Health,Other Agencies - Third Party P,90279087,DYNAMIC PEOPLE LTD,301.69,12/08/2020
Delivery Units,Adults and Health,Other Agencies - Third Party P,90279090,DYNAMIC PEOPLE LTD,32.18,12/08/2020
Delivery Units,Adults and Health,Other Agencies - Third Party P,90279091,DYNAMIC PEOPLE LTD,40.22,12/08/2020
Delivery Units,Adults and Health,Other Agencies - Third Party P,90279092,DYNAMIC PEOPLE LTD,309.73,12/08/2020
Delivery Units,Adults and Health,Other Agencies - Third Party P,90279093,DYNAMIC PEOPLE LTD,331.86,12/08/2020
Delivery Units,Adults and Health,Other Agencies - Third Party P,90279094,DYNAMIC PEOPLE LTD,96.54,12/08/2020
Delivery Units,Adults and Health,Other Agencies - Third Party P,90279095,DYNAMIC PEOPLE LTD,104.58,12/08/2020
Delivery Units,Adults and Health,Other Agencies - Third Party P,90279098,DYNAMIC PEOPLE LTD,450.52,12/08/2020
Delivery Units,Adults and Health,Other Agencies - Third Party P,90279099,DYNAMIC PEOPLE LTD,458.56,12/08/2020
Delivery Units,Adults and Health,Other Agencies - Third Party P,90279100,DYNAMIC PEOPLE LTD,140.79,12/08/2020
Delivery Units,Adults and Health,Other Agencies - Third Party P,90279101,DYNAMIC PEOPLE LTD,150.84,12/08/2020
Delivery Units,Adults and Health,Other Agencies - Third Party P,90279102,DYNAMIC PEOPLE LTD,120.68,12/08/2020
Delivery Units,Adults and Health,Other Agencies - Third Party P,90279103,DYNAMIC PEOPLE LTD,130.73,12/08/2020
Delivery Units,Adults and Health,Other Agencies - Third Party P,90279104,DYNAMIC PEOPLE LTD,197.10,12/08/2020
Delivery Units,Adults and Health,Other Agencies - Third Party P,90279105,DYNAMIC PEOPLE LTD,209.17,12/08/2020
Delivery Units,Adults and Health,Other Agencies - Third Party P,90279108,DYNAMIC PEOPLE LTD,591.31,12/08/2020
Delivery Units,Adults and Health,Other Agencies - Third Party P,90279109,DYNAMIC PEOPLE LTD,633.54,12/08/2020
Delivery Units,Adults and Health,Other Agencies - Third Party P,90279110,DYNAMIC PEOPLE LTD,253.42,12/08/2020
Delivery Units,Adults and Health,Other Agencies - Third Party P,90279111,DYNAMIC PEOPLE LTD,271.52,12/08/2020
Delivery Units,Adults and Health,Other Agencies - Third Party P,90279112,DYNAMIC PEOPLE LTD,189.06,12/08/2020
Delivery Units,Adults and Health,Other Agencies - Third Party P,90279113,DYNAMIC PEOPLE LTD,199.11,12/08/2020
Delivery Units,Adults and Health,Other Agencies - Third Party P,90279114,DYNAMIC PEOPLE LTD,72.40,12/08/2020
Delivery Units,Adults and Health,Other Agencies - Third Party P,90279115,DYNAMIC PEOPLE LTD,76.43,12/08/2020
Delivery Units,Adults and Health,Other Agencies - Third Party P,90279116,DYNAMIC PEOPLE LTD,197.10,12/08/2020
Delivery Units,Adults and Health,Other Agencies - Third Party P,90279117,DYNAMIC PEOPLE LTD,211.18,12/08/2020
Delivery Units,Adults and Health,Other Agencies - Third Party P,90279120,DYNAMIC PEOPLE LTD,309.73,12/08/2020
Delivery Units,Adults and Health,Other Agencies - Third Party P,90279121,DYNAMIC PEOPLE LTD,331.86,12/08/2020
Delivery Units,Adults and Health,Other Agencies - Third Party P,90279122,DYNAMIC PEOPLE LTD,72.40,12/08/2020
Delivery Units,Adults and Health,Other Agencies - Third Party P,90279123,DYNAMIC PEOPLE LTD,90.51,12/08/2020
Delivery Units,Adults and Health,Other Agencies - Third Party P,90279124,DYNAMIC PEOPLE LTD,124.70,12/08/2020
Delivery Units,Adults and Health,Other Agencies - Third Party P,90279125,DYNAMIC PEOPLE LTD,132.74,12/08/2020
Delivery Units,Adults and Health,Other Agencies - Third Party P,90279126,DYNAMIC PEOPLE LTD,56.32,12/08/2020
Delivery Units,Adults and Health,Other Agencies - Third Party P,90279127,DYNAMIC PEOPLE LTD,64.36,12/08/2020
Delivery Units,Adults and Health,Other Agencies - Third Party P,90279128,DYNAMIC PEOPLE LTD,64.36,12/08/2020
Delivery Units,Adults and Health,Other Agencies - Third Party P,90279129,DYNAMIC PEOPLE LTD,84.47,12/08/2020
Delivery Units,Adults and Health,Other Agencies - Third Party P,90279130,DYNAMIC PEOPLE LTD,90.51,12/08/2020
Delivery Units,Adults and Health,Other Agencies - Third Party P,90279133,DYNAMIC PEOPLE LTD,112.63,12/08/2020
Delivery Units,Adults and Health,Other Agencies - Third Party P,90279134,DYNAMIC PEOPLE LTD,120.68,12/08/2020
Delivery Units,Adults and Health,Other Agencies - Third Party P,90279135,DYNAMIC PEOPLE LTD,64.36,12/08/2020
Delivery Units,Adults and Health,Other Agencies - Third Party P,90279136,DYNAMIC PEOPLE LTD,64.36,12/08/2020
Delivery Units,Adults and Health,Other Agencies - Third Party P,90279137,DYNAMIC PEOPLE LTD,197.10,12/08/2020
Delivery Units,Adults and Health,Other Agencies - Third Party P,90279138,DYNAMIC PEOPLE LTD,211.18,12/08/2020
Delivery Units,Adults and Health,Other Agencies - Third Party P,90279139,DYNAMIC PEOPLE LTD,213.19,12/08/2020
Delivery Units,Adults and Health,Other Agencies - Third Party P,90279140,DYNAMIC PEOPLE LTD,231.29,12/08/2020
Delivery Units,Adults and Health,Other Agencies - Third Party P,90279141,DYNAMIC PEOPLE LTD,48.27,12/08/2020
Delivery Units,Adults and Health,Other Agencies - Third Party P,90279142,DYNAMIC PEOPLE LTD,56.32,12/08/2020
Delivery Units,Adults and Health,Other Agencies - Third Party P,90279143,DYNAMIC PEOPLE LTD,325.82,12/08/2020
Delivery Units,Adults and Health,Other Agencies - Third Party P,90279144,DYNAMIC PEOPLE LTD,347.95,12/08/2020
Delivery Units,Adults and Health,Other Agencies - Third Party P,90279145,DYNAMIC PEOPLE LTD,225.26,12/08/2020
Delivery Units,Adults and Health,Other Agencies - Third Party P,90279146,DYNAMIC PEOPLE LTD,241.35,12/08/2020
Delivery Units,Adults and Health,Other Agencies - Third Party P,90279147,DYNAMIC PEOPLE LTD,84.47,12/08/2020
Delivery Units,Adults and Health,Other Agencies - Third Party P,90279148,DYNAMIC PEOPLE LTD,197.10,12/08/2020
Delivery Units,Adults and Health,Other Agencies - Third Party P,90279149,DYNAMIC PEOPLE LTD,211.18,12/08/2020
Delivery Units,Adults and Health,Other Agencies - Third Party P,90279152,DYNAMIC PEOPLE LTD,84.47,12/08/2020
Delivery Units,Adults and Health,Other Agencies - Third Party P,90279153,DYNAMIC PEOPLE LTD,90.51,12/08/2020
Delivery Units,Adults and Health,Other Agencies - Third Party P,90279156,DYNAMIC PEOPLE LTD,84.47,12/08/2020
Delivery Units,Adults and Health,Other Agencies - Third Party P,90279157,DYNAMIC PEOPLE LTD,90.51,12/08/2020
Delivery Units,Adults and Health,Other Agencies - Third Party P,90279158,DYNAMIC PEOPLE LTD,48.27,12/08/2020
Delivery Units,Adults and Health,Other Agencies - Third Party P,90279159,DYNAMIC PEOPLE LTD,56.32,12/08/2020
Delivery Units,Adults and Health,Other Agencies - Third Party P,90279160,DYNAMIC PEOPLE LTD,309.73,12/08/2020
Delivery Units,Adults and Health,Other Agencies - Third Party P,90279161,DYNAMIC PEOPLE LTD,116.65,12/08/2020
Delivery Units,Adults and Health,Other Agencies - Third Party P,90279164,DYNAMIC PEOPLE LTD,88.50,12/08/2020
Delivery Units,Adults and Health,Other Agencies - Third Party P,90279165,DYNAMIC PEOPLE LTD,94.53,12/08/2020
Delivery Units,Adults and Health,Other Agencies - Third Party P,90279166,DYNAMIC PEOPLE LTD,60.34,12/08/2020
Delivery Units,Adults and Health,Other Agencies - Third Party P,90279169,DYNAMIC PEOPLE LTD,32.18,12/08/2020
Delivery Units,Adults and Health,Other Agencies - Third Party P,90279170,DYNAMIC PEOPLE LTD,36.20,12/08/2020
Delivery Units,Adults and Health,Other Agencies - Third Party P,90279171,DYNAMIC PEOPLE LTD,32.18,12/08/2020
Delivery Units,Adults and Health,Other Agencies - Third Party P,90279172,DYNAMIC PEOPLE LTD,150.84,12/08/2020
Delivery Units,Adults and Health,Other Agencies - Third Party P,90279173,DYNAMIC PEOPLE LTD,32.18,12/08/2020
Delivery Units,Adults and Health,Other Agencies - Third Party P,90279174,DYNAMIC PEOPLE LTD,72.40,12/08/2020
Delivery Units,Adults and Health,Other Agencies - Third Party P,90279175,DYNAMIC PEOPLE LTD,48.27,12/08/2020
Delivery Units,Adults and Health,Other Agencies - Third Party P,90279176,DYNAMIC PEOPLE LTD,281.58,12/08/2020
Delivery Units,Adults and Health,Other Agencies - Third Party P,90279177,DYNAMIC PEOPLE LTD,301.69,12/08/2020
Delivery Units,Adults and Health,Other Agencies - Third Party P,90279178,DYNAMIC PEOPLE LTD,176.99,12/08/2020
Delivery Units,Adults and Health,Other Agencies - Third Party P,90279179,DYNAMIC PEOPLE LTD,189.06,12/08/2020
Delivery Units,Adults and Health,Other Agencies - Third Party P,90279180,DYNAMIC PEOPLE LTD,24.14,12/08/2020
Delivery Units,Adults and Health,Other Agencies - Third Party P,90279181,DYNAMIC PEOPLE LTD,24.14,12/08/2020
Delivery Units,Adults and Health,Other Agencies - Third Party P,90279182,DYNAMIC PEOPLE LTD,297.67,12/08/2020
Delivery Units,Adults and Health,Other Agencies - Third Party P,90279183,DYNAMIC PEOPLE LTD,317.78,12/08/2020
Delivery Units,Adults and Health,Other Agencies - Third Party P,90279184,DYNAMIC PEOPLE LTD,269.51,12/08/2020
Delivery Units,Adults and Health,Other Agencies - Third Party P,90279185,DYNAMIC PEOPLE LTD,301.69,12/08/2020
Delivery Units,Adults and Health,Other Agencies - Third Party P,90279186,DYNAMIC PEOPLE LTD,213.19,12/08/2020
Delivery Units,Adults and Health,Other Agencies - Third Party P,90279187,DYNAMIC PEOPLE LTD,227.27,12/08/2020
Delivery Units,Adults and Health,Other Agencies - Third Party P,90279188,DYNAMIC PEOPLE LTD,253.42,12/08/2020
Delivery Units,Adults and Health,Other Agencies - Third Party P,90279189,DYNAMIC PEOPLE LTD,271.52,12/08/2020
Delivery Units,Adults and Health,Other Agencies - Third Party P,90279190,DYNAMIC PEOPLE LTD,112.63,12/08/2020
Delivery Units,Adults and Health,Other Agencies - Third Party P,90279191,DYNAMIC PEOPLE LTD,120.68,12/08/2020
Delivery Units,Adults and Health,Other Agencies - Third Party P,90279192,DYNAMIC PEOPLE LTD,84.47,12/08/2020
Delivery Units,Adults and Health,Other Agencies - Third Party P,90279193,DYNAMIC PEOPLE LTD,90.51,12/08/2020
Delivery Units,Adults and Health,Other Agencies - Third Party P,90279195,DYNAMIC PEOPLE LTD,80.45,12/08/2020
Delivery Units,Adults and Health,Other Agencies - Third Party P,90279196,DYNAMIC PEOPLE LTD,88.50,12/08/2020
Delivery Units,Adults and Health,Other Agencies - Third Party P,90279197,DYNAMIC PEOPLE LTD,233.30,12/08/2020
Delivery Units,Adults and Health,Other Agencies - Third Party P,90279198,DYNAMIC PEOPLE LTD,249.40,12/08/2020
Delivery Units,Adults and Health,Other Agencies - Third Party P,90279199,DYNAMIC PEOPLE LTD,88.50,12/08/2020
Delivery Units,Adults and Health,Other Agencies - Third Party P,90279200,DYNAMIC PEOPLE LTD,92.52,12/08/2020
Delivery Units,Adults and Health,Other Agencies - Third Party P,90279201,DYNAMIC PEOPLE LTD,84.47,12/08/2020
Delivery Units,Adults and Health,Other Agencies - Third Party P,90279202,DYNAMIC PEOPLE LTD,90.51,12/08/2020
Delivery Units,Adults and Health,Other Agencies - Third Party P,90279203,DYNAMIC PEOPLE LTD,24.14,12/08/2020
Delivery Units,Adults and Health,Other Agencies - Third Party P,90279204,DYNAMIC PEOPLE LTD,24.14,12/08/2020
Delivery Units,Adults and Health,Other Agencies - Third Party P,90279205,DYNAMIC PEOPLE LTD,84.47,12/08/2020
Delivery Units,Adults and Health,Other Agencies - Third Party P,90279206,DYNAMIC PEOPLE LTD,90.51,12/08/2020
Delivery Units,Adults and Health,Other Agencies - Third Party P,90279207,DYNAMIC PEOPLE LTD,112.63,12/08/2020
Delivery Units,Adults and Health,Other Agencies - Third Party P,90279208,DYNAMIC PEOPLE LTD,120.68,12/08/2020
Delivery Units,Adults and Health,Other Agencies - Third Party P,90279211,DYNAMIC PEOPLE LTD,450.52,12/08/2020
Delivery Units,Adults and Health,Other Agencies - Third Party P,90279212,DYNAMIC PEOPLE LTD,482.70,12/08/2020
Delivery Units,Adults and Health,Other Agencies - Third Party P,90279217,DYNAMIC PEOPLE LTD,140.79,12/08/2020
Delivery Units,Adults and Health,Other Agencies - Third Party P,90279218,DYNAMIC PEOPLE LTD,140.79,12/08/2020
Delivery Units,Adults and Health,Other Agencies - Third Party P,90279219,DYNAMIC PEOPLE LTD,225.26,12/08/2020
Delivery Units,Adults and Health,Other Agencies - Third Party P,90279220,DYNAMIC PEOPLE LTD,72.40,12/08/2020
Delivery Units,Adults and Health,Other Agencies - Third Party P,90279221,DYNAMIC PEOPLE LTD,72.40,12/08/2020
Delivery Units,Adults and Health,Other Agencies - Third Party P,90279222,DYNAMIC PEOPLE LTD,60.34,12/08/2020
Delivery Units,Adults and Health,Other Agencies - Third Party P,90279223,DYNAMIC PEOPLE LTD,60.34,12/08/2020
Delivery Units,Adults and Health,Other Agencies - Third Party P,90279224,DYNAMIC PEOPLE LTD,116.65,12/08/2020
Delivery Units,Adults and Health,Other Agencies - Third Party P,90279225,DYNAMIC PEOPLE LTD,172.97,12/08/2020
Delivery Units,Adults and Health,Other Agencies - Third Party P,90279226,DYNAMIC PEOPLE LTD,84.47,12/08/2020
Delivery Units,Adults and Health,Other Agencies - Third Party P,90279227,DYNAMIC PEOPLE LTD,84.47,12/08/2020
Delivery Units,Adults and Health,Other Agencies - Third Party P,90279228,DYNAMIC PEOPLE LTD,128.72,12/08/2020
Delivery Units,Adults and Health,Other Agencies - Third Party P,90279229,DYNAMIC PEOPLE LTD,128.72,12/08/2020
Delivery Units,Adults and Health,Other Agencies - Third Party P,90279230,DYNAMIC PEOPLE LTD,88.50,12/08/2020
Delivery Units,Adults and Health,Other Agencies - Third Party P,90279231,DYNAMIC PEOPLE LTD,88.50,12/08/2020
Delivery Units,Adults and Health,Other Agencies - Third Party P,90279232,DYNAMIC PEOPLE LTD,197.10,12/08/2020
Delivery Units,Adults and Health,Other Agencies - Third Party P,90279233,DYNAMIC PEOPLE LTD,197.10,12/08/2020
Delivery Units,Adults and Health,Other Agencies - Third Party P,90279234,DYNAMIC PEOPLE LTD,281.58,12/08/2020
Delivery Units,Adults and Health,Other Agencies - Third Party P,90279235,DYNAMIC PEOPLE LTD,281.58,12/08/2020
Delivery Units,Adults and Health,Other Agencies - Third Party P,90279238,DYNAMIC PEOPLE LTD,84.47,12/08/2020
Delivery Units,Adults and Health,Other Agencies - Third Party P,90279239,DYNAMIC PEOPLE LTD,84.47,12/08/2020
Delivery Units,Adults and Health,Other Agencies - Third Party P,90279242,DYNAMIC PEOPLE LTD,60.34,12/08/2020
Delivery Units,Adults and Health,Other Agencies - Third Party P,90279243,DYNAMIC PEOPLE LTD,60.34,12/08/2020
Delivery Units,Adults and Health,Other Agencies - Third Party P,90279244,DYNAMIC PEOPLE LTD,253.42,12/08/2020
Delivery Units,Adults and Health,Other Agencies - Third Party P,90279245,DYNAMIC PEOPLE LTD,253.42,12/08/2020
Delivery Units,Adults and Health,Other Agencies - Third Party P,90279246,DYNAMIC PEOPLE LTD,140.79,12/08/2020
Delivery Units,Adults and Health,Other Agencies - Third Party P,90279247,DYNAMIC PEOPLE LTD,140.79,12/08/2020
Delivery Units,Adults and Health,Other Agencies - Third Party P,90279248,DYNAMIC PEOPLE LTD,197.10,12/08/2020
Delivery Units,Adults and Health,Other Agencies - Third Party P,90279249,DYNAMIC PEOPLE LTD,189.06,12/08/2020
Delivery Units,Adults and Health,Other Agencies - Third Party P,90279254,DYNAMIC PEOPLE LTD,52.29,12/08/2020
Delivery Units,Adults and Health,Other Agencies - Third Party P,90279255,DYNAMIC PEOPLE LTD,52.29,12/08/2020
Delivery Units,Adults and Health,Other Agencies - Third Party P,90279258,DYNAMIC PEOPLE LTD,140.79,12/08/2020
Delivery Units,Adults and Health,Other Agencies - Third Party P,90279259,DYNAMIC PEOPLE LTD,140.79,12/08/2020
Delivery Units,Adults and Health,Other Agencies - Third Party P,90279260,DYNAMIC PEOPLE LTD,394.20,12/08/2020
Delivery Units,Adults and Health,Other Agencies - Third Party P,90279261,DYNAMIC PEOPLE LTD,394.20,12/08/2020
Delivery Units,Adults and Health,Other Agencies - Third Party P,90279264,DYNAMIC PEOPLE LTD,32.18,12/08/2020
Delivery Units,Adults and Health,Other Agencies - Third Party P,90279265,DYNAMIC PEOPLE LTD,16.09,12/08/2020
Delivery Units,Adults and Health,Other Agencies - Third Party P,90279268,DYNAMIC PEOPLE LTD,112.63,12/08/2020
Delivery Units,Adults and Health,Other Agencies - Third Party P,90279269,DYNAMIC PEOPLE LTD,112.63,12/08/2020
Delivery Units,Adults and Health,Other Agencies - Third Party P,90279270,DYNAMIC PEOPLE LTD,124.70,12/08/2020
Delivery Units,Adults and Health,Other Agencies - Third Party P,90279271,DYNAMIC PEOPLE LTD,116.65,12/08/2020
Delivery Units,Adults and Health,Other Agencies - Third Party P,90279272,DYNAMIC PEOPLE LTD,241.35,12/08/2020
Delivery Units,Adults and Health,Other Agencies - Third Party P,90279273,DYNAMIC PEOPLE LTD,241.35,12/08/2020
Delivery Units,Adults and Health,Other Agencies - Third Party P,90279274,DYNAMIC PEOPLE LTD,60.34,12/08/2020
Delivery Units,Adults and Health,Other Agencies - Third Party P,90279275,DYNAMIC PEOPLE LTD,60.34,12/08/2020
Delivery Units,Adults and Health,Other Agencies - Third Party P,90279276,DYNAMIC PEOPLE LTD,96.54,12/08/2020
Delivery Units,Adults and Health,Other Agencies - Third Party P,90279277,DYNAMIC PEOPLE LTD,96.54,12/08/2020
Delivery Units,Adults and Health,Other Agencies - Third Party P,90279278,DYNAMIC PEOPLE LTD,253.42,12/08/2020
Delivery Units,Adults and Health,Other Agencies - Third Party P,90279279,DYNAMIC PEOPLE LTD,253.42,12/08/2020
Delivery Units,Adults and Health,Other Agencies - Third Party P,90279280,DYNAMIC PEOPLE LTD,462.59,12/08/2020
Delivery Units,Adults and Health,Other Agencies - Third Party P,90279281,DYNAMIC PEOPLE LTD,462.59,12/08/2020
Delivery Units,Adults and Health,Other Agencies - Third Party P,90279284,DYNAMIC PEOPLE LTD,337.89,12/08/2020
Delivery Units,Adults and Health,Other Agencies - Third Party P,90279285,DYNAMIC PEOPLE LTD,337.89,12/08/2020
Delivery Units,Adults and Health,Other Agencies - Third Party P,90279286,DYNAMIC PEOPLE LTD,96.54,12/08/2020
Delivery Units,Adults and Health,Other Agencies - Third Party P,90279287,DYNAMIC PEOPLE LTD,96.54,12/08/2020
Delivery Units,Adults and Health,Other Agencies - Third Party P,90279290,DYNAMIC PEOPLE LTD,56.32,12/08/2020
Delivery Units,Adults and Health,Other Agencies - Third Party P,90279291,DYNAMIC PEOPLE LTD,64.36,12/08/2020
Delivery Units,Adults and Health,Other Agencies - Third Party P,90279292,DYNAMIC PEOPLE LTD,225.26,12/08/2020
Delivery Units,Adults and Health,Other Agencies - Third Party P,90279293,DYNAMIC PEOPLE LTD,225.26,12/08/2020
Delivery Units,Adults and Health,Other Agencies - Third Party P,90279296,DYNAMIC PEOPLE LTD,253.42,12/08/2020
Delivery Units,Adults and Health,Other Agencies - Third Party P,90279297,DYNAMIC PEOPLE LTD,253.42,12/08/2020
Delivery Units,Adults and Health,Other Agencies - Third Party P,90279298,DYNAMIC PEOPLE LTD,144.81,12/08/2020
Delivery Units,Adults and Health,Other Agencies - Third Party P,90279299,DYNAMIC PEOPLE LTD,144.81,12/08/2020
Delivery Units,Adults and Health,Other Agencies - Third Party P,90279300,DYNAMIC PEOPLE LTD,84.47,12/08/2020
Delivery Units,Adults and Health,Other Agencies - Third Party P,90279301,DYNAMIC PEOPLE LTD,84.47,12/08/2020
Delivery Units,Adults and Health,Other Agencies - Third Party P,90279302,DYNAMIC PEOPLE LTD,309.73,12/08/2020
Delivery Units,Adults and Health,Other Agencies - Third Party P,90279303,DYNAMIC PEOPLE LTD,309.73,12/08/2020
Delivery Units,Adults and Health,Other Agencies - Third Party P,90279304,DYNAMIC PEOPLE LTD,84.47,12/08/2020
Delivery Units,Adults and Health,Other Agencies - Third Party P,90279305,DYNAMIC PEOPLE LTD,84.47,12/08/2020
Delivery Units,Adults and Health,Other Agencies - Third Party P,90279306,DYNAMIC PEOPLE LTD,225.26,12/08/2020
Delivery Units,Adults and Health,Other Agencies - Third Party P,90279307,DYNAMIC PEOPLE LTD,225.26,12/08/2020
Delivery Units,Adults and Health,Other Agencies - Third Party P,90279308,DYNAMIC PEOPLE LTD,56.32,12/08/2020
Delivery Units,Adults and Health,Other Agencies - Third Party P,90279309,DYNAMIC PEOPLE LTD,56.32,12/08/2020
Delivery Units,Adults and Health,Other Agencies - Third Party P,90279310,DYNAMIC PEOPLE LTD,140.79,12/08/2020
Delivery Units,Adults and Health,Other Agencies - Third Party P,90279311,DYNAMIC PEOPLE LTD,140.79,12/08/2020
Delivery Units,Adults and Health,Other Agencies - Third Party P,90279318,DYNAMIC PEOPLE LTD,36.20,12/08/2020
Delivery Units,Adults and Health,Other Agencies - Third Party P,90279319,DYNAMIC PEOPLE LTD,36.20,12/08/2020
Delivery Units,Adults and Health,Other Agencies - Third Party P,90279322,DYNAMIC PEOPLE LTD,84.47,12/08/2020
Delivery Units,Adults and Health,Other Agencies - Third Party P,90279323,DYNAMIC PEOPLE LTD,84.47,12/08/2020
Delivery Units,Adults and Health,Other Agencies - Third Party P,90279326,DYNAMIC PEOPLE LTD,84.47,12/08/2020
Delivery Units,Adults and Health,Other Agencies - Third Party P,90279327,DYNAMIC PEOPLE LTD,84.47,12/08/2020
Delivery Units,Adults and Health,Other Agencies - Third Party P,90279330,DYNAMIC PEOPLE LTD,112.63,12/08/2020
Delivery Units,Adults and Health,Other Agencies - Third Party P,90279331,DYNAMIC PEOPLE LTD,112.63,12/08/2020
Delivery Units,Adults and Health,Other Agencies - Third Party P,90279334,DYNAMIC PEOPLE LTD,84.47,12/08/2020
Delivery Units,Adults and Health,Other Agencies - Third Party P,90279335,DYNAMIC PEOPLE LTD,84.47,12/08/2020
Delivery Units,Adults and Health,Other Agencies - Third Party P,90279338,DYNAMIC PEOPLE LTD,120.68,12/08/2020
Delivery Units,Adults and Health,Other Agencies - Third Party P,90279339,DYNAMIC PEOPLE LTD,120.68,12/08/2020
Delivery Units,Adults and Health,Other Agencies - Third Party P,90279340,DYNAMIC PEOPLE LTD,281.58,12/08/2020
Delivery Units,Adults and Health,Other Agencies - Third Party P,90279341,DYNAMIC PEOPLE LTD,281.58,12/08/2020
Delivery Units,Adults and Health,Other Agencies - Third Party P,90279344,DYNAMIC PEOPLE LTD,32.18,12/08/2020
Delivery Units,Adults and Health,Other Agencies - Third Party P,90279345,DYNAMIC PEOPLE LTD,32.18,12/08/2020
Delivery Units,Adults and Health,Other Agencies - Third Party P,90279346,DYNAMIC PEOPLE LTD,309.73,12/08/2020
Delivery Units,Adults and Health,Other Agencies - Third Party P,90279347,DYNAMIC PEOPLE LTD,309.73,12/08/2020
Delivery Units,Adults and Health,Other Agencies - Third Party P,90279348,DYNAMIC PEOPLE LTD,96.54,12/08/2020
Delivery Units,Adults and Health,Other Agencies - Third Party P,90279349,DYNAMIC PEOPLE LTD,96.54,12/08/2020
Delivery Units,Adults and Health,Other Agencies - Third Party P,90279352,DYNAMIC PEOPLE LTD,450.52,12/08/2020
Delivery Units,Adults and Health,Other Agencies - Third Party P,90279353,DYNAMIC PEOPLE LTD,362.02,12/08/2020
Delivery Units,Adults and Health,Other Agencies - Third Party P,90279354,DYNAMIC PEOPLE LTD,140.79,12/08/2020
Delivery Units,Adults and Health,Other Agencies - Third Party P,90279355,DYNAMIC PEOPLE LTD,140.79,12/08/2020
Delivery Units,Adults and Health,Other Agencies - Third Party P,90279356,DYNAMIC PEOPLE LTD,120.68,12/08/2020
Delivery Units,Adults and Health,Other Agencies - Third Party P,90279357,DYNAMIC PEOPLE LTD,120.68,12/08/2020
Delivery Units,Adults and Health,Other Agencies - Third Party P,90279358,DYNAMIC PEOPLE LTD,245.37,12/08/2020
Delivery Units,Adults and Health,Other Agencies - Third Party P,90279359,DYNAMIC PEOPLE LTD,281.58,12/08/2020
Delivery Units,Adults and Health,Other Agencies - Third Party P,90279362,DYNAMIC PEOPLE LTD,591.31,12/08/2020
Delivery Units,Adults and Health,Other Agencies - Third Party P,90279363,DYNAMIC PEOPLE LTD,591.31,12/08/2020
Delivery Units,Adults and Health,Other Agencies - Third Party P,90279364,DYNAMIC PEOPLE LTD,253.42,12/08/2020
Delivery Units,Adults and Health,Other Agencies - Third Party P,90279365,DYNAMIC PEOPLE LTD,253.42,12/08/2020
Delivery Units,Adults and Health,Other Agencies - Third Party P,90279366,DYNAMIC PEOPLE LTD,189.06,12/08/2020
Delivery Units,Adults and Health,Other Agencies - Third Party P,90279367,DYNAMIC PEOPLE LTD,189.06,12/08/2020
Delivery Units,Adults and Health,Other Agencies - Third Party P,90279368,DYNAMIC PEOPLE LTD,72.40,12/08/2020
Delivery Units,Adults and Health,Other Agencies - Third Party P,90279369,DYNAMIC PEOPLE LTD,72.40,12/08/2020
Delivery Units,Adults and Health,Other Agencies - Third Party P,90279370,DYNAMIC PEOPLE LTD,197.10,12/08/2020
Delivery Units,Adults and Health,Other Agencies - Third Party P,90279371,DYNAMIC PEOPLE LTD,197.10,12/08/2020
Delivery Units,Adults and Health,Other Agencies - Third Party P,90279374,DYNAMIC PEOPLE LTD,309.73,12/08/2020
Delivery Units,Adults and Health,Other Agencies - Third Party P,90279375,DYNAMIC PEOPLE LTD,309.73,12/08/2020
Delivery Units,Adults and Health,Other Agencies - Third Party P,90279376,DYNAMIC PEOPLE LTD,72.40,12/08/2020
Delivery Units,Adults and Health,Other Agencies - Third Party P,90279377,DYNAMIC PEOPLE LTD,36.20,12/08/2020
Delivery Units,Adults and Health,Other Agencies - Third Party P,90279378,DYNAMIC PEOPLE LTD,124.70,12/08/2020
Delivery Units,Adults and Health,Other Agencies - Third Party P,90279379,DYNAMIC PEOPLE LTD,124.70,12/08/2020
Delivery Units,Adults and Health,Other Agencies - Third Party P,90279380,DYNAMIC PEOPLE LTD,64.36,12/08/2020
Delivery Units,Adults and Health,Other Agencies - Third Party P,90279381,DYNAMIC PEOPLE LTD,64.36,12/08/2020
Delivery Units,Adults and Health,Other Agencies - Third Party P,90279382,DYNAMIC PEOPLE LTD,84.47,12/08/2020
Delivery Units,Adults and Health,Other Agencies - Third Party P,90279385,DYNAMIC PEOPLE LTD,112.63,12/08/2020
Delivery Units,Adults and Health,Other Agencies - Third Party P,90279386,DYNAMIC PEOPLE LTD,112.63,12/08/2020
Delivery Units,Adults and Health,Other Agencies - Third Party P,90279387,DYNAMIC PEOPLE LTD,64.36,12/08/2020
Delivery Units,Adults and Health,Other Agencies - Third Party P,90279388,DYNAMIC PEOPLE LTD,64.36,12/08/2020
Delivery Units,Adults and Health,Other Agencies - Third Party P,90279389,DYNAMIC PEOPLE LTD,197.10,12/08/2020
Delivery Units,Adults and Health,Other Agencies - Third Party P,90279390,DYNAMIC PEOPLE LTD,197.10,12/08/2020
